Payment Date,Transaction Number,Net Amount,Supplier (Beneficiary) Name,Local Supplier Internal Reference,Directorate / Service Where Expenditure Incurred,Service Category Label,Service Category URI,SeRCOP Expenditure Category,SeRCOP Expenditure Code,Purpose of Spend,SeRCOP Detailed Expenditure Code,Capital/Revenue,Procurement Classification
21-Dec-2017,230,-66.67,MAXHIRE LTD,393158,"Environment, Housing & Leisure",Cultural & Related Services,104,Supplies and Services,504,Equipment,5023,Revenue,HORT TREE
21-Dec-2017,299,-179.87,AV PARTMASTER,380836,"Health, Education, Care and Safeguarding",Children's & Education Services,103,Supplies and Services,504,Communications & Computing,5028,Revenue,15.CONSUMABLES
21-Dec-2017,7004436,79.17,UNIVERSITY OF WINCHESTER,396067,Commissioning & Investment,Children's & Education Services,103,Employees,501,Indirect Employee Expenses,5002,Revenue,00.EXT SCHOOLS
21-Dec-2017,7004437,105.00,HABITAT AID LTD,396066,"Environment, Housing & Leisure",Cultural & Related Services,104,Supplies and Services,504,Equipment,5023,Revenue,12.LANDSCAPING
21-Dec-2017,7004437,-105.00,HABITAT AID LTD,396066,"Environment, Housing & Leisure",Cultural & Related Services,104,Supplies and Services,504,Equipment,5023,Revenue,12.LANDSCAPING
21-Dec-2017,7004438,17.97,JTF WHOLESALE,368725,"Health, Education, Care and Safeguarding",Adult Social Care,101,Supplies and Services,504,Equipment,5023,Revenue,03.GROCERIES & PROVISIONS
21-Dec-2017,7004438,177.63,JTF WHOLESALE,368725,"Environment, Housing & Leisure",Environmental & Regulatory Services,105,Supplies and Services,504,Equipment,5023,Revenue,03.GROCERIES & PROVISIONS
21-Dec-2017,7004438,17.44,JTF WHOLESALE,368725,"Health, Education, Care and Safeguarding",Children's & Education Services,103,Supplies and Services,504,Equipment,5023,Revenue,03.GROCERIES & PROVISIONS
21-Dec-2017,7004438,29.94,JTF WHOLESALE,368725,"Environment, Housing & Leisure",Environmental & Regulatory Services,105,Supplies and Services,504,Miscellaneous Expenses,5034,Revenue,03.GROCERIES & PROVISIONS
21-Dec-2017,7004438,13.99,JTF WHOLESALE,368725,"Environment, Housing & Leisure",Environmental & Regulatory Services,105,Supplies and Services,504,Equipment,5023,Revenue,03.GROCERIES & PROVISIONS
21-Dec-2017,7004438,77.88,JTF WHOLESALE,368725,"Environment, Housing & Leisure",Environmental & Regulatory Services,105,Supplies and Services,504,Equipment,5023,Revenue,03.GROCERIES & PROVISIONS
21-Dec-2017,7004439,7.40,GM PACKAGING (UK) LTD,312623,Commissioning & Investment,Children's & Education Services,103,Supplies and Services,504,Equipment,5023,Revenue,03.DISPOSABLES
21-Dec-2017,7004439,69.10,GM PACKAGING (UK) LTD,312623,Commissioning & Investment,Children's & Education Services,103,Supplies and Services,504,Equipment,5023,Revenue,03.DISPOSABLES
21-Dec-2017,7004439,24.05,GM PACKAGING (UK) LTD,312623,Commissioning & Investment,Children's & Education Services,103,Supplies and Services,504,Equipment,5023,Revenue,03.DISPOSABLES
21-Dec-2017,7004439,23.77,GM PACKAGING (UK) LTD,312623,Commissioning & Investment,Children's & Education Services,103,Supplies and Services,504,Equipment,5023,Revenue,03.DISPOSABLES
21-Dec-2017,7004439,46.88,GM PACKAGING (UK) LTD,312623,Commissioning & Investment,Children's & Education Services,103,Supplies and Services,504,Equipment,5023,Revenue,03.DISPOSABLES
21-Dec-2017,7004439,36.44,GM PACKAGING (UK) LTD,312623,Commissioning & Investment,Children's & Education Services,103,Supplies and Services,504,Equipment,5023,Revenue,03.DISPOSABLES
21-Dec-2017,7004439,89.05,GM PACKAGING (UK) LTD,312623,Commissioning & Investment,Children's & Education Services,103,Supplies and Services,504,Equipment,5023,Revenue,03.DISPOSABLES
21-Dec-2017,7004439,67.02,GM PACKAGING (UK) LTD,312623,Commissioning & Investment,Children's & Education Services,103,Supplies and Services,504,Equipment,5023,Revenue,03.DISPOSABLES
21-Dec-2017,7004439,94.10,GM PACKAGING (UK) LTD,312623,Commissioning & Investment,Children's & Education Services,103,Supplies and Services,504,Equipment,5023,Revenue,03.DISPOSABLES
21-Dec-2017,7004439,42.92,GM PACKAGING (UK) LTD,312623,Commissioning & Investment,Children's & Education Services,103,Supplies and Services,504,Equipment,5023,Revenue,03.DISPOSABLES
21-Dec-2017,7004439,53.38,GM PACKAGING (UK) LTD,312623,Commissioning & Investment,Children's & Education Services,103,Supplies and Services,504,Equipment,5023,Revenue,03.DISPOSABLES
21-Dec-2017,7004439,58.90,GM PACKAGING (UK) LTD,312623,Commissioning & Investment,Children's & Education Services,103,Supplies and Services,504,Equipment,5023,Revenue,03.DISPOSABLES
21-Dec-2017,7004439,140.54,GM PACKAGING (UK) LTD,312623,Commissioning & Investment,Children's & Education Services,103,Supplies and Services,504,Equipment,5023,Revenue,03.DISPOSABLES
21-Dec-2017,7004439,92.65,GM PACKAGING (UK) LTD,312623,Commissioning & Investment,Children's & Education Services,103,Supplies and Services,504,Equipment,5023,Revenue,03.DISPOSABLES
21-Dec-2017,7004439,65.99,GM PACKAGING (UK) LTD,312623,Commissioning & Investment,Children's & Education Services,103,Supplies and Services,504,Equipment,5023,Revenue,03.DISPOSABLES
21-Dec-2017,7004439,80.89,GM PACKAGING (UK) LTD,312623,Commissioning & Investment,Children's & Education Services,103,Supplies and Services,504,Equipment,5023,Revenue,03.DISPOSABLES
21-Dec-2017,7004439,52.72,GM PACKAGING (UK) LTD,312623,Commissioning & Investment,Children's & Education Services,103,Supplies and Services,504,Equipment,5023,Revenue,03.DISPOSABLES
21-Dec-2017,7004439,-235.20,GM PACKAGING (UK) LTD,312623,"Environment, Housing & Leisure",Adult Social Care,101,Supplies and Services,504,Equipment,5023,Revenue,03.DISPOSABLES
21-Dec-2017,7004439,25.80,GM PACKAGING (UK) LTD,312623,Commissioning & Investment,Children's & Education Services,103,Supplies and Services,504,Equipment,5023,Revenue,03.DISPOSABLES
21-Dec-2017,7004439,47.54,GM PACKAGING (UK) LTD,312623,Commissioning & Investment,Children's & Education Services,103,Supplies and Services,504,Equipment,5023,Revenue,03.DISPOSABLES
21-Dec-2017,7004439,376.73,GM PACKAGING (UK) LTD,312623,Commissioning & Investment,Children's & Education Services,103,Supplies and Services,504,Equipment,5023,Revenue,03.DISPOSABLES
21-Dec-2017,7004439,39.42,GM PACKAGING (UK) LTD,312623,Commissioning & Investment,Children's & Education Services,103,Supplies and Services,504,Equipment,5023,Revenue,03.DISPOSABLES
21-Dec-2017,7004439,38.82,GM PACKAGING (UK) LTD,312623,Commissioning & Investment,Children's & Education Services,103,Supplies and Services,504,Equipment,5023,Revenue,03.DISPOSABLES
21-Dec-2017,7004439,150.15,GM PACKAGING (UK) LTD,312623,Commissioning & Investment,Children's & Education Services,103,Supplies and Services,504,Equipment,5023,Revenue,03.DISPOSABLES
21-Dec-2017,7004439,27.00,GM PACKAGING (UK) LTD,312623,Commissioning & Investment,Children's & Education Services,103,Supplies and Services,504,Equipment,5023,Revenue,03.DISPOSABLES
21-Dec-2017,7004439,-24.06,GM PACKAGING (UK) LTD,312623,Commissioning & Investment,Children's & Education Services,103,Supplies and Services,504,Equipment,5023,Revenue,03.DISPOSABLES
21-Dec-2017,7004439,58.38,GM PACKAGING (UK) LTD,312623,Commissioning & Investment,Children's & Education Services,103,Supplies and Services,504,Equipment,5023,Revenue,03.DISPOSABLES
21-Dec-2017,7004439,78.70,GM PACKAGING (UK) LTD,312623,Commissioning & Investment,Children's & Education Services,103,Supplies and Services,504,Equipment,5023,Revenue,03.DISPOSABLES
21-Dec-2017,7004439,0.01,GM PACKAGING (UK) LTD,312623,Commissioning & Investment,Children's & Education Services,103,Supplies and Services,504,Equipment,5023,Revenue,03.DISPOSABLES
21-Dec-2017,7004439,18.22,GM PACKAGING (UK) LTD,312623,Commissioning & Investment,Children's & Education Services,103,Supplies and Services,504,Equipment,5023,Revenue,03.DISPOSABLES
21-Dec-2017,7004439,58.15,GM PACKAGING (UK) LTD,312623,Commissioning & Investment,Children's & Education Services,103,Supplies and Services,504,Equipment,5023,Revenue,03.DISPOSABLES
21-Dec-2017,7004439,235.20,GM PACKAGING (UK) LTD,312623,"Environment, Housing & Leisure",Adult Social Care,101,Supplies and Services,504,Equipment,5023,Revenue,03.DISPOSABLES
21-Dec-2017,7004439,27.00,GM PACKAGING (UK) LTD,312623,Commissioning & Investment,Children's & Education Services,103,Supplies and Services,504,Equipment,5023,Revenue,03.DISPOSABLES
21-Dec-2017,7004439,216.88,GM PACKAGING (UK) LTD,312623,Commissioning & Investment,Children's & Education Services,103,Supplies and Services,504,Equipment,5023,Revenue,03.DISPOSABLES
21-Dec-2017,7004439,94.33,GM PACKAGING (UK) LTD,312623,Commissioning & Investment,Children's & Education Services,103,Supplies and Services,504,Equipment,5023,Revenue,03.DISPOSABLES
21-Dec-2017,7004439,41.74,GM PACKAGING (UK) LTD,312623,Commissioning & Investment,Children's & Education Services,103,Supplies and Services,504,Equipment,5023,Revenue,03.DISPOSABLES
21-Dec-2017,7004439,40.67,GM PACKAGING (UK) LTD,312623,Commissioning & Investment,Children's & Education Services,103,Supplies and Services,504,Equipment,5023,Revenue,03.DISPOSABLES
21-Dec-2017,7004439,85.58,GM PACKAGING (UK) LTD,312623,Commissioning & Investment,Children's & Education Services,103,Supplies and Services,504,Equipment,5023,Revenue,03.DISPOSABLES
21-Dec-2017,7004439,43.83,GM PACKAGING (UK) LTD,312623,"Environment, Housing & Leisure",Adult Social Care,101,Supplies and Services,504,Equipment,5023,Revenue,03.DISPOSABLES
21-Dec-2017,7004439,7.40,GM PACKAGING (UK) LTD,312623,Commissioning & Investment,Children's & Education Services,103,Supplies and Services,504,Equipment,5023,Revenue,03.DISPOSABLES
21-Dec-2017,7004439,146.07,GM PACKAGING (UK) LTD,312623,Commissioning & Investment,Children's & Education Services,103,Supplies and Services,504,Equipment,5023,Revenue,03.DISPOSABLES
21-Dec-2017,7004439,60.21,GM PACKAGING (UK) LTD,312623,Commissioning & Investment,Children's & Education Services,103,Supplies and Services,504,Equipment,5023,Revenue,03.DISPOSABLES
21-Dec-2017,7004439,-0.01,GM PACKAGING (UK) LTD,312623,Commissioning & Investment,Children's & Education Services,103,Supplies and Services,504,Equipment,5023,Revenue,03.DISPOSABLES
21-Dec-2017,7004439,81.14,GM PACKAGING (UK) LTD,312623,"Environment, Housing & Leisure",Cultural & Related Services,104,Supplies and Services,504,Equipment,5023,Revenue,03.DISPOSABLES
21-Dec-2017,7004439,65.16,GM PACKAGING (UK) LTD,312623,Commissioning & Investment,Children's & Education Services,103,Supplies and Services,504,Equipment,5023,Revenue,03.DISPOSABLES
21-Dec-2017,7004439,45.03,GM PACKAGING (UK) LTD,312623,Commissioning & Investment,Children's & Education Services,103,Supplies and Services,504,Equipment,5023,Revenue,03.DISPOSABLES
21-Dec-2017,7004439,77.22,GM PACKAGING (UK) LTD,312623,Commissioning & Investment,Children's & Education Services,103,Supplies and Services,504,Equipment,5023,Revenue,03.DISPOSABLES
21-Dec-2017,7004439,444.24,GM PACKAGING (UK) LTD,312623,Commissioning & Investment,Children's & Education Services,103,Supplies and Services,504,Equipment,5023,Revenue,03.DISPOSABLES
21-Dec-2017,7004439,86.10,GM PACKAGING (UK) LTD,312623,Commissioning & Investment,Children's & Education Services,103,Supplies and Services,504,Equipment,5023,Revenue,03.DISPOSABLES
21-Dec-2017,7004439,60.46,GM PACKAGING (UK) LTD,312623,Commissioning & Investment,Children's & Education Services,103,Supplies and Services,504,Equipment,5023,Revenue,03.DISPOSABLES
21-Dec-2017,7004439,48.67,GM PACKAGING (UK) LTD,312623,Commissioning & Investment,Children's & Education Services,103,Supplies and Services,504,Equipment,5023,Revenue,03.DISPOSABLES
21-Dec-2017,7004439,120.37,GM PACKAGING (UK) LTD,312623,Commissioning & Investment,Children's & Education Services,103,Supplies and Services,504,Equipment,5023,Revenue,03.DISPOSABLES
21-Dec-2017,7004439,34.71,GM PACKAGING (UK) LTD,312623,Commissioning & Investment,Children's & Education Services,103,Supplies and Services,504,Equipment,5023,Revenue,03.DISPOSABLES
21-Dec-2017,7004439,620.20,GM PACKAGING (UK) LTD,312623,"Environment, Housing & Leisure",Adult Social Care,101,Supplies and Services,504,Equipment,5023,Revenue,03.DISPOSABLES
21-Dec-2017,7004439,34.86,GM PACKAGING (UK) LTD,312623,Commissioning & Investment,Children's & Education Services,103,Supplies and Services,504,Equipment,5023,Revenue,03.DISPOSABLES
21-Dec-2017,7004439,38.80,GM PACKAGING (UK) LTD,312623,Commissioning & Investment,Children's & Education Services,103,Supplies and Services,504,Equipment,5023,Revenue,03.DISPOSABLES
21-Dec-2017,7004439,93.97,GM PACKAGING (UK) LTD,312623,Commissioning & Investment,Children's & Education Services,103,Supplies and Services,504,Equipment,5023,Revenue,03.DISPOSABLES
21-Dec-2017,7004439,48.67,GM PACKAGING (UK) LTD,312623,Commissioning & Investment,Children's & Education Services,103,Supplies and Services,504,Equipment,5023,Revenue,03.DISPOSABLES
21-Dec-2017,7004439,34.25,GM PACKAGING (UK) LTD,312623,Commissioning & Investment,Children's & Education Services,103,Supplies and Services,504,Equipment,5023,Revenue,03.DISPOSABLES
21-Dec-2017,7004439,39.17,GM PACKAGING (UK) LTD,312623,Commissioning & Investment,Children's & Education Services,103,Supplies and Services,504,Equipment,5023,Revenue,03.DISPOSABLES
21-Dec-2017,7004439,52.02,GM PACKAGING (UK) LTD,312623,Commissioning & Investment,Children's & Education Services,103,Supplies and Services,504,Equipment,5023,Revenue,03.DISPOSABLES
21-Dec-2017,7004439,15.48,GM PACKAGING (UK) LTD,312623,Commissioning & Investment,Children's & Education Services,103,Supplies and Services,504,Equipment,5023,Revenue,03.DISPOSABLES
21-Dec-2017,7004439,2.90,GM PACKAGING (UK) LTD,312623,Commissioning & Investment,Children's & Education Services,103,Supplies and Services,504,Equipment,5023,Revenue,03.DISPOSABLES
21-Dec-2017,7004439,33.30,GM PACKAGING (UK) LTD,312623,Commissioning & Investment,Children's & Education Services,103,Supplies and Services,504,Equipment,5023,Revenue,03.DISPOSABLES
21-Dec-2017,7004439,174.35,GM PACKAGING (UK) LTD,312623,Commissioning & Investment,Children's & Education Services,103,Supplies and Services,504,Equipment,5023,Revenue,03.DISPOSABLES
21-Dec-2017,7004439,8.15,GM PACKAGING (UK) LTD,312623,Commissioning & Investment,Children's & Education Services,103,Supplies and Services,504,Equipment,5023,Revenue,03.DISPOSABLES
21-Dec-2017,7004439,61.10,GM PACKAGING (UK) LTD,312623,Commissioning & Investment,Children's & Education Services,103,Supplies and Services,504,Equipment,5023,Revenue,03.DISPOSABLES
21-Dec-2017,7004439,117.12,GM PACKAGING (UK) LTD,312623,Commissioning & Investment,Children's & Education Services,103,Supplies and Services,504,Equipment,5023,Revenue,03.DISPOSABLES
21-Dec-2017,7004439,170.67,GM PACKAGING (UK) LTD,312623,Commissioning & Investment,Children's & Education Services,103,Supplies and Services,504,Equipment,5023,Revenue,03.DISPOSABLES
21-Dec-2017,7004439,40.68,GM PACKAGING (UK) LTD,312623,Commissioning & Investment,Children's & Education Services,103,Supplies and Services,504,Equipment,5023,Revenue,03.DISPOSABLES
21-Dec-2017,7004439,52.19,GM PACKAGING (UK) LTD,312623,Commissioning & Investment,Children's & Education Services,103,Supplies and Services,504,Equipment,5023,Revenue,03.DISPOSABLES
21-Dec-2017,7004439,36.90,GM PACKAGING (UK) LTD,312623,Commissioning & Investment,Children's & Education Services,103,Supplies and Services,504,Equipment,5023,Revenue,03.DISPOSABLES
21-Dec-2017,7004439,59.28,GM PACKAGING (UK) LTD,312623,Commissioning & Investment,Children's & Education Services,103,Supplies and Services,504,Equipment,5023,Revenue,03.DISPOSABLES
21-Dec-2017,7004439,97.34,GM PACKAGING (UK) LTD,312623,Commissioning & Investment,Children's & Education Services,103,Supplies and Services,504,Equipment,5023,Revenue,03.DISPOSABLES
21-Dec-2017,7004439,60.70,GM PACKAGING (UK) LTD,312623,Commissioning & Investment,Children's & Education Services,103,Supplies and Services,504,Equipment,5023,Revenue,03.DISPOSABLES
21-Dec-2017,7004439,44.03,GM PACKAGING (UK) LTD,312623,Commissioning & Investment,Children's & Education Services,103,Supplies and Services,504,Equipment,5023,Revenue,03.DISPOSABLES
21-Dec-2017,7004439,53.07,GM PACKAGING (UK) LTD,312623,Commissioning & Investment,Children's & Education Services,103,Supplies and Services,504,Equipment,5023,Revenue,03.DISPOSABLES
21-Dec-2017,7004439,50.80,GM PACKAGING (UK) LTD,312623,Commissioning & Investment,Children's & Education Services,103,Supplies and Services,504,Equipment,5023,Revenue,03.DISPOSABLES
21-Dec-2017,7004439,28.65,GM PACKAGING (UK) LTD,312623,Commissioning & Investment,Children's & Education Services,103,Supplies and Services,504,Equipment,5023,Revenue,03.DISPOSABLES
21-Dec-2017,7004439,149.50,GM PACKAGING (UK) LTD,312623,Commissioning & Investment,Children's & Education Services,103,Supplies and Services,504,Equipment,5023,Revenue,03.DISPOSABLES
21-Dec-2017,7004439,73.64,GM PACKAGING (UK) LTD,312623,Commissioning & Investment,Children's & Education Services,103,Supplies and Services,504,Equipment,5023,Revenue,03.DISPOSABLES
21-Dec-2017,7004439,42.79,GM PACKAGING (UK) LTD,312623,Commissioning & Investment,Children's & Education Services,103,Supplies and Services,504,Equipment,5023,Revenue,03.DISPOSABLES
21-Dec-2017,7004439,64.40,GM PACKAGING (UK) LTD,312623,Commissioning & Investment,Children's & Education Services,103,Supplies and Services,504,Equipment,5023,Revenue,03.DISPOSABLES
21-Dec-2017,7004439,53.23,GM PACKAGING (UK) LTD,312623,Commissioning & Investment,Children's & Education Services,103,Supplies and Services,504,Equipment,5023,Revenue,03.DISPOSABLES
21-Dec-2017,7004439,161.00,GM PACKAGING (UK) LTD,312623,Commissioning & Investment,Children's & Education Services,103,Supplies and Services,504,Equipment,5023,Revenue,03.DISPOSABLES
21-Dec-2017,7004439,14.10,GM PACKAGING (UK) LTD,312623,Commissioning & Investment,Children's & Education Services,103,Supplies and Services,504,Equipment,5023,Revenue,03.DISPOSABLES
21-Dec-2017,7004439,39.05,GM PACKAGING (UK) LTD,312623,Commissioning & Investment,Children's & Education Services,103,Supplies and Services,504,Equipment,5023,Revenue,03.DISPOSABLES
21-Dec-2017,7004439,45.03,GM PACKAGING (UK) LTD,312623,Commissioning & Investment,Children's & Education Services,103,Supplies and Services,504,Equipment,5023,Revenue,03.DISPOSABLES
21-Dec-2017,7004439,150.44,GM PACKAGING (UK) LTD,312623,Commissioning & Investment,Children's & Education Services,103,Supplies and Services,504,Equipment,5023,Revenue,03.DISPOSABLES
21-Dec-2017,7004439,146.60,GM PACKAGING (UK) LTD,312623,Commissioning & Investment,Children's & Education Services,103,Supplies and Services,504,Equipment,5023,Revenue,03.DISPOSABLES
21-Dec-2017,7004439,45.96,GM PACKAGING (UK) LTD,312623,Commissioning & Investment,Children's & Education Services,103,Supplies and Services,504,Equipment,5023,Revenue,03.DISPOSABLES
21-Dec-2017,7004439,175.11,GM PACKAGING (UK) LTD,312623,Commissioning & Investment,Children's & Education Services,103,Supplies and Services,504,Equipment,5023,Revenue,03.DISPOSABLES
21-Dec-2017,7004439,-0.01,GM PACKAGING (UK) LTD,312623,Commissioning & Investment,Children's & Education Services,103,Supplies and Services,504,Equipment,5023,Revenue,03.DISPOSABLES
21-Dec-2017,7004439,25.20,GM PACKAGING (UK) LTD,312623,Commissioning & Investment,Children's & Education Services,103,Supplies and Services,504,Equipment,5023,Revenue,03.DISPOSABLES
21-Dec-2017,7004440,24.83,WILKO RETAIL LIMITED,280813,"Environment, Housing & Leisure",Cultural & Related Services,104,Supplies and Services,504,Equipment,5023,Revenue,00.REDECORATION GRANTS
21-Dec-2017,7004440,17.71,WILKO RETAIL LIMITED,280813,"Environment, Housing & Leisure",Environmental & Regulatory Services,105,Supplies and Services,504,Equipment,5023,Revenue,00.REDECORATION GRANTS
21-Dec-2017,7004440,101.67,WILKO RETAIL LIMITED,280813,Business & Economic Development,Planning Services ,110,Supplies and Services,504,"Printing, Stationery and General Office Expenses",5026,Revenue,00.REDECORATION GRANTS
21-Dec-2017,7004440,56.67,WILKO RETAIL LIMITED,280813,Business & Economic Development,Planning Services ,110,Supplies and Services,504,"Printing, Stationery and General Office Expenses",5026,Revenue,00.REDECORATION GRANTS
21-Dec-2017,7004441,314.63,NPOWER,334502,"Health, Education, Care and Safeguarding",Adult Social Care,101,Supplies and Services,504,Miscellaneous Expenses,5034,Revenue,27.ELECTRIC
21-Dec-2017,7004442,13.98,FASTHOSTS INTERNET LIMITED,367002,"Health, Education, Care and Safeguarding",Children's & Education Services,103,Supplies and Services,504,Communications & Computing,5028,Revenue,15.SOFTWARE
21-Dec-2017,7004442,1.49,FASTHOSTS INTERNET LIMITED,367002,"Health, Education, Care and Safeguarding",Children's & Education Services,103,Supplies and Services,504,Communications & Computing,5028,Revenue,15.SOFTWARE
21-Dec-2017,7004442,1.99,FASTHOSTS INTERNET LIMITED,367002,"Health, Education, Care and Safeguarding",Children's & Education Services,103,Supplies and Services,504,Communications & Computing,5028,Revenue,15.SOFTWARE
21-Dec-2017,7004442,1.49,FASTHOSTS INTERNET LIMITED,367002,"Health, Education, Care and Safeguarding",Children's & Education Services,103,Supplies and Services,504,Communications & Computing,5028,Revenue,15.SOFTWARE
21-Dec-2017,7004442,1.49,FASTHOSTS INTERNET LIMITED,367002,"Health, Education, Care and Safeguarding",Children's & Education Services,103,Supplies and Services,504,Communications & Computing,5028,Revenue,15.SOFTWARE
21-Dec-2017,7004443,170.90,BT BUSINESS DIRECT LTD,370821,"Health, Education, Care and Safeguarding",Children's & Education Services,103,Supplies and Services,504,Miscellaneous Expenses,5034,Revenue,15.HARDWARE
21-Dec-2017,7004444,40.00,NORTH TYNESIDE COUNCIL,102767,"Health, Education, Care and Safeguarding",Children's & Education Services,103,Third Party Payments,505,Other Establishments,5041,Revenue,00.PUBLIC SECTOR
21-Dec-2017,7004444,24.00,NORTH TYNESIDE COUNCIL,102767,"Health, Education, Care and Safeguarding",Children's & Education Services,103,Third Party Payments,505,Other Establishments,5041,Revenue,00.PUBLIC SECTOR
21-Dec-2017,7004444,22.00,NORTH TYNESIDE COUNCIL,102767,"Health, Education, Care and Safeguarding",Children's & Education Services,103,Third Party Payments,505,Other Establishments,5041,Revenue,00.PUBLIC SECTOR
21-Dec-2017,7004444,24.00,NORTH TYNESIDE COUNCIL,102767,"Health, Education, Care and Safeguarding",Children's & Education Services,103,Third Party Payments,505,Other Establishments,5041,Revenue,00.PUBLIC SECTOR
21-Dec-2017,7004444,15.00,NORTH TYNESIDE COUNCIL,102767,"Health, Education, Care and Safeguarding",Children's & Education Services,103,Third Party Payments,505,Other Establishments,5041,Revenue,00.PUBLIC SECTOR
21-Dec-2017,7004444,50.00,NORTH TYNESIDE COUNCIL,102767,"Health, Education, Care and Safeguarding",Children's & Education Services,103,Third Party Payments,505,Other Establishments,5041,Revenue,00.PUBLIC SECTOR
21-Dec-2017,7004445,125.25,IKEA LTD,231453,"Environment, Housing & Leisure",Cultural & Related Services,104,Supplies and Services,504,Equipment,5023,Revenue,10.HOUSEHOLD
21-Dec-2017,7004446,32.61,NORTHUMBRIAN WATER LIMITED,014360,"Health, Education, Care and Safeguarding",Children's & Education Services,103,Third Party Payments,505,Other Establishments,5041,Revenue,27.WATER
21-Dec-2017,7004446,37.33,NORTHUMBRIAN WATER LIMITED,014360,"Health, Education, Care and Safeguarding",Children's & Education Services,103,Third Party Payments,505,Other Establishments,5041,Revenue,27.WATER
21-Dec-2017,7004447,40.00,H M COURT SERVICES,379509,Housing Revenue Account,Housing Revenue Account,N/A,Supplies and Services,504,Expenses,5030,Revenue,00.NON INFLUENCIBLE
21-Dec-2017,7004447,60.00,H M COURT SERVICES,379509,Housing Revenue Account,Housing Revenue Account,N/A,Supplies and Services,504,Expenses,5030,Revenue,00.NON INFLUENCIBLE
21-Dec-2017,7004447,12.50,H M COURT SERVICES,379509,"Health, Education, Care and Safeguarding",Children's & Education Services,103,Supplies and Services,504,Miscellaneous Expenses,5034,Revenue,00.NON INFLUENCIBLE
21-Dec-2017,7004447,100.00,H M COURT SERVICES,379509,Housing Revenue Account,Housing Revenue Account,N/A,Supplies and Services,504,Expenses,5030,Revenue,00.NON INFLUENCIBLE
21-Dec-2017,7004447,20.00,H M COURT SERVICES,379509,Housing Revenue Account,Housing Revenue Account,N/A,Supplies and Services,504,Equipment,5023,Revenue,00.NON INFLUENCIBLE
21-Dec-2017,7004448,10.49,ICELAND FROZEN FOODS PLC,308154,"Health, Education, Care and Safeguarding",Children's & Education Services,103,Third Party Payments,505,Other Establishments,5041,Revenue,03.GROCERIES & PROVISIONS
21-Dec-2017,7004449,26.66,HALFORDS,347854,Commissioning & Investment,Children's & Education Services,103,Premises-Related Expenditure,502,Cleaning and Domestic Supplies,5012,Revenue,09.FINANCIAL SERVICES
21-Dec-2017,7004449,25.42,HALFORDS,347854,"Health, Education, Care and Safeguarding",Children's & Education Services,103,Supplies and Services,504,Equipment,5023,Revenue,09.FINANCIAL SERVICES
21-Dec-2017,7004450,19.10,WM MORRISON SUPERMARKETS PLC,013562,"Environment, Housing & Leisure",Cultural & Related Services,104,Supplies and Services,504,Equipment,5023,Revenue,03.GROCERIES & PROVISIONS
21-Dec-2017,7004450,10.99,WM MORRISON SUPERMARKETS PLC,013562,"Health, Education, Care and Safeguarding",Children's & Education Services,103,Supplies and Services,504,Equipment,5023,Revenue,03.GROCERIES & PROVISIONS
21-Dec-2017,7004450,27.64,WM MORRISON SUPERMARKETS PLC,013562,"Health, Education, Care and Safeguarding",Children's & Education Services,103,Supplies and Services,504,Equipment,5023,Revenue,03.GROCERIES & PROVISIONS
21-Dec-2017,7004450,21.19,WM MORRISON SUPERMARKETS PLC,013562,"Health, Education, Care and Safeguarding",Children's & Education Services,103,Supplies and Services,504,Equipment,5023,Revenue,03.GROCERIES & PROVISIONS
21-Dec-2017,7004450,21.61,WM MORRISON SUPERMARKETS PLC,013562,"Health, Education, Care and Safeguarding",Children's & Education Services,103,Supplies and Services,504,Equipment,5023,Revenue,03.GROCERIES & PROVISIONS
21-Dec-2017,7004450,50.01,WM MORRISON SUPERMARKETS PLC,013562,"Health, Education, Care and Safeguarding",Children's & Education Services,103,Transport,503,Direct Transport Costs,5016,Revenue,03.GROCERIES & PROVISIONS
21-Dec-2017,7004450,3.47,WM MORRISON SUPERMARKETS PLC,013562,"Environment, Housing & Leisure",Adult Social Care,101,Supplies and Services,504,Equipment,5023,Revenue,03.GROCERIES & PROVISIONS
21-Dec-2017,7004451,15.00,HOLIDAY INNS,379648,Commissioning & Investment,Children's & Education Services,103,Supplies and Services,504,Expenses,5030,Revenue,HR ACCOMM
21-Dec-2017,7004452,79.17,ZERO DRY TIME LTD,395942,"Environment, Housing & Leisure",Cultural & Related Services,104,Premises-Related Expenditure,502,Cleaning and Domestic Supplies,5012,Revenue,04.CLEANING SERVICES
21-Dec-2017,7004453,14.69,GENTOO GROUP LIMITED,380575,"Health, Education, Care and Safeguarding",Children's & Education Services,103,Third Party Payments,505,Other Establishments,5041,Revenue,15.SOFTWARE
21-Dec-2017,7004453,30.00,GENTOO GROUP LIMITED,380575,"Health, Education, Care and Safeguarding",Children's & Education Services,103,Third Party Payments,505,Other Establishments,5041,Revenue,15.SOFTWARE
21-Dec-2017,7004454,21.91,ADOBE  CREATIVE CLOUD,395909,"Health, Education, Care and Safeguarding",Children's & Education Services,103,Supplies and Services,504,Communications & Computing,5028,Revenue,15.SOFTWARE
21-Dec-2017,7004455,51.45,COMPLETE CARE SHOP,395383,"Health, Education, Care and Safeguarding",Adult Social Care,101,Supplies and Services,504,Equipment,5023,Revenue,SOCIAL FITTED
21-Dec-2017,7004456,52.50,STAGECOACH SERVICES LIMITED,382363,"Health, Education, Care and Safeguarding",Capital,Capital,Supplies and Services,504,Expenses,5030,Revenue,18.TRAVEL
21-Dec-2017,7004456,38.50,STAGECOACH SERVICES LIMITED,382363,"Health, Education, Care and Safeguarding",Capital,Capital,Supplies and Services,504,Expenses,5030,Revenue,18.TRAVEL
21-Dec-2017,7004456,52.90,STAGECOACH SERVICES LIMITED,382363,"Health, Education, Care and Safeguarding",Children's & Education Services,103,Supplies and Services,504,Expenses,5030,Revenue,18.TRAVEL
21-Dec-2017,7004457,8.99,UNLIMITED WEBHOSTING,394828,"Health, Education, Care and Safeguarding",Children's & Education Services,103,Supplies and Services,504,Communications & Computing,5028,Revenue,ICT WEB
21-Dec-2017,7004458,4.94,UK HOSTING,394827,Corporate Strategy,Central Services,102,Supplies and Services,504,"Printing, Stationery and General Office Expenses",5026,Revenue,ICT WEB
21-Dec-2017,7004459,68.25,TAYLOR FOODS,394743,Commissioning & Investment,Children's & Education Services,103,Supplies and Services,504,Equipment,5023,Revenue,03.GROCERIES & PROVISIONS
21-Dec-2017,7004459,19.95,TAYLOR FOODS,394743,Commissioning & Investment,Children's & Education Services,103,Supplies and Services,504,Equipment,5023,Revenue,03.GROCERIES & PROVISIONS
21-Dec-2017,7004459,48.97,TAYLOR FOODS,394743,Commissioning & Investment,Children's & Education Services,103,Supplies and Services,504,Equipment,5023,Revenue,03.GROCERIES & PROVISIONS
21-Dec-2017,7004459,29.25,TAYLOR FOODS,394743,Commissioning & Investment,Children's & Education Services,103,Supplies and Services,504,Equipment,5023,Revenue,03.GROCERIES & PROVISIONS
21-Dec-2017,7004459,64.88,TAYLOR FOODS,394743,Commissioning & Investment,Children's & Education Services,103,Supplies and Services,504,Equipment,5023,Revenue,03.GROCERIES & PROVISIONS
21-Dec-2017,7004459,94.95,TAYLOR FOODS,394743,Commissioning & Investment,Children's & Education Services,103,Supplies and Services,504,Equipment,5023,Revenue,03.GROCERIES & PROVISIONS
21-Dec-2017,7004459,91.16,TAYLOR FOODS,394743,Commissioning & Investment,Children's & Education Services,103,Supplies and Services,504,Equipment,5023,Revenue,03.GROCERIES & PROVISIONS
21-Dec-2017,7004459,429.88,TAYLOR FOODS,394743,Commissioning & Investment,Children's & Education Services,103,Supplies and Services,504,Equipment,5023,Revenue,03.GROCERIES & PROVISIONS
21-Dec-2017,7004459,117.11,TAYLOR FOODS,394743,Commissioning & Investment,Children's & Education Services,103,Supplies and Services,504,Equipment,5023,Revenue,03.GROCERIES & PROVISIONS
21-Dec-2017,7004459,692.86,TAYLOR FOODS,394743,"Environment, Housing & Leisure",Adult Social Care,101,Supplies and Services,504,Equipment,5023,Revenue,03.GROCERIES & PROVISIONS
21-Dec-2017,7004459,38.66,TAYLOR FOODS,394743,Commissioning & Investment,Children's & Education Services,103,Supplies and Services,504,Equipment,5023,Revenue,03.GROCERIES & PROVISIONS
21-Dec-2017,7004459,46.66,TAYLOR FOODS,394743,Commissioning & Investment,Children's & Education Services,103,Supplies and Services,504,Equipment,5023,Revenue,03.GROCERIES & PROVISIONS
21-Dec-2017,7004459,58.50,TAYLOR FOODS,394743,Commissioning & Investment,Children's & Education Services,103,Supplies and Services,504,Equipment,5023,Revenue,03.GROCERIES & PROVISIONS
21-Dec-2017,7004459,20.50,TAYLOR FOODS,394743,Commissioning & Investment,Children's & Education Services,103,Supplies and Services,504,Equipment,5023,Revenue,03.GROCERIES & PROVISIONS
21-Dec-2017,7004459,29.25,TAYLOR FOODS,394743,Commissioning & Investment,Children's & Education Services,103,Supplies and Services,504,Equipment,5023,Revenue,03.GROCERIES & PROVISIONS
21-Dec-2017,7004459,32.99,TAYLOR FOODS,394743,Commissioning & Investment,Children's & Education Services,103,Supplies and Services,504,Equipment,5023,Revenue,03.GROCERIES & PROVISIONS
21-Dec-2017,7004459,204.87,TAYLOR FOODS,394743,Commissioning & Investment,Children's & Education Services,103,Supplies and Services,504,Equipment,5023,Revenue,03.GROCERIES & PROVISIONS
21-Dec-2017,7004459,38.12,TAYLOR FOODS,394743,Commissioning & Investment,Children's & Education Services,103,Supplies and Services,504,Equipment,5023,Revenue,03.GROCERIES & PROVISIONS
21-Dec-2017,7004459,81.18,TAYLOR FOODS,394743,Commissioning & Investment,Children's & Education Services,103,Supplies and Services,504,Equipment,5023,Revenue,03.GROCERIES & PROVISIONS
21-Dec-2017,7004459,195.09,TAYLOR FOODS,394743,Commissioning & Investment,Children's & Education Services,103,Supplies and Services,504,Equipment,5023,Revenue,03.GROCERIES & PROVISIONS
21-Dec-2017,7004459,207.60,TAYLOR FOODS,394743,Commissioning & Investment,Children's & Education Services,103,Supplies and Services,504,Equipment,5023,Revenue,03.GROCERIES & PROVISIONS
21-Dec-2017,7004459,39.00,TAYLOR FOODS,394743,Commissioning & Investment,Children's & Education Services,103,Supplies and Services,504,Equipment,5023,Revenue,03.GROCERIES & PROVISIONS
21-Dec-2017,7004460,35.76,AZTEC CHEMICALS LTD,327317,"Environment, Housing & Leisure",Cultural & Related Services,104,Supplies and Services,504,Equipment,5023,Revenue,05.CLEANING MATERIALS
21-Dec-2017,7004460,11.85,AZTEC CHEMICALS LTD,327317,"Environment, Housing & Leisure",Cultural & Related Services,104,Supplies and Services,504,Equipment,5023,Revenue,05.CLEANING MATERIALS
21-Dec-2017,7004460,210.47,AZTEC CHEMICALS LTD,327317,"Environment, Housing & Leisure",Cultural & Related Services,104,Supplies and Services,504,Equipment,5023,Revenue,05.CLEANING MATERIALS
21-Dec-2017,7004461,40.80,ABSOLUTE PERFORMANCE LIMITED,393364,"Environment, Housing & Leisure",Cultural & Related Services,104,Supplies and Services,504,Equipment,5023,Revenue,PLAYGROUND
21-Dec-2017,7004461,404.17,ABSOLUTE PERFORMANCE LIMITED,393364,"Environment, Housing & Leisure",Cultural & Related Services,104,Supplies and Services,504,Equipment,5023,Revenue,PLAYGROUND
21-Dec-2017,7004461,0.01,ABSOLUTE PERFORMANCE LIMITED,393364,"Environment, Housing & Leisure",Cultural & Related Services,104,Supplies and Services,504,Equipment,5023,Revenue,PLAYGROUND
21-Dec-2017,7004462,57.19,TRAVEL.CLOUD,394406,"Health, Education, Care and Safeguarding",Children's & Education Services,103,Supplies and Services,504,Expenses,5030,Revenue,18.TRAVEL
21-Dec-2017,7004462,128.12,TRAVEL.CLOUD,394406,"Health, Education, Care and Safeguarding",Children's & Education Services,103,Supplies and Services,504,Expenses,5030,Revenue,18.TRAVEL
21-Dec-2017,7004462,158.82,TRAVEL.CLOUD,394406,"Health, Education, Care and Safeguarding",Children's & Education Services,103,Supplies and Services,504,Expenses,5030,Revenue,18.TRAVEL
21-Dec-2017,7004462,197.45,TRAVEL.CLOUD,394406,Commissioning & Investment,Children's & Education Services,103,Supplies and Services,504,Expenses,5030,Revenue,18.TRAVEL
21-Dec-2017,7004462,18.84,TRAVEL.CLOUD,394406,Commissioning & Investment,Children's & Education Services,103,Supplies and Services,504,Expenses,5030,Revenue,18.TRAVEL
21-Dec-2017,7004462,142.92,TRAVEL.CLOUD,394406,"Health, Education, Care and Safeguarding",Children's & Education Services,103,Supplies and Services,504,Expenses,5030,Revenue,18.TRAVEL
21-Dec-2017,7004462,76.37,TRAVEL.CLOUD,394406,Commissioning & Investment,Children's & Education Services,103,Supplies and Services,504,Expenses,5030,Revenue,18.TRAVEL
21-Dec-2017,7004462,3.71,TRAVEL.CLOUD,394406,"Health, Education, Care and Safeguarding",Children's & Education Services,103,Supplies and Services,504,Expenses,5030,Revenue,18.TRAVEL
21-Dec-2017,7004462,226.53,TRAVEL.CLOUD,394406,"Health, Education, Care and Safeguarding",Children's & Education Services,103,Supplies and Services,504,Expenses,5030,Revenue,18.TRAVEL
21-Dec-2017,7004462,181.98,TRAVEL.CLOUD,394406,"Health, Education, Care and Safeguarding",Children's & Education Services,103,Supplies and Services,504,Expenses,5030,Revenue,18.TRAVEL
21-Dec-2017,7004462,72.65,TRAVEL.CLOUD,394406,"Health, Education, Care and Safeguarding",Children's & Education Services,103,Supplies and Services,504,Expenses,5030,Revenue,18.TRAVEL
21-Dec-2017,7004462,128.12,TRAVEL.CLOUD,394406,"Health, Education, Care and Safeguarding",Children's & Education Services,103,Supplies and Services,504,Expenses,5030,Revenue,18.TRAVEL
21-Dec-2017,7004462,161.44,TRAVEL.CLOUD,394406,Commissioning & Investment,Children's & Education Services,103,Supplies and Services,504,Expenses,5030,Revenue,18.TRAVEL
21-Dec-2017,7004462,174.45,TRAVEL.CLOUD,394406,"Health, Education, Care and Safeguarding",Capital,Capital,Supplies and Services,504,Expenses,5030,Revenue,18.TRAVEL
21-Dec-2017,7004462,171.32,TRAVEL.CLOUD,394406,"Health, Education, Care and Safeguarding",Children's & Education Services,103,Supplies and Services,504,Expenses,5030,Revenue,18.TRAVEL
21-Dec-2017,7004463,16.67,CAPRICE HOTEL,305637,"Environment, Housing & Leisure",Housing Services,108,Third Party Payments,505,Private Contractors,5042,Revenue,SOCIAL
21-Dec-2017,7004463,125.00,CAPRICE HOTEL,305637,"Environment, Housing & Leisure",Housing Services,108,Third Party Payments,505,Private Contractors,5042,Revenue,SOCIAL
21-Dec-2017,7004463,175.00,CAPRICE HOTEL,305637,"Environment, Housing & Leisure",Housing Services,108,Third Party Payments,505,Private Contractors,5042,Revenue,SOCIAL
21-Dec-2017,7004463,25.00,CAPRICE HOTEL,305637,"Environment, Housing & Leisure",Housing Services,108,Third Party Payments,505,Private Contractors,5042,Revenue,SOCIAL
21-Dec-2017,7004463,166.67,CAPRICE HOTEL,305637,"Environment, Housing & Leisure",Housing Services,108,Third Party Payments,505,Private Contractors,5042,Revenue,SOCIAL
21-Dec-2017,7004464,1.18,BAKO NORTHERN & SCOTLAND,393872,"Environment, Housing & Leisure",Adult Social Care,101,Supplies and Services,504,Equipment,5023,Revenue,03.GROCERIES & PROVISIONS
21-Dec-2017,7004464,936.75,BAKO NORTHERN & SCOTLAND,393872,"Environment, Housing & Leisure",Adult Social Care,101,Supplies and Services,504,Equipment,5023,Revenue,03.GROCERIES & PROVISIONS
21-Dec-2017,7004464,23.37,BAKO NORTHERN & SCOTLAND,393872,"Environment, Housing & Leisure",Adult Social Care,101,Supplies and Services,504,Equipment,5023,Revenue,03.GROCERIES & PROVISIONS
21-Dec-2017,7004465,10.82,W BOYES & CO LTD,393691,"Health, Education, Care and Safeguarding",Capital,Capital,Supplies and Services,504,Equipment,5023,Revenue,05.EQUIPMENT
21-Dec-2017,7004465,0.01,W BOYES & CO LTD,393691,"Health, Education, Care and Safeguarding",Capital,Capital,Supplies and Services,504,Equipment,5023,Revenue,05.EQUIPMENT
21-Dec-2017,7004466,28.57,TOOLSTATION LTD,393689,"Environment, Housing & Leisure",Cultural & Related Services,104,Supplies and Services,504,Equipment,5023,Revenue,13.EQUIPMENT
21-Dec-2017,7004467,16.80,CMT (UK) LTD - GLASGOW,393673,Business & Economic Development,Planning Services ,110,Supplies and Services,504,"Printing, Stationery and General Office Expenses",5026,Revenue,18.TRAVEL
21-Dec-2017,7004467,13.65,CMT (UK) LTD - GLASGOW,393673,Business & Economic Development,Planning Services ,110,Supplies and Services,504,"Printing, Stationery and General Office Expenses",5026,Revenue,18.TRAVEL
21-Dec-2017,7004468,44.00,SOLO PRESS,393572,"Health, Education, Care and Safeguarding",Children's & Education Services,103,Supplies and Services,504,"Printing, Stationery and General Office Expenses",5026,Revenue,PRINT PRINT
21-Dec-2017,7004468,116.00,SOLO PRESS,393572,"Health, Education, Care and Safeguarding",Children's & Education Services,103,Supplies and Services,504,"Printing, Stationery and General Office Expenses",5026,Revenue,PRINT PRINT
21-Dec-2017,7004469,11.20,FACEBOOK,393228,"Environment, Housing & Leisure",Cultural & Related Services,104,Supplies and Services,504,"Printing, Stationery and General Office Expenses",5026,Revenue,16.ADVERTISING
21-Dec-2017,7004469,16.14,FACEBOOK,393228,"Environment, Housing & Leisure",Cultural & Related Services,104,Supplies and Services,504,"Printing, Stationery and General Office Expenses",5026,Revenue,16.ADVERTISING
21-Dec-2017,7004470,833.33,MERLIN ARCHERY LIMITED,393159,"Environment, Housing & Leisure",Cultural & Related Services,104,Supplies and Services,504,Equipment,5023,Revenue,SPORTS EQUIP
21-Dec-2017,7004470,54.23,MERLIN ARCHERY LIMITED,393159,"Environment, Housing & Leisure",Cultural & Related Services,104,Supplies and Services,504,Equipment,5023,Revenue,SPORTS EQUIP
21-Dec-2017,7004471,67.69,Hosting24,393155,"Health, Education, Care and Safeguarding",Adult Social Care,101,Supplies and Services,504,Communications & Computing,5028,Revenue,15.SOFTWARE
21-Dec-2017,7004472,93.17,TOWING AND TRAILERS LTD,392798,"Health, Education, Care and Safeguarding",Children's & Education Services,103,Premises-Related Expenditure,502,"Repairs, alterations and maintenance of buildings",5005,Revenue,VEHICLE RECOVERY
21-Dec-2017,7004473,53.31,TK MAXX,392657,"Health, Education, Care and Safeguarding",Children's & Education Services,103,Supplies and Services,504,Equipment,5023,Revenue,10.HOUSEHOLD
21-Dec-2017,7004473,87.36,TK MAXX,392657,"Health, Education, Care and Safeguarding",Children's & Education Services,103,Supplies and Services,504,Miscellaneous Expenses,5034,Revenue,10.HOUSEHOLD
21-Dec-2017,7004473,32.44,TK MAXX,392657,"Health, Education, Care and Safeguarding",Children's & Education Services,103,Supplies and Services,504,"Clothing, Uniforms and Laundry",5025,Revenue,10.HOUSEHOLD
21-Dec-2017,7004473,64.98,TK MAXX,392657,"Health, Education, Care and Safeguarding",Children's & Education Services,103,Supplies and Services,504,"Clothing, Uniforms and Laundry",5025,Revenue,10.HOUSEHOLD
21-Dec-2017,7004474,51.60,PRESCRIPTIONS CHG,392421,"Health, Education, Care and Safeguarding",Adult Social Care,101,Supplies and Services,504,Miscellaneous Expenses,5034,Revenue,00.DOCTORS/MEDICAL FEES
21-Dec-2017,7004474,51.60,PRESCRIPTIONS CHG,392421,"Health, Education, Care and Safeguarding",Adult Social Care,101,Supplies and Services,504,Miscellaneous Expenses,5034,Revenue,00.DOCTORS/MEDICAL FEES
21-Dec-2017,7004475,106.26,KENDAL YARD,392417,"Health, Education, Care and Safeguarding",Children's & Education Services,103,Premises-Related Expenditure,502,"Repairs, alterations and maintenance of buildings",5005,Revenue,BUILD GEN
21-Dec-2017,7004476,20.00,KASH RETAIL,392132,Housing Revenue Account,Adult Social Care,101,Premises-Related Expenditure,502,Energy Costs,5006,Revenue,03.GROCERIES & PROVISIONS
21-Dec-2017,7004477,178.32,AO RETAIL LIMITED,392123,"Health, Education, Care and Safeguarding",Children's & Education Services,103,Third Party Payments,505,Other Establishments,5041,Revenue,03.CROCKERY
21-Dec-2017,7004478,434.87,ON A ROLL SANDWICH COMPANY,391893,Commissioning & Investment,Children's & Education Services,103,Supplies and Services,504,Equipment,5023,Revenue,03.GROCERIES & PROVISIONS
21-Dec-2017,7004478,590.79,ON A ROLL SANDWICH COMPANY,391893,Commissioning & Investment,Children's & Education Services,103,Supplies and Services,504,Equipment,5023,Revenue,03.GROCERIES & PROVISIONS
21-Dec-2017,7004478,212.80,ON A ROLL SANDWICH COMPANY,391893,Commissioning & Investment,Children's & Education Services,103,Supplies and Services,504,Equipment,5023,Revenue,03.GROCERIES & PROVISIONS
21-Dec-2017,7004478,269.68,ON A ROLL SANDWICH COMPANY,391893,Commissioning & Investment,Children's & Education Services,103,Supplies and Services,504,Equipment,5023,Revenue,03.GROCERIES & PROVISIONS
21-Dec-2017,7004478,80.48,ON A ROLL SANDWICH COMPANY,391893,Commissioning & Investment,Children's & Education Services,103,Supplies and Services,504,Equipment,5023,Revenue,03.GROCERIES & PROVISIONS
21-Dec-2017,7004478,52.24,ON A ROLL SANDWICH COMPANY,391893,Commissioning & Investment,Children's & Education Services,103,Supplies and Services,504,Equipment,5023,Revenue,03.GROCERIES & PROVISIONS
21-Dec-2017,7004478,774.04,ON A ROLL SANDWICH COMPANY,391893,Commissioning & Investment,Children's & Education Services,103,Supplies and Services,504,Equipment,5023,Revenue,03.GROCERIES & PROVISIONS
21-Dec-2017,7004478,89.14,ON A ROLL SANDWICH COMPANY,391893,Commissioning & Investment,Children's & Education Services,103,Supplies and Services,504,Equipment,5023,Revenue,03.GROCERIES & PROVISIONS
21-Dec-2017,7004478,233.45,ON A ROLL SANDWICH COMPANY,391893,Commissioning & Investment,Children's & Education Services,103,Supplies and Services,504,Equipment,5023,Revenue,03.GROCERIES & PROVISIONS
21-Dec-2017,7004478,703.62,ON A ROLL SANDWICH COMPANY,391893,Commissioning & Investment,Children's & Education Services,103,Supplies and Services,504,Equipment,5023,Revenue,03.GROCERIES & PROVISIONS
21-Dec-2017,7004478,349.94,ON A ROLL SANDWICH COMPANY,391893,Commissioning & Investment,Children's & Education Services,103,Supplies and Services,504,Equipment,5023,Revenue,03.GROCERIES & PROVISIONS
21-Dec-2017,7004478,90.93,ON A ROLL SANDWICH COMPANY,391893,Commissioning & Investment,Children's & Education Services,103,Supplies and Services,504,Equipment,5023,Revenue,03.GROCERIES & PROVISIONS
21-Dec-2017,7004478,378.86,ON A ROLL SANDWICH COMPANY,391893,Commissioning & Investment,Children's & Education Services,103,Supplies and Services,504,Equipment,5023,Revenue,03.GROCERIES & PROVISIONS
21-Dec-2017,7004478,849.20,ON A ROLL SANDWICH COMPANY,391893,Commissioning & Investment,Children's & Education Services,103,Supplies and Services,504,Equipment,5023,Revenue,03.GROCERIES & PROVISIONS
21-Dec-2017,7004478,367.07,ON A ROLL SANDWICH COMPANY,391893,Commissioning & Investment,Children's & Education Services,103,Supplies and Services,504,Equipment,5023,Revenue,03.GROCERIES & PROVISIONS
21-Dec-2017,7004479,145.00,BOURNE LEISURE LTD,346426,"Health, Education, Care and Safeguarding",Children's & Education Services,103,Supplies and Services,504,Equipment,5023,Revenue,HR ACCOMM
21-Dec-2017,7004480,5.21,M&S SIMPLY FOOD,391846,Business & Economic Development,Planning Services ,110,Supplies and Services,504,"Printing, Stationery and General Office Expenses",5026,Revenue,03.GROCERIES & PROVISIONS
21-Dec-2017,7004481,6.65,WOWCHER,391491,"Health, Education, Care and Safeguarding",Children's & Education Services,103,Supplies and Services,504,Miscellaneous Expenses,5034,Revenue,18.BOOKS & PUBLICATIONS
21-Dec-2017,7004481,50.00,WOWCHER,391491,"Health, Education, Care and Safeguarding",Children's & Education Services,103,Supplies and Services,504,Miscellaneous Expenses,5034,Revenue,18.BOOKS & PUBLICATIONS
21-Dec-2017,7004481,11.63,WOWCHER,391491,"Health, Education, Care and Safeguarding",Children's & Education Services,103,Supplies and Services,504,Equipment,5023,Revenue,18.BOOKS & PUBLICATIONS
21-Dec-2017,7004482,11.58,ROADCHEF,391254,"Health, Education, Care and Safeguarding",Children's & Education Services,103,Supplies and Services,504,Expenses,5030,Revenue,03.GROCERIES & PROVISIONS
21-Dec-2017,7004483,1.56,REDBRIDGE PRODUCE & FLOWERS LTD T/A TOTAL PRODUCE,390977,Commissioning & Investment,Children's & Education Services,103,Supplies and Services,504,Equipment,5023,Revenue,03.GROCERIES & PROVISIONS
21-Dec-2017,7004483,1.78,REDBRIDGE PRODUCE & FLOWERS LTD T/A TOTAL PRODUCE,390977,Commissioning & Investment,Children's & Education Services,103,Supplies and Services,504,Equipment,5023,Revenue,03.GROCERIES & PROVISIONS
21-Dec-2017,7004483,5.50,REDBRIDGE PRODUCE & FLOWERS LTD T/A TOTAL PRODUCE,390977,Commissioning & Investment,Children's & Education Services,103,Supplies and Services,504,Equipment,5023,Revenue,03.GROCERIES & PROVISIONS
21-Dec-2017,7004483,3.30,REDBRIDGE PRODUCE & FLOWERS LTD T/A TOTAL PRODUCE,390977,Commissioning & Investment,Children's & Education Services,103,Supplies and Services,504,Equipment,5023,Revenue,03.GROCERIES & PROVISIONS
21-Dec-2017,7004483,1.53,REDBRIDGE PRODUCE & FLOWERS LTD T/A TOTAL PRODUCE,390977,Commissioning & Investment,Children's & Education Services,103,Supplies and Services,504,Equipment,5023,Revenue,03.GROCERIES & PROVISIONS
21-Dec-2017,7004483,1.53,REDBRIDGE PRODUCE & FLOWERS LTD T/A TOTAL PRODUCE,390977,Commissioning & Investment,Children's & Education Services,103,Supplies and Services,504,Equipment,5023,Revenue,03.GROCERIES & PROVISIONS
21-Dec-2017,7004483,0.76,REDBRIDGE PRODUCE & FLOWERS LTD T/A TOTAL PRODUCE,390977,Commissioning & Investment,Children's & Education Services,103,Supplies and Services,504,Equipment,5023,Revenue,03.GROCERIES & PROVISIONS
21-Dec-2017,7004483,1.25,REDBRIDGE PRODUCE & FLOWERS LTD T/A TOTAL PRODUCE,390977,Commissioning & Investment,Children's & Education Services,103,Supplies and Services,504,Equipment,5023,Revenue,03.GROCERIES & PROVISIONS
21-Dec-2017,7004483,19.01,REDBRIDGE PRODUCE & FLOWERS LTD T/A TOTAL PRODUCE,390977,Commissioning & Investment,Children's & Education Services,103,Supplies and Services,504,Equipment,5023,Revenue,03.GROCERIES & PROVISIONS
21-Dec-2017,7004483,77.19,REDBRIDGE PRODUCE & FLOWERS LTD T/A TOTAL PRODUCE,390977,Commissioning & Investment,Children's & Education Services,103,Supplies and Services,504,Equipment,5023,Revenue,03.GROCERIES & PROVISIONS
21-Dec-2017,7004483,134.31,REDBRIDGE PRODUCE & FLOWERS LTD T/A TOTAL PRODUCE,390977,Commissioning & Investment,Children's & Education Services,103,Supplies and Services,504,Equipment,5023,Revenue,03.GROCERIES & PROVISIONS
21-Dec-2017,7004483,80.37,REDBRIDGE PRODUCE & FLOWERS LTD T/A TOTAL PRODUCE,390977,Commissioning & Investment,Children's & Education Services,103,Supplies and Services,504,Equipment,5023,Revenue,03.GROCERIES & PROVISIONS
21-Dec-2017,7004483,8.80,REDBRIDGE PRODUCE & FLOWERS LTD T/A TOTAL PRODUCE,390977,Commissioning & Investment,Children's & Education Services,103,Supplies and Services,504,Equipment,5023,Revenue,03.GROCERIES & PROVISIONS
21-Dec-2017,7004483,1.78,REDBRIDGE PRODUCE & FLOWERS LTD T/A TOTAL PRODUCE,390977,Commissioning & Investment,Children's & Education Services,103,Supplies and Services,504,Equipment,5023,Revenue,03.GROCERIES & PROVISIONS
21-Dec-2017,7004483,8.80,REDBRIDGE PRODUCE & FLOWERS LTD T/A TOTAL PRODUCE,390977,Commissioning & Investment,Children's & Education Services,103,Supplies and Services,504,Equipment,5023,Revenue,03.GROCERIES & PROVISIONS
21-Dec-2017,7004483,4.45,REDBRIDGE PRODUCE & FLOWERS LTD T/A TOTAL PRODUCE,390977,Commissioning & Investment,Children's & Education Services,103,Supplies and Services,504,Equipment,5023,Revenue,03.GROCERIES & PROVISIONS
21-Dec-2017,7004483,1.25,REDBRIDGE PRODUCE & FLOWERS LTD T/A TOTAL PRODUCE,390977,Commissioning & Investment,Children's & Education Services,103,Supplies and Services,504,Equipment,5023,Revenue,03.GROCERIES & PROVISIONS
21-Dec-2017,7004483,4.40,REDBRIDGE PRODUCE & FLOWERS LTD T/A TOTAL PRODUCE,390977,Commissioning & Investment,Children's & Education Services,103,Supplies and Services,504,Equipment,5023,Revenue,03.GROCERIES & PROVISIONS
21-Dec-2017,7004483,287.88,REDBRIDGE PRODUCE & FLOWERS LTD T/A TOTAL PRODUCE,390977,Commissioning & Investment,Children's & Education Services,103,Supplies and Services,504,Equipment,5023,Revenue,03.GROCERIES & PROVISIONS
21-Dec-2017,7004483,0.85,REDBRIDGE PRODUCE & FLOWERS LTD T/A TOTAL PRODUCE,390977,"Environment, Housing & Leisure",Cultural & Related Services,104,Supplies and Services,504,Equipment,5023,Revenue,03.GROCERIES & PROVISIONS
21-Dec-2017,7004483,0.27,REDBRIDGE PRODUCE & FLOWERS LTD T/A TOTAL PRODUCE,390977,"Environment, Housing & Leisure",Cultural & Related Services,104,Supplies and Services,504,Equipment,5023,Revenue,03.GROCERIES & PROVISIONS
21-Dec-2017,7004483,61.51,REDBRIDGE PRODUCE & FLOWERS LTD T/A TOTAL PRODUCE,390977,Commissioning & Investment,Children's & Education Services,103,Supplies and Services,504,Equipment,5023,Revenue,03.GROCERIES & PROVISIONS
21-Dec-2017,7004483,30.65,REDBRIDGE PRODUCE & FLOWERS LTD T/A TOTAL PRODUCE,390977,Commissioning & Investment,Children's & Education Services,103,Supplies and Services,504,Equipment,5023,Revenue,03.GROCERIES & PROVISIONS
21-Dec-2017,7004483,0.39,REDBRIDGE PRODUCE & FLOWERS LTD T/A TOTAL PRODUCE,390977,Commissioning & Investment,Children's & Education Services,103,Supplies and Services,504,Equipment,5023,Revenue,03.GROCERIES & PROVISIONS
21-Dec-2017,7004483,8.40,REDBRIDGE PRODUCE & FLOWERS LTD T/A TOTAL PRODUCE,390977,Commissioning & Investment,Children's & Education Services,103,Supplies and Services,504,Equipment,5023,Revenue,03.GROCERIES & PROVISIONS
21-Dec-2017,7004483,1.18,REDBRIDGE PRODUCE & FLOWERS LTD T/A TOTAL PRODUCE,390977,Commissioning & Investment,Children's & Education Services,103,Supplies and Services,504,Equipment,5023,Revenue,03.GROCERIES & PROVISIONS
21-Dec-2017,7004483,17.60,REDBRIDGE PRODUCE & FLOWERS LTD T/A TOTAL PRODUCE,390977,Commissioning & Investment,Children's & Education Services,103,Supplies and Services,504,Equipment,5023,Revenue,03.GROCERIES & PROVISIONS
21-Dec-2017,7004483,1.78,REDBRIDGE PRODUCE & FLOWERS LTD T/A TOTAL PRODUCE,390977,Commissioning & Investment,Children's & Education Services,103,Supplies and Services,504,Equipment,5023,Revenue,03.GROCERIES & PROVISIONS
21-Dec-2017,7004483,24.40,REDBRIDGE PRODUCE & FLOWERS LTD T/A TOTAL PRODUCE,390977,"Environment, Housing & Leisure",Adult Social Care,101,Supplies and Services,504,Equipment,5023,Revenue,03.GROCERIES & PROVISIONS
21-Dec-2017,7004483,2.08,REDBRIDGE PRODUCE & FLOWERS LTD T/A TOTAL PRODUCE,390977,Commissioning & Investment,Children's & Education Services,103,Supplies and Services,504,Equipment,5023,Revenue,03.GROCERIES & PROVISIONS
21-Dec-2017,7004483,42.42,REDBRIDGE PRODUCE & FLOWERS LTD T/A TOTAL PRODUCE,390977,Commissioning & Investment,Children's & Education Services,103,Supplies and Services,504,Equipment,5023,Revenue,03.GROCERIES & PROVISIONS
21-Dec-2017,7004483,6.12,REDBRIDGE PRODUCE & FLOWERS LTD T/A TOTAL PRODUCE,390977,Commissioning & Investment,Children's & Education Services,103,Supplies and Services,504,Equipment,5023,Revenue,03.GROCERIES & PROVISIONS
21-Dec-2017,7004483,-1.27,REDBRIDGE PRODUCE & FLOWERS LTD T/A TOTAL PRODUCE,390977,Commissioning & Investment,Children's & Education Services,103,Supplies and Services,504,Equipment,5023,Revenue,03.GROCERIES & PROVISIONS
21-Dec-2017,7004483,6.36,REDBRIDGE PRODUCE & FLOWERS LTD T/A TOTAL PRODUCE,390977,Commissioning & Investment,Children's & Education Services,103,Supplies and Services,504,Equipment,5023,Revenue,03.GROCERIES & PROVISIONS
21-Dec-2017,7004483,81.84,REDBRIDGE PRODUCE & FLOWERS LTD T/A TOTAL PRODUCE,390977,Commissioning & Investment,Children's & Education Services,103,Supplies and Services,504,Equipment,5023,Revenue,03.GROCERIES & PROVISIONS
21-Dec-2017,7004483,2.20,REDBRIDGE PRODUCE & FLOWERS LTD T/A TOTAL PRODUCE,390977,Commissioning & Investment,Children's & Education Services,103,Supplies and Services,504,Equipment,5023,Revenue,03.GROCERIES & PROVISIONS
21-Dec-2017,7004483,72.21,REDBRIDGE PRODUCE & FLOWERS LTD T/A TOTAL PRODUCE,390977,Commissioning & Investment,Children's & Education Services,103,Supplies and Services,504,Equipment,5023,Revenue,03.GROCERIES & PROVISIONS
21-Dec-2017,7004483,136.82,REDBRIDGE PRODUCE & FLOWERS LTD T/A TOTAL PRODUCE,390977,Commissioning & Investment,Children's & Education Services,103,Supplies and Services,504,Equipment,5023,Revenue,03.GROCERIES & PROVISIONS
21-Dec-2017,7004483,2.32,REDBRIDGE PRODUCE & FLOWERS LTD T/A TOTAL PRODUCE,390977,Commissioning & Investment,Children's & Education Services,103,Supplies and Services,504,Equipment,5023,Revenue,03.GROCERIES & PROVISIONS
21-Dec-2017,7004483,0.39,REDBRIDGE PRODUCE & FLOWERS LTD T/A TOTAL PRODUCE,390977,Commissioning & Investment,Children's & Education Services,103,Supplies and Services,504,Equipment,5023,Revenue,03.GROCERIES & PROVISIONS
21-Dec-2017,7004483,1.78,REDBRIDGE PRODUCE & FLOWERS LTD T/A TOTAL PRODUCE,390977,Commissioning & Investment,Children's & Education Services,103,Supplies and Services,504,Equipment,5023,Revenue,03.GROCERIES & PROVISIONS
21-Dec-2017,7004483,47.70,REDBRIDGE PRODUCE & FLOWERS LTD T/A TOTAL PRODUCE,390977,Commissioning & Investment,Children's & Education Services,103,Supplies and Services,504,Equipment,5023,Revenue,03.GROCERIES & PROVISIONS
21-Dec-2017,7004483,6.60,REDBRIDGE PRODUCE & FLOWERS LTD T/A TOTAL PRODUCE,390977,Commissioning & Investment,Children's & Education Services,103,Supplies and Services,504,Equipment,5023,Revenue,03.GROCERIES & PROVISIONS
21-Dec-2017,7004483,0.77,REDBRIDGE PRODUCE & FLOWERS LTD T/A TOTAL PRODUCE,390977,Commissioning & Investment,Children's & Education Services,103,Supplies and Services,504,Equipment,5023,Revenue,03.GROCERIES & PROVISIONS
21-Dec-2017,7004483,26.75,REDBRIDGE PRODUCE & FLOWERS LTD T/A TOTAL PRODUCE,390977,Commissioning & Investment,Children's & Education Services,103,Supplies and Services,504,Equipment,5023,Revenue,03.GROCERIES & PROVISIONS
21-Dec-2017,7004483,48.30,REDBRIDGE PRODUCE & FLOWERS LTD T/A TOTAL PRODUCE,390977,Commissioning & Investment,Children's & Education Services,103,Supplies and Services,504,Equipment,5023,Revenue,03.GROCERIES & PROVISIONS
21-Dec-2017,7004483,1.78,REDBRIDGE PRODUCE & FLOWERS LTD T/A TOTAL PRODUCE,390977,Commissioning & Investment,Children's & Education Services,103,Supplies and Services,504,Equipment,5023,Revenue,03.GROCERIES & PROVISIONS
21-Dec-2017,7004483,-10.59,REDBRIDGE PRODUCE & FLOWERS LTD T/A TOTAL PRODUCE,390977,Commissioning & Investment,Children's & Education Services,103,Supplies and Services,504,Equipment,5023,Revenue,03.GROCERIES & PROVISIONS
21-Dec-2017,7004483,3.06,REDBRIDGE PRODUCE & FLOWERS LTD T/A TOTAL PRODUCE,390977,Commissioning & Investment,Children's & Education Services,103,Supplies and Services,504,Equipment,5023,Revenue,03.GROCERIES & PROVISIONS
21-Dec-2017,7004483,36.59,REDBRIDGE PRODUCE & FLOWERS LTD T/A TOTAL PRODUCE,390977,Commissioning & Investment,Children's & Education Services,103,Supplies and Services,504,Equipment,5023,Revenue,03.GROCERIES & PROVISIONS
21-Dec-2017,7004483,0.78,REDBRIDGE PRODUCE & FLOWERS LTD T/A TOTAL PRODUCE,390977,Commissioning & Investment,Children's & Education Services,103,Supplies and Services,504,Equipment,5023,Revenue,03.GROCERIES & PROVISIONS
21-Dec-2017,7004483,2.44,REDBRIDGE PRODUCE & FLOWERS LTD T/A TOTAL PRODUCE,390977,Commissioning & Investment,Children's & Education Services,103,Supplies and Services,504,Equipment,5023,Revenue,03.GROCERIES & PROVISIONS
21-Dec-2017,7004483,0.78,REDBRIDGE PRODUCE & FLOWERS LTD T/A TOTAL PRODUCE,390977,Commissioning & Investment,Children's & Education Services,103,Supplies and Services,504,Equipment,5023,Revenue,03.GROCERIES & PROVISIONS
21-Dec-2017,7004483,13.20,REDBRIDGE PRODUCE & FLOWERS LTD T/A TOTAL PRODUCE,390977,Commissioning & Investment,Children's & Education Services,103,Supplies and Services,504,Equipment,5023,Revenue,03.GROCERIES & PROVISIONS
21-Dec-2017,7004483,5.50,REDBRIDGE PRODUCE & FLOWERS LTD T/A TOTAL PRODUCE,390977,Commissioning & Investment,Children's & Education Services,103,Supplies and Services,504,Equipment,5023,Revenue,03.GROCERIES & PROVISIONS
21-Dec-2017,7004483,6.42,REDBRIDGE PRODUCE & FLOWERS LTD T/A TOTAL PRODUCE,390977,Commissioning & Investment,Children's & Education Services,103,Supplies and Services,504,Equipment,5023,Revenue,03.GROCERIES & PROVISIONS
21-Dec-2017,7004483,59.98,REDBRIDGE PRODUCE & FLOWERS LTD T/A TOTAL PRODUCE,390977,Commissioning & Investment,Children's & Education Services,103,Supplies and Services,504,Equipment,5023,Revenue,03.GROCERIES & PROVISIONS
21-Dec-2017,7004483,0.78,REDBRIDGE PRODUCE & FLOWERS LTD T/A TOTAL PRODUCE,390977,Commissioning & Investment,Children's & Education Services,103,Supplies and Services,504,Equipment,5023,Revenue,03.GROCERIES & PROVISIONS
21-Dec-2017,7004483,22.02,REDBRIDGE PRODUCE & FLOWERS LTD T/A TOTAL PRODUCE,390977,Commissioning & Investment,Children's & Education Services,103,Supplies and Services,504,Equipment,5023,Revenue,03.GROCERIES & PROVISIONS
21-Dec-2017,7004483,1.08,REDBRIDGE PRODUCE & FLOWERS LTD T/A TOTAL PRODUCE,390977,Commissioning & Investment,Children's & Education Services,103,Supplies and Services,504,Equipment,5023,Revenue,03.GROCERIES & PROVISIONS
21-Dec-2017,7004483,2.88,REDBRIDGE PRODUCE & FLOWERS LTD T/A TOTAL PRODUCE,390977,Commissioning & Investment,Children's & Education Services,103,Supplies and Services,504,Equipment,5023,Revenue,03.GROCERIES & PROVISIONS
21-Dec-2017,7004483,3.56,REDBRIDGE PRODUCE & FLOWERS LTD T/A TOTAL PRODUCE,390977,Commissioning & Investment,Children's & Education Services,103,Supplies and Services,504,Equipment,5023,Revenue,03.GROCERIES & PROVISIONS
21-Dec-2017,7004483,-7.77,REDBRIDGE PRODUCE & FLOWERS LTD T/A TOTAL PRODUCE,390977,Commissioning & Investment,Children's & Education Services,103,Supplies and Services,504,Equipment,5023,Revenue,03.GROCERIES & PROVISIONS
21-Dec-2017,7004483,1.78,REDBRIDGE PRODUCE & FLOWERS LTD T/A TOTAL PRODUCE,390977,Commissioning & Investment,Children's & Education Services,103,Supplies and Services,504,Equipment,5023,Revenue,03.GROCERIES & PROVISIONS
21-Dec-2017,7004483,3.06,REDBRIDGE PRODUCE & FLOWERS LTD T/A TOTAL PRODUCE,390977,Commissioning & Investment,Children's & Education Services,103,Supplies and Services,504,Equipment,5023,Revenue,03.GROCERIES & PROVISIONS
21-Dec-2017,7004483,12.36,REDBRIDGE PRODUCE & FLOWERS LTD T/A TOTAL PRODUCE,390977,Commissioning & Investment,Children's & Education Services,103,Supplies and Services,504,Equipment,5023,Revenue,03.GROCERIES & PROVISIONS
21-Dec-2017,7004483,50.44,REDBRIDGE PRODUCE & FLOWERS LTD T/A TOTAL PRODUCE,390977,Commissioning & Investment,Children's & Education Services,103,Supplies and Services,504,Equipment,5023,Revenue,03.GROCERIES & PROVISIONS
21-Dec-2017,7004483,-0.89,REDBRIDGE PRODUCE & FLOWERS LTD T/A TOTAL PRODUCE,390977,Commissioning & Investment,Children's & Education Services,103,Supplies and Services,504,Equipment,5023,Revenue,03.GROCERIES & PROVISIONS
21-Dec-2017,7004483,9.33,REDBRIDGE PRODUCE & FLOWERS LTD T/A TOTAL PRODUCE,390977,Commissioning & Investment,Children's & Education Services,103,Supplies and Services,504,Equipment,5023,Revenue,03.GROCERIES & PROVISIONS
21-Dec-2017,7004483,75.85,REDBRIDGE PRODUCE & FLOWERS LTD T/A TOTAL PRODUCE,390977,Commissioning & Investment,Children's & Education Services,103,Supplies and Services,504,Equipment,5023,Revenue,03.GROCERIES & PROVISIONS
21-Dec-2017,7004483,1.48,REDBRIDGE PRODUCE & FLOWERS LTD T/A TOTAL PRODUCE,390977,Commissioning & Investment,Children's & Education Services,103,Supplies and Services,504,Equipment,5023,Revenue,03.GROCERIES & PROVISIONS
21-Dec-2017,7004483,1.15,REDBRIDGE PRODUCE & FLOWERS LTD T/A TOTAL PRODUCE,390977,Commissioning & Investment,Children's & Education Services,103,Supplies and Services,504,Equipment,5023,Revenue,03.GROCERIES & PROVISIONS
21-Dec-2017,7004483,2.20,REDBRIDGE PRODUCE & FLOWERS LTD T/A TOTAL PRODUCE,390977,Commissioning & Investment,Children's & Education Services,103,Supplies and Services,504,Equipment,5023,Revenue,03.GROCERIES & PROVISIONS
21-Dec-2017,7004483,6.12,REDBRIDGE PRODUCE & FLOWERS LTD T/A TOTAL PRODUCE,390977,Commissioning & Investment,Children's & Education Services,103,Supplies and Services,504,Equipment,5023,Revenue,03.GROCERIES & PROVISIONS
21-Dec-2017,7004483,0.98,REDBRIDGE PRODUCE & FLOWERS LTD T/A TOTAL PRODUCE,390977,Commissioning & Investment,Children's & Education Services,103,Supplies and Services,504,Equipment,5023,Revenue,03.GROCERIES & PROVISIONS
21-Dec-2017,7004483,42.63,REDBRIDGE PRODUCE & FLOWERS LTD T/A TOTAL PRODUCE,390977,Commissioning & Investment,Children's & Education Services,103,Supplies and Services,504,Equipment,5023,Revenue,03.GROCERIES & PROVISIONS
21-Dec-2017,7004483,0.78,REDBRIDGE PRODUCE & FLOWERS LTD T/A TOTAL PRODUCE,390977,Commissioning & Investment,Children's & Education Services,103,Supplies and Services,504,Equipment,5023,Revenue,03.GROCERIES & PROVISIONS
21-Dec-2017,7004483,22.92,REDBRIDGE PRODUCE & FLOWERS LTD T/A TOTAL PRODUCE,390977,Commissioning & Investment,Children's & Education Services,103,Supplies and Services,504,Equipment,5023,Revenue,03.GROCERIES & PROVISIONS
21-Dec-2017,7004483,25.01,REDBRIDGE PRODUCE & FLOWERS LTD T/A TOTAL PRODUCE,390977,Commissioning & Investment,Children's & Education Services,103,Supplies and Services,504,Equipment,5023,Revenue,03.GROCERIES & PROVISIONS
21-Dec-2017,7004483,65.65,REDBRIDGE PRODUCE & FLOWERS LTD T/A TOTAL PRODUCE,390977,Commissioning & Investment,Children's & Education Services,103,Supplies and Services,504,Equipment,5023,Revenue,03.GROCERIES & PROVISIONS
21-Dec-2017,7004483,4.45,REDBRIDGE PRODUCE & FLOWERS LTD T/A TOTAL PRODUCE,390977,Commissioning & Investment,Children's & Education Services,103,Supplies and Services,504,Equipment,5023,Revenue,03.GROCERIES & PROVISIONS
21-Dec-2017,7004483,1.25,REDBRIDGE PRODUCE & FLOWERS LTD T/A TOTAL PRODUCE,390977,Commissioning & Investment,Children's & Education Services,103,Supplies and Services,504,Equipment,5023,Revenue,03.GROCERIES & PROVISIONS
21-Dec-2017,7004483,3.30,REDBRIDGE PRODUCE & FLOWERS LTD T/A TOTAL PRODUCE,390977,Commissioning & Investment,Children's & Education Services,103,Supplies and Services,504,Equipment,5023,Revenue,03.GROCERIES & PROVISIONS
21-Dec-2017,7004483,1.09,REDBRIDGE PRODUCE & FLOWERS LTD T/A TOTAL PRODUCE,390977,Commissioning & Investment,Children's & Education Services,103,Supplies and Services,504,Equipment,5023,Revenue,03.GROCERIES & PROVISIONS
21-Dec-2017,7004483,1.53,REDBRIDGE PRODUCE & FLOWERS LTD T/A TOTAL PRODUCE,390977,Commissioning & Investment,Children's & Education Services,103,Supplies and Services,504,Equipment,5023,Revenue,03.GROCERIES & PROVISIONS
21-Dec-2017,7004483,0.78,REDBRIDGE PRODUCE & FLOWERS LTD T/A TOTAL PRODUCE,390977,Commissioning & Investment,Children's & Education Services,103,Supplies and Services,504,Equipment,5023,Revenue,03.GROCERIES & PROVISIONS
21-Dec-2017,7004483,183.62,REDBRIDGE PRODUCE & FLOWERS LTD T/A TOTAL PRODUCE,390977,Commissioning & Investment,Children's & Education Services,103,Supplies and Services,504,Equipment,5023,Revenue,03.GROCERIES & PROVISIONS
21-Dec-2017,7004483,8.91,REDBRIDGE PRODUCE & FLOWERS LTD T/A TOTAL PRODUCE,390977,Commissioning & Investment,Children's & Education Services,103,Supplies and Services,504,Equipment,5023,Revenue,03.GROCERIES & PROVISIONS
21-Dec-2017,7004483,33.00,REDBRIDGE PRODUCE & FLOWERS LTD T/A TOTAL PRODUCE,390977,"Environment, Housing & Leisure",Cultural & Related Services,104,Supplies and Services,504,Equipment,5023,Revenue,03.GROCERIES & PROVISIONS
21-Dec-2017,7004483,26.70,REDBRIDGE PRODUCE & FLOWERS LTD T/A TOTAL PRODUCE,390977,Commissioning & Investment,Children's & Education Services,103,Supplies and Services,504,Equipment,5023,Revenue,03.GROCERIES & PROVISIONS
21-Dec-2017,7004483,4.16,REDBRIDGE PRODUCE & FLOWERS LTD T/A TOTAL PRODUCE,390977,Commissioning & Investment,Children's & Education Services,103,Supplies and Services,504,Equipment,5023,Revenue,03.GROCERIES & PROVISIONS
21-Dec-2017,7004483,74.16,REDBRIDGE PRODUCE & FLOWERS LTD T/A TOTAL PRODUCE,390977,Commissioning & Investment,Children's & Education Services,103,Supplies and Services,504,Equipment,5023,Revenue,03.GROCERIES & PROVISIONS
21-Dec-2017,7004483,-9.95,REDBRIDGE PRODUCE & FLOWERS LTD T/A TOTAL PRODUCE,390977,Commissioning & Investment,Children's & Education Services,103,Supplies and Services,504,Equipment,5023,Revenue,03.GROCERIES & PROVISIONS
21-Dec-2017,7004483,0.77,REDBRIDGE PRODUCE & FLOWERS LTD T/A TOTAL PRODUCE,390977,Commissioning & Investment,Children's & Education Services,103,Supplies and Services,504,Equipment,5023,Revenue,03.GROCERIES & PROVISIONS
21-Dec-2017,7004483,78.28,REDBRIDGE PRODUCE & FLOWERS LTD T/A TOTAL PRODUCE,390977,Commissioning & Investment,Children's & Education Services,103,Supplies and Services,504,Equipment,5023,Revenue,03.GROCERIES & PROVISIONS
21-Dec-2017,7004483,175.14,REDBRIDGE PRODUCE & FLOWERS LTD T/A TOTAL PRODUCE,390977,Commissioning & Investment,Children's & Education Services,103,Supplies and Services,504,Equipment,5023,Revenue,03.GROCERIES & PROVISIONS
21-Dec-2017,7004483,0.78,REDBRIDGE PRODUCE & FLOWERS LTD T/A TOTAL PRODUCE,390977,Commissioning & Investment,Children's & Education Services,103,Supplies and Services,504,Equipment,5023,Revenue,03.GROCERIES & PROVISIONS
21-Dec-2017,7004483,30.25,REDBRIDGE PRODUCE & FLOWERS LTD T/A TOTAL PRODUCE,390977,Commissioning & Investment,Children's & Education Services,103,Supplies and Services,504,Equipment,5023,Revenue,03.GROCERIES & PROVISIONS
21-Dec-2017,7004483,0.78,REDBRIDGE PRODUCE & FLOWERS LTD T/A TOTAL PRODUCE,390977,Commissioning & Investment,Children's & Education Services,103,Supplies and Services,504,Equipment,5023,Revenue,03.GROCERIES & PROVISIONS
21-Dec-2017,7004483,0.89,REDBRIDGE PRODUCE & FLOWERS LTD T/A TOTAL PRODUCE,390977,Commissioning & Investment,Children's & Education Services,103,Supplies and Services,504,Equipment,5023,Revenue,03.GROCERIES & PROVISIONS
21-Dec-2017,7004483,2.04,REDBRIDGE PRODUCE & FLOWERS LTD T/A TOTAL PRODUCE,390977,Commissioning & Investment,Children's & Education Services,103,Supplies and Services,504,Equipment,5023,Revenue,03.GROCERIES & PROVISIONS
21-Dec-2017,7004483,0.73,REDBRIDGE PRODUCE & FLOWERS LTD T/A TOTAL PRODUCE,390977,Commissioning & Investment,Children's & Education Services,103,Supplies and Services,504,Equipment,5023,Revenue,03.GROCERIES & PROVISIONS
21-Dec-2017,7004483,4.08,REDBRIDGE PRODUCE & FLOWERS LTD T/A TOTAL PRODUCE,390977,Commissioning & Investment,Children's & Education Services,103,Supplies and Services,504,Equipment,5023,Revenue,03.GROCERIES & PROVISIONS
21-Dec-2017,7004483,1.78,REDBRIDGE PRODUCE & FLOWERS LTD T/A TOTAL PRODUCE,390977,Commissioning & Investment,Children's & Education Services,103,Supplies and Services,504,Equipment,5023,Revenue,03.GROCERIES & PROVISIONS
21-Dec-2017,7004483,150.27,REDBRIDGE PRODUCE & FLOWERS LTD T/A TOTAL PRODUCE,390977,Commissioning & Investment,Children's & Education Services,103,Supplies and Services,504,Equipment,5023,Revenue,03.GROCERIES & PROVISIONS
21-Dec-2017,7004483,3.18,REDBRIDGE PRODUCE & FLOWERS LTD T/A TOTAL PRODUCE,390977,Commissioning & Investment,Children's & Education Services,103,Supplies and Services,504,Equipment,5023,Revenue,03.GROCERIES & PROVISIONS
21-Dec-2017,7004483,1.02,REDBRIDGE PRODUCE & FLOWERS LTD T/A TOTAL PRODUCE,390977,Commissioning & Investment,Children's & Education Services,103,Supplies and Services,504,Equipment,5023,Revenue,03.GROCERIES & PROVISIONS
21-Dec-2017,7004483,1.02,REDBRIDGE PRODUCE & FLOWERS LTD T/A TOTAL PRODUCE,390977,Commissioning & Investment,Children's & Education Services,103,Supplies and Services,504,Equipment,5023,Revenue,03.GROCERIES & PROVISIONS
21-Dec-2017,7004483,8.80,REDBRIDGE PRODUCE & FLOWERS LTD T/A TOTAL PRODUCE,390977,Commissioning & Investment,Children's & Education Services,103,Supplies and Services,504,Equipment,5023,Revenue,03.GROCERIES & PROVISIONS
21-Dec-2017,7004483,14.30,REDBRIDGE PRODUCE & FLOWERS LTD T/A TOTAL PRODUCE,390977,Commissioning & Investment,Children's & Education Services,103,Supplies and Services,504,Equipment,5023,Revenue,03.GROCERIES & PROVISIONS
21-Dec-2017,7004483,64.51,REDBRIDGE PRODUCE & FLOWERS LTD T/A TOTAL PRODUCE,390977,Commissioning & Investment,Children's & Education Services,103,Supplies and Services,504,Equipment,5023,Revenue,03.GROCERIES & PROVISIONS
21-Dec-2017,7004483,1.56,REDBRIDGE PRODUCE & FLOWERS LTD T/A TOTAL PRODUCE,390977,Commissioning & Investment,Children's & Education Services,103,Supplies and Services,504,Equipment,5023,Revenue,03.GROCERIES & PROVISIONS
21-Dec-2017,7004483,81.50,REDBRIDGE PRODUCE & FLOWERS LTD T/A TOTAL PRODUCE,390977,Commissioning & Investment,Children's & Education Services,103,Supplies and Services,504,Equipment,5023,Revenue,03.GROCERIES & PROVISIONS
21-Dec-2017,7004483,1.08,REDBRIDGE PRODUCE & FLOWERS LTD T/A TOTAL PRODUCE,390977,Commissioning & Investment,Children's & Education Services,103,Supplies and Services,504,Equipment,5023,Revenue,03.GROCERIES & PROVISIONS
21-Dec-2017,7004483,4.40,REDBRIDGE PRODUCE & FLOWERS LTD T/A TOTAL PRODUCE,390977,Commissioning & Investment,Children's & Education Services,103,Supplies and Services,504,Equipment,5023,Revenue,03.GROCERIES & PROVISIONS
21-Dec-2017,7004483,4.08,REDBRIDGE PRODUCE & FLOWERS LTD T/A TOTAL PRODUCE,390977,Commissioning & Investment,Children's & Education Services,103,Supplies and Services,504,Equipment,5023,Revenue,03.GROCERIES & PROVISIONS
21-Dec-2017,7004483,11.00,REDBRIDGE PRODUCE & FLOWERS LTD T/A TOTAL PRODUCE,390977,Commissioning & Investment,Children's & Education Services,103,Supplies and Services,504,Equipment,5023,Revenue,03.GROCERIES & PROVISIONS
21-Dec-2017,7004483,1.53,REDBRIDGE PRODUCE & FLOWERS LTD T/A TOTAL PRODUCE,390977,Commissioning & Investment,Children's & Education Services,103,Supplies and Services,504,Equipment,5023,Revenue,03.GROCERIES & PROVISIONS
21-Dec-2017,7004483,38.54,REDBRIDGE PRODUCE & FLOWERS LTD T/A TOTAL PRODUCE,390977,Commissioning & Investment,Children's & Education Services,103,Supplies and Services,504,Equipment,5023,Revenue,03.GROCERIES & PROVISIONS
21-Dec-2017,7004483,6.60,REDBRIDGE PRODUCE & FLOWERS LTD T/A TOTAL PRODUCE,390977,Commissioning & Investment,Children's & Education Services,103,Supplies and Services,504,Equipment,5023,Revenue,03.GROCERIES & PROVISIONS
21-Dec-2017,7004483,17.71,REDBRIDGE PRODUCE & FLOWERS LTD T/A TOTAL PRODUCE,390977,Commissioning & Investment,Children's & Education Services,103,Supplies and Services,504,Equipment,5023,Revenue,03.GROCERIES & PROVISIONS
21-Dec-2017,7004483,-0.49,REDBRIDGE PRODUCE & FLOWERS LTD T/A TOTAL PRODUCE,390977,Commissioning & Investment,Children's & Education Services,103,Supplies and Services,504,Equipment,5023,Revenue,03.GROCERIES & PROVISIONS
21-Dec-2017,7004483,20.09,REDBRIDGE PRODUCE & FLOWERS LTD T/A TOTAL PRODUCE,390977,Commissioning & Investment,Children's & Education Services,103,Supplies and Services,504,Equipment,5023,Revenue,03.GROCERIES & PROVISIONS
21-Dec-2017,7004483,130.62,REDBRIDGE PRODUCE & FLOWERS LTD T/A TOTAL PRODUCE,390977,Commissioning & Investment,Children's & Education Services,103,Supplies and Services,504,Equipment,5023,Revenue,03.GROCERIES & PROVISIONS
21-Dec-2017,7004483,55.43,REDBRIDGE PRODUCE & FLOWERS LTD T/A TOTAL PRODUCE,390977,Commissioning & Investment,Children's & Education Services,103,Supplies and Services,504,Equipment,5023,Revenue,03.GROCERIES & PROVISIONS
21-Dec-2017,7004483,2.44,REDBRIDGE PRODUCE & FLOWERS LTD T/A TOTAL PRODUCE,390977,Commissioning & Investment,Children's & Education Services,103,Supplies and Services,504,Equipment,5023,Revenue,03.GROCERIES & PROVISIONS
21-Dec-2017,7004483,1.15,REDBRIDGE PRODUCE & FLOWERS LTD T/A TOTAL PRODUCE,390977,Commissioning & Investment,Children's & Education Services,103,Supplies and Services,504,Equipment,5023,Revenue,03.GROCERIES & PROVISIONS
21-Dec-2017,7004483,27.99,REDBRIDGE PRODUCE & FLOWERS LTD T/A TOTAL PRODUCE,390977,Commissioning & Investment,Children's & Education Services,103,Supplies and Services,504,Equipment,5023,Revenue,03.GROCERIES & PROVISIONS
21-Dec-2017,7004483,44.63,REDBRIDGE PRODUCE & FLOWERS LTD T/A TOTAL PRODUCE,390977,Commissioning & Investment,Children's & Education Services,103,Supplies and Services,504,Equipment,5023,Revenue,03.GROCERIES & PROVISIONS
21-Dec-2017,7004483,97.07,REDBRIDGE PRODUCE & FLOWERS LTD T/A TOTAL PRODUCE,390977,Commissioning & Investment,Children's & Education Services,103,Supplies and Services,504,Equipment,5023,Revenue,03.GROCERIES & PROVISIONS
21-Dec-2017,7004483,6.12,REDBRIDGE PRODUCE & FLOWERS LTD T/A TOTAL PRODUCE,390977,Commissioning & Investment,Children's & Education Services,103,Supplies and Services,504,Equipment,5023,Revenue,03.GROCERIES & PROVISIONS
21-Dec-2017,7004483,13.58,REDBRIDGE PRODUCE & FLOWERS LTD T/A TOTAL PRODUCE,390977,Commissioning & Investment,Children's & Education Services,103,Supplies and Services,504,Equipment,5023,Revenue,03.GROCERIES & PROVISIONS
21-Dec-2017,7004483,-2.04,REDBRIDGE PRODUCE & FLOWERS LTD T/A TOTAL PRODUCE,390977,Commissioning & Investment,Children's & Education Services,103,Supplies and Services,504,Equipment,5023,Revenue,03.GROCERIES & PROVISIONS
21-Dec-2017,7004483,29.83,REDBRIDGE PRODUCE & FLOWERS LTD T/A TOTAL PRODUCE,390977,Commissioning & Investment,Children's & Education Services,103,Supplies and Services,504,Equipment,5023,Revenue,03.GROCERIES & PROVISIONS
21-Dec-2017,7004483,22.57,REDBRIDGE PRODUCE & FLOWERS LTD T/A TOTAL PRODUCE,390977,Commissioning & Investment,Children's & Education Services,103,Supplies and Services,504,Equipment,5023,Revenue,03.GROCERIES & PROVISIONS
21-Dec-2017,7004483,17.60,REDBRIDGE PRODUCE & FLOWERS LTD T/A TOTAL PRODUCE,390977,Commissioning & Investment,Children's & Education Services,103,Supplies and Services,504,Equipment,5023,Revenue,03.GROCERIES & PROVISIONS
21-Dec-2017,7004483,0.96,REDBRIDGE PRODUCE & FLOWERS LTD T/A TOTAL PRODUCE,390977,Commissioning & Investment,Children's & Education Services,103,Supplies and Services,504,Equipment,5023,Revenue,03.GROCERIES & PROVISIONS
21-Dec-2017,7004483,0.39,REDBRIDGE PRODUCE & FLOWERS LTD T/A TOTAL PRODUCE,390977,Commissioning & Investment,Children's & Education Services,103,Supplies and Services,504,Equipment,5023,Revenue,03.GROCERIES & PROVISIONS
21-Dec-2017,7004483,1.28,REDBRIDGE PRODUCE & FLOWERS LTD T/A TOTAL PRODUCE,390977,Commissioning & Investment,Children's & Education Services,103,Supplies and Services,504,Equipment,5023,Revenue,03.GROCERIES & PROVISIONS
21-Dec-2017,7004483,58.52,REDBRIDGE PRODUCE & FLOWERS LTD T/A TOTAL PRODUCE,390977,Commissioning & Investment,Children's & Education Services,103,Supplies and Services,504,Equipment,5023,Revenue,03.GROCERIES & PROVISIONS
21-Dec-2017,7004483,-3.12,REDBRIDGE PRODUCE & FLOWERS LTD T/A TOTAL PRODUCE,390977,Commissioning & Investment,Children's & Education Services,103,Supplies and Services,504,Equipment,5023,Revenue,03.GROCERIES & PROVISIONS
21-Dec-2017,7004483,0.98,REDBRIDGE PRODUCE & FLOWERS LTD T/A TOTAL PRODUCE,390977,Commissioning & Investment,Children's & Education Services,103,Supplies and Services,504,Equipment,5023,Revenue,03.GROCERIES & PROVISIONS
21-Dec-2017,7004483,29.62,REDBRIDGE PRODUCE & FLOWERS LTD T/A TOTAL PRODUCE,390977,Commissioning & Investment,Children's & Education Services,103,Supplies and Services,504,Equipment,5023,Revenue,03.GROCERIES & PROVISIONS
21-Dec-2017,7004483,0.89,REDBRIDGE PRODUCE & FLOWERS LTD T/A TOTAL PRODUCE,390977,Commissioning & Investment,Children's & Education Services,103,Supplies and Services,504,Equipment,5023,Revenue,03.GROCERIES & PROVISIONS
21-Dec-2017,7004483,64.35,REDBRIDGE PRODUCE & FLOWERS LTD T/A TOTAL PRODUCE,390977,Commissioning & Investment,Children's & Education Services,103,Supplies and Services,504,Equipment,5023,Revenue,03.GROCERIES & PROVISIONS
21-Dec-2017,7004483,4.48,REDBRIDGE PRODUCE & FLOWERS LTD T/A TOTAL PRODUCE,390977,Commissioning & Investment,Children's & Education Services,103,Supplies and Services,504,Equipment,5023,Revenue,03.GROCERIES & PROVISIONS
21-Dec-2017,7004483,2.20,REDBRIDGE PRODUCE & FLOWERS LTD T/A TOTAL PRODUCE,390977,Commissioning & Investment,Children's & Education Services,103,Supplies and Services,504,Equipment,5023,Revenue,03.GROCERIES & PROVISIONS
21-Dec-2017,7004483,1.15,REDBRIDGE PRODUCE & FLOWERS LTD T/A TOTAL PRODUCE,390977,Commissioning & Investment,Children's & Education Services,103,Supplies and Services,504,Equipment,5023,Revenue,03.GROCERIES & PROVISIONS
21-Dec-2017,7004483,3.30,REDBRIDGE PRODUCE & FLOWERS LTD T/A TOTAL PRODUCE,390977,Commissioning & Investment,Children's & Education Services,103,Supplies and Services,504,Equipment,5023,Revenue,03.GROCERIES & PROVISIONS
21-Dec-2017,7004483,154.06,REDBRIDGE PRODUCE & FLOWERS LTD T/A TOTAL PRODUCE,390977,Commissioning & Investment,Children's & Education Services,103,Supplies and Services,504,Equipment,5023,Revenue,03.GROCERIES & PROVISIONS
21-Dec-2017,7004483,37.45,REDBRIDGE PRODUCE & FLOWERS LTD T/A TOTAL PRODUCE,390977,Commissioning & Investment,Children's & Education Services,103,Supplies and Services,504,Equipment,5023,Revenue,03.GROCERIES & PROVISIONS
21-Dec-2017,7004483,18.36,REDBRIDGE PRODUCE & FLOWERS LTD T/A TOTAL PRODUCE,390977,Commissioning & Investment,Children's & Education Services,103,Supplies and Services,504,Equipment,5023,Revenue,03.GROCERIES & PROVISIONS
21-Dec-2017,7004483,56.66,REDBRIDGE PRODUCE & FLOWERS LTD T/A TOTAL PRODUCE,390977,Commissioning & Investment,Children's & Education Services,103,Supplies and Services,504,Equipment,5023,Revenue,03.GROCERIES & PROVISIONS
21-Dec-2017,7004483,1.98,REDBRIDGE PRODUCE & FLOWERS LTD T/A TOTAL PRODUCE,390977,Commissioning & Investment,Children's & Education Services,103,Supplies and Services,504,Equipment,5023,Revenue,03.GROCERIES & PROVISIONS
21-Dec-2017,7004483,2.04,REDBRIDGE PRODUCE & FLOWERS LTD T/A TOTAL PRODUCE,390977,Commissioning & Investment,Children's & Education Services,103,Supplies and Services,504,Equipment,5023,Revenue,03.GROCERIES & PROVISIONS
21-Dec-2017,7004483,409.42,REDBRIDGE PRODUCE & FLOWERS LTD T/A TOTAL PRODUCE,390977,Commissioning & Investment,Children's & Education Services,103,Supplies and Services,504,Equipment,5023,Revenue,03.GROCERIES & PROVISIONS
21-Dec-2017,7004483,71.72,REDBRIDGE PRODUCE & FLOWERS LTD T/A TOTAL PRODUCE,390977,Commissioning & Investment,Children's & Education Services,103,Supplies and Services,504,Equipment,5023,Revenue,03.GROCERIES & PROVISIONS
21-Dec-2017,7004483,0.78,REDBRIDGE PRODUCE & FLOWERS LTD T/A TOTAL PRODUCE,390977,Commissioning & Investment,Children's & Education Services,103,Supplies and Services,504,Equipment,5023,Revenue,03.GROCERIES & PROVISIONS
21-Dec-2017,7004483,2.14,REDBRIDGE PRODUCE & FLOWERS LTD T/A TOTAL PRODUCE,390977,Commissioning & Investment,Children's & Education Services,103,Supplies and Services,504,Equipment,5023,Revenue,03.GROCERIES & PROVISIONS
21-Dec-2017,7004483,0.39,REDBRIDGE PRODUCE & FLOWERS LTD T/A TOTAL PRODUCE,390977,Commissioning & Investment,Children's & Education Services,103,Supplies and Services,504,Equipment,5023,Revenue,03.GROCERIES & PROVISIONS
21-Dec-2017,7004483,2.30,REDBRIDGE PRODUCE & FLOWERS LTD T/A TOTAL PRODUCE,390977,Commissioning & Investment,Children's & Education Services,103,Supplies and Services,504,Equipment,5023,Revenue,03.GROCERIES & PROVISIONS
21-Dec-2017,7004483,0.89,REDBRIDGE PRODUCE & FLOWERS LTD T/A TOTAL PRODUCE,390977,Commissioning & Investment,Children's & Education Services,103,Supplies and Services,504,Equipment,5023,Revenue,03.GROCERIES & PROVISIONS
21-Dec-2017,7004483,3.06,REDBRIDGE PRODUCE & FLOWERS LTD T/A TOTAL PRODUCE,390977,Commissioning & Investment,Children's & Education Services,103,Supplies and Services,504,Equipment,5023,Revenue,03.GROCERIES & PROVISIONS
21-Dec-2017,7004483,1.78,REDBRIDGE PRODUCE & FLOWERS LTD T/A TOTAL PRODUCE,390977,Commissioning & Investment,Children's & Education Services,103,Supplies and Services,504,Equipment,5023,Revenue,03.GROCERIES & PROVISIONS
21-Dec-2017,7004483,2.20,REDBRIDGE PRODUCE & FLOWERS LTD T/A TOTAL PRODUCE,390977,Commissioning & Investment,Children's & Education Services,103,Supplies and Services,504,Equipment,5023,Revenue,03.GROCERIES & PROVISIONS
21-Dec-2017,7004483,10.69,REDBRIDGE PRODUCE & FLOWERS LTD T/A TOTAL PRODUCE,390977,Commissioning & Investment,Children's & Education Services,103,Supplies and Services,504,Equipment,5023,Revenue,03.GROCERIES & PROVISIONS
21-Dec-2017,7004483,13.92,REDBRIDGE PRODUCE & FLOWERS LTD T/A TOTAL PRODUCE,390977,Commissioning & Investment,Children's & Education Services,103,Supplies and Services,504,Equipment,5023,Revenue,03.GROCERIES & PROVISIONS
21-Dec-2017,7004483,73.68,REDBRIDGE PRODUCE & FLOWERS LTD T/A TOTAL PRODUCE,390977,Commissioning & Investment,Children's & Education Services,103,Supplies and Services,504,Equipment,5023,Revenue,03.GROCERIES & PROVISIONS
21-Dec-2017,7004483,2.20,REDBRIDGE PRODUCE & FLOWERS LTD T/A TOTAL PRODUCE,390977,Commissioning & Investment,Children's & Education Services,103,Supplies and Services,504,Equipment,5023,Revenue,03.GROCERIES & PROVISIONS
21-Dec-2017,7004483,27.69,REDBRIDGE PRODUCE & FLOWERS LTD T/A TOTAL PRODUCE,390977,Commissioning & Investment,Children's & Education Services,103,Supplies and Services,504,Equipment,5023,Revenue,03.GROCERIES & PROVISIONS
21-Dec-2017,7004483,64.51,REDBRIDGE PRODUCE & FLOWERS LTD T/A TOTAL PRODUCE,390977,Commissioning & Investment,Children's & Education Services,103,Supplies and Services,504,Equipment,5023,Revenue,03.GROCERIES & PROVISIONS
21-Dec-2017,7004483,14.30,REDBRIDGE PRODUCE & FLOWERS LTD T/A TOTAL PRODUCE,390977,Commissioning & Investment,Children's & Education Services,103,Supplies and Services,504,Equipment,5023,Revenue,03.GROCERIES & PROVISIONS
21-Dec-2017,7004483,24.06,REDBRIDGE PRODUCE & FLOWERS LTD T/A TOTAL PRODUCE,390977,Commissioning & Investment,Children's & Education Services,103,Supplies and Services,504,Equipment,5023,Revenue,03.GROCERIES & PROVISIONS
21-Dec-2017,7004483,2.00,REDBRIDGE PRODUCE & FLOWERS LTD T/A TOTAL PRODUCE,390977,Commissioning & Investment,Children's & Education Services,103,Supplies and Services,504,Equipment,5023,Revenue,03.GROCERIES & PROVISIONS
21-Dec-2017,7004483,1.28,REDBRIDGE PRODUCE & FLOWERS LTD T/A TOTAL PRODUCE,390977,Commissioning & Investment,Children's & Education Services,103,Supplies and Services,504,Equipment,5023,Revenue,03.GROCERIES & PROVISIONS
21-Dec-2017,7004483,18.32,REDBRIDGE PRODUCE & FLOWERS LTD T/A TOTAL PRODUCE,390977,Commissioning & Investment,Children's & Education Services,103,Supplies and Services,504,Equipment,5023,Revenue,03.GROCERIES & PROVISIONS
21-Dec-2017,7004483,0.79,REDBRIDGE PRODUCE & FLOWERS LTD T/A TOTAL PRODUCE,390977,Commissioning & Investment,Children's & Education Services,103,Supplies and Services,504,Equipment,5023,Revenue,03.GROCERIES & PROVISIONS
21-Dec-2017,7004483,29.15,REDBRIDGE PRODUCE & FLOWERS LTD T/A TOTAL PRODUCE,390977,Commissioning & Investment,Children's & Education Services,103,Supplies and Services,504,Equipment,5023,Revenue,03.GROCERIES & PROVISIONS
21-Dec-2017,7004483,3.18,REDBRIDGE PRODUCE & FLOWERS LTD T/A TOTAL PRODUCE,390977,Commissioning & Investment,Children's & Education Services,103,Supplies and Services,504,Equipment,5023,Revenue,03.GROCERIES & PROVISIONS
21-Dec-2017,7004483,38.91,REDBRIDGE PRODUCE & FLOWERS LTD T/A TOTAL PRODUCE,390977,Commissioning & Investment,Children's & Education Services,103,Supplies and Services,504,Equipment,5023,Revenue,03.GROCERIES & PROVISIONS
21-Dec-2017,7004483,-2.04,REDBRIDGE PRODUCE & FLOWERS LTD T/A TOTAL PRODUCE,390977,Commissioning & Investment,Children's & Education Services,103,Supplies and Services,504,Equipment,5023,Revenue,03.GROCERIES & PROVISIONS
21-Dec-2017,7004483,49.44,REDBRIDGE PRODUCE & FLOWERS LTD T/A TOTAL PRODUCE,390977,Commissioning & Investment,Children's & Education Services,103,Supplies and Services,504,Equipment,5023,Revenue,03.GROCERIES & PROVISIONS
21-Dec-2017,7004483,11.88,REDBRIDGE PRODUCE & FLOWERS LTD T/A TOTAL PRODUCE,390977,Commissioning & Investment,Children's & Education Services,103,Supplies and Services,504,Equipment,5023,Revenue,03.GROCERIES & PROVISIONS
21-Dec-2017,7004483,6.60,REDBRIDGE PRODUCE & FLOWERS LTD T/A TOTAL PRODUCE,390977,Commissioning & Investment,Children's & Education Services,103,Supplies and Services,504,Equipment,5023,Revenue,03.GROCERIES & PROVISIONS
21-Dec-2017,7004483,0.77,REDBRIDGE PRODUCE & FLOWERS LTD T/A TOTAL PRODUCE,390977,Commissioning & Investment,Children's & Education Services,103,Supplies and Services,504,Equipment,5023,Revenue,03.GROCERIES & PROVISIONS
21-Dec-2017,7004483,2.44,REDBRIDGE PRODUCE & FLOWERS LTD T/A TOTAL PRODUCE,390977,Commissioning & Investment,Children's & Education Services,103,Supplies and Services,504,Equipment,5023,Revenue,03.GROCERIES & PROVISIONS
21-Dec-2017,7004483,3.06,REDBRIDGE PRODUCE & FLOWERS LTD T/A TOTAL PRODUCE,390977,Commissioning & Investment,Children's & Education Services,103,Supplies and Services,504,Equipment,5023,Revenue,03.GROCERIES & PROVISIONS
21-Dec-2017,7004483,0.95,REDBRIDGE PRODUCE & FLOWERS LTD T/A TOTAL PRODUCE,390977,Commissioning & Investment,Children's & Education Services,103,Supplies and Services,504,Equipment,5023,Revenue,03.GROCERIES & PROVISIONS
21-Dec-2017,7004483,84.75,REDBRIDGE PRODUCE & FLOWERS LTD T/A TOTAL PRODUCE,390977,Commissioning & Investment,Children's & Education Services,103,Supplies and Services,504,Equipment,5023,Revenue,03.GROCERIES & PROVISIONS
21-Dec-2017,7004483,0.95,REDBRIDGE PRODUCE & FLOWERS LTD T/A TOTAL PRODUCE,390977,Commissioning & Investment,Children's & Education Services,103,Supplies and Services,504,Equipment,5023,Revenue,03.GROCERIES & PROVISIONS
21-Dec-2017,7004483,37.20,REDBRIDGE PRODUCE & FLOWERS LTD T/A TOTAL PRODUCE,390977,Commissioning & Investment,Children's & Education Services,103,Supplies and Services,504,Equipment,5023,Revenue,03.GROCERIES & PROVISIONS
21-Dec-2017,7004483,2.04,REDBRIDGE PRODUCE & FLOWERS LTD T/A TOTAL PRODUCE,390977,Commissioning & Investment,Children's & Education Services,103,Supplies and Services,504,Equipment,5023,Revenue,03.GROCERIES & PROVISIONS
21-Dec-2017,7004483,34.76,REDBRIDGE PRODUCE & FLOWERS LTD T/A TOTAL PRODUCE,390977,Commissioning & Investment,Children's & Education Services,103,Supplies and Services,504,Equipment,5023,Revenue,03.GROCERIES & PROVISIONS
21-Dec-2017,7004483,50.96,REDBRIDGE PRODUCE & FLOWERS LTD T/A TOTAL PRODUCE,390977,Commissioning & Investment,Children's & Education Services,103,Supplies and Services,504,Equipment,5023,Revenue,03.GROCERIES & PROVISIONS
21-Dec-2017,7004483,36.36,REDBRIDGE PRODUCE & FLOWERS LTD T/A TOTAL PRODUCE,390977,Commissioning & Investment,Children's & Education Services,103,Supplies and Services,504,Equipment,5023,Revenue,03.GROCERIES & PROVISIONS
21-Dec-2017,7004483,215.96,REDBRIDGE PRODUCE & FLOWERS LTD T/A TOTAL PRODUCE,390977,Commissioning & Investment,Children's & Education Services,103,Supplies and Services,504,Equipment,5023,Revenue,03.GROCERIES & PROVISIONS
21-Dec-2017,7004483,0.78,REDBRIDGE PRODUCE & FLOWERS LTD T/A TOTAL PRODUCE,390977,Commissioning & Investment,Children's & Education Services,103,Supplies and Services,504,Equipment,5023,Revenue,03.GROCERIES & PROVISIONS
21-Dec-2017,7004483,15.32,REDBRIDGE PRODUCE & FLOWERS LTD T/A TOTAL PRODUCE,390977,Commissioning & Investment,Children's & Education Services,103,Supplies and Services,504,Equipment,5023,Revenue,03.GROCERIES & PROVISIONS
21-Dec-2017,7004483,73.78,REDBRIDGE PRODUCE & FLOWERS LTD T/A TOTAL PRODUCE,390977,Commissioning & Investment,Children's & Education Services,103,Supplies and Services,504,Equipment,5023,Revenue,03.GROCERIES & PROVISIONS
21-Dec-2017,7004483,93.10,REDBRIDGE PRODUCE & FLOWERS LTD T/A TOTAL PRODUCE,390977,Commissioning & Investment,Children's & Education Services,103,Supplies and Services,504,Equipment,5023,Revenue,03.GROCERIES & PROVISIONS
21-Dec-2017,7004483,92.75,REDBRIDGE PRODUCE & FLOWERS LTD T/A TOTAL PRODUCE,390977,Commissioning & Investment,Children's & Education Services,103,Supplies and Services,504,Equipment,5023,Revenue,03.GROCERIES & PROVISIONS
21-Dec-2017,7004483,75.48,REDBRIDGE PRODUCE & FLOWERS LTD T/A TOTAL PRODUCE,390977,Commissioning & Investment,Children's & Education Services,103,Supplies and Services,504,Equipment,5023,Revenue,03.GROCERIES & PROVISIONS
21-Dec-2017,7004483,2.20,REDBRIDGE PRODUCE & FLOWERS LTD T/A TOTAL PRODUCE,390977,Commissioning & Investment,Children's & Education Services,103,Supplies and Services,504,Equipment,5023,Revenue,03.GROCERIES & PROVISIONS
21-Dec-2017,7004483,8.80,REDBRIDGE PRODUCE & FLOWERS LTD T/A TOTAL PRODUCE,390977,Commissioning & Investment,Children's & Education Services,103,Supplies and Services,504,Equipment,5023,Revenue,03.GROCERIES & PROVISIONS
21-Dec-2017,7004483,41.41,REDBRIDGE PRODUCE & FLOWERS LTD T/A TOTAL PRODUCE,390977,Commissioning & Investment,Children's & Education Services,103,Supplies and Services,504,Equipment,5023,Revenue,03.GROCERIES & PROVISIONS
21-Dec-2017,7004483,6.60,REDBRIDGE PRODUCE & FLOWERS LTD T/A TOTAL PRODUCE,390977,Commissioning & Investment,Children's & Education Services,103,Supplies and Services,504,Equipment,5023,Revenue,03.GROCERIES & PROVISIONS
21-Dec-2017,7004483,0.78,REDBRIDGE PRODUCE & FLOWERS LTD T/A TOTAL PRODUCE,390977,Commissioning & Investment,Children's & Education Services,103,Supplies and Services,504,Equipment,5023,Revenue,03.GROCERIES & PROVISIONS
21-Dec-2017,7004483,64.19,REDBRIDGE PRODUCE & FLOWERS LTD T/A TOTAL PRODUCE,390977,Commissioning & Investment,Children's & Education Services,103,Supplies and Services,504,Equipment,5023,Revenue,03.GROCERIES & PROVISIONS
21-Dec-2017,7004483,16.50,REDBRIDGE PRODUCE & FLOWERS LTD T/A TOTAL PRODUCE,390977,Commissioning & Investment,Children's & Education Services,103,Supplies and Services,504,Equipment,5023,Revenue,03.GROCERIES & PROVISIONS
21-Dec-2017,7004483,7.14,REDBRIDGE PRODUCE & FLOWERS LTD T/A TOTAL PRODUCE,390977,Commissioning & Investment,Children's & Education Services,103,Supplies and Services,504,Equipment,5023,Revenue,03.GROCERIES & PROVISIONS
21-Dec-2017,7004483,234.53,REDBRIDGE PRODUCE & FLOWERS LTD T/A TOTAL PRODUCE,390977,Commissioning & Investment,Children's & Education Services,103,Supplies and Services,504,Equipment,5023,Revenue,03.GROCERIES & PROVISIONS
21-Dec-2017,7004483,1.15,REDBRIDGE PRODUCE & FLOWERS LTD T/A TOTAL PRODUCE,390977,Commissioning & Investment,Children's & Education Services,103,Supplies and Services,504,Equipment,5023,Revenue,03.GROCERIES & PROVISIONS
21-Dec-2017,7004483,7.70,REDBRIDGE PRODUCE & FLOWERS LTD T/A TOTAL PRODUCE,390977,Commissioning & Investment,Children's & Education Services,103,Supplies and Services,504,Equipment,5023,Revenue,03.GROCERIES & PROVISIONS
21-Dec-2017,7004483,88.09,REDBRIDGE PRODUCE & FLOWERS LTD T/A TOTAL PRODUCE,390977,Commissioning & Investment,Children's & Education Services,103,Supplies and Services,504,Equipment,5023,Revenue,03.GROCERIES & PROVISIONS
21-Dec-2017,7004483,0.73,REDBRIDGE PRODUCE & FLOWERS LTD T/A TOTAL PRODUCE,390977,Commissioning & Investment,Children's & Education Services,103,Supplies and Services,504,Equipment,5023,Revenue,03.GROCERIES & PROVISIONS
21-Dec-2017,7004483,2.44,REDBRIDGE PRODUCE & FLOWERS LTD T/A TOTAL PRODUCE,390977,Commissioning & Investment,Children's & Education Services,103,Supplies and Services,504,Equipment,5023,Revenue,03.GROCERIES & PROVISIONS
21-Dec-2017,7004483,13.92,REDBRIDGE PRODUCE & FLOWERS LTD T/A TOTAL PRODUCE,390977,Commissioning & Investment,Children's & Education Services,103,Supplies and Services,504,Equipment,5023,Revenue,03.GROCERIES & PROVISIONS
21-Dec-2017,7004483,160.19,REDBRIDGE PRODUCE & FLOWERS LTD T/A TOTAL PRODUCE,390977,Commissioning & Investment,Children's & Education Services,103,Supplies and Services,504,Equipment,5023,Revenue,03.GROCERIES & PROVISIONS
21-Dec-2017,7004483,66.65,REDBRIDGE PRODUCE & FLOWERS LTD T/A TOTAL PRODUCE,390977,Commissioning & Investment,Children's & Education Services,103,Supplies and Services,504,Equipment,5023,Revenue,03.GROCERIES & PROVISIONS
21-Dec-2017,7004483,0.78,REDBRIDGE PRODUCE & FLOWERS LTD T/A TOTAL PRODUCE,390977,Commissioning & Investment,Children's & Education Services,103,Supplies and Services,504,Equipment,5023,Revenue,03.GROCERIES & PROVISIONS
21-Dec-2017,7004483,0.78,REDBRIDGE PRODUCE & FLOWERS LTD T/A TOTAL PRODUCE,390977,Commissioning & Investment,Children's & Education Services,103,Supplies and Services,504,Equipment,5023,Revenue,03.GROCERIES & PROVISIONS
21-Dec-2017,7004483,0.78,REDBRIDGE PRODUCE & FLOWERS LTD T/A TOTAL PRODUCE,390977,Commissioning & Investment,Children's & Education Services,103,Supplies and Services,504,Equipment,5023,Revenue,03.GROCERIES & PROVISIONS
21-Dec-2017,7004483,2.34,REDBRIDGE PRODUCE & FLOWERS LTD T/A TOTAL PRODUCE,390977,Commissioning & Investment,Children's & Education Services,103,Supplies and Services,504,Equipment,5023,Revenue,03.GROCERIES & PROVISIONS
21-Dec-2017,7004483,0.78,REDBRIDGE PRODUCE & FLOWERS LTD T/A TOTAL PRODUCE,390977,Commissioning & Investment,Children's & Education Services,103,Supplies and Services,504,Equipment,5023,Revenue,03.GROCERIES & PROVISIONS
21-Dec-2017,7004483,9.71,REDBRIDGE PRODUCE & FLOWERS LTD T/A TOTAL PRODUCE,390977,Commissioning & Investment,Children's & Education Services,103,Supplies and Services,504,Equipment,5023,Revenue,03.GROCERIES & PROVISIONS
21-Dec-2017,7004483,1.78,REDBRIDGE PRODUCE & FLOWERS LTD T/A TOTAL PRODUCE,390977,Commissioning & Investment,Children's & Education Services,103,Supplies and Services,504,Equipment,5023,Revenue,03.GROCERIES & PROVISIONS
21-Dec-2017,7004483,4.40,REDBRIDGE PRODUCE & FLOWERS LTD T/A TOTAL PRODUCE,390977,Commissioning & Investment,Children's & Education Services,103,Supplies and Services,504,Equipment,5023,Revenue,03.GROCERIES & PROVISIONS
21-Dec-2017,7004483,0.95,REDBRIDGE PRODUCE & FLOWERS LTD T/A TOTAL PRODUCE,390977,Commissioning & Investment,Children's & Education Services,103,Supplies and Services,504,Equipment,5023,Revenue,03.GROCERIES & PROVISIONS
21-Dec-2017,7004483,11.00,REDBRIDGE PRODUCE & FLOWERS LTD T/A TOTAL PRODUCE,390977,Commissioning & Investment,Children's & Education Services,103,Supplies and Services,504,Equipment,5023,Revenue,03.GROCERIES & PROVISIONS
21-Dec-2017,7004483,6.60,REDBRIDGE PRODUCE & FLOWERS LTD T/A TOTAL PRODUCE,390977,Commissioning & Investment,Children's & Education Services,103,Supplies and Services,504,Equipment,5023,Revenue,03.GROCERIES & PROVISIONS
21-Dec-2017,7004483,2.32,REDBRIDGE PRODUCE & FLOWERS LTD T/A TOTAL PRODUCE,390977,"Environment, Housing & Leisure",Cultural & Related Services,104,Supplies and Services,504,Equipment,5023,Revenue,03.GROCERIES & PROVISIONS
21-Dec-2017,7004483,9.29,REDBRIDGE PRODUCE & FLOWERS LTD T/A TOTAL PRODUCE,390977,"Environment, Housing & Leisure",Cultural & Related Services,104,Supplies and Services,504,Equipment,5023,Revenue,03.GROCERIES & PROVISIONS
21-Dec-2017,7004483,6.60,REDBRIDGE PRODUCE & FLOWERS LTD T/A TOTAL PRODUCE,390977,Commissioning & Investment,Children's & Education Services,103,Supplies and Services,504,Equipment,5023,Revenue,03.GROCERIES & PROVISIONS
21-Dec-2017,7004483,2.20,REDBRIDGE PRODUCE & FLOWERS LTD T/A TOTAL PRODUCE,390977,Commissioning & Investment,Children's & Education Services,103,Supplies and Services,504,Equipment,5023,Revenue,03.GROCERIES & PROVISIONS
21-Dec-2017,7004483,41.88,REDBRIDGE PRODUCE & FLOWERS LTD T/A TOTAL PRODUCE,390977,Commissioning & Investment,Children's & Education Services,103,Supplies and Services,504,Equipment,5023,Revenue,03.GROCERIES & PROVISIONS
21-Dec-2017,7004483,0.78,REDBRIDGE PRODUCE & FLOWERS LTD T/A TOTAL PRODUCE,390977,Commissioning & Investment,Children's & Education Services,103,Supplies and Services,504,Equipment,5023,Revenue,03.GROCERIES & PROVISIONS
21-Dec-2017,7004483,8.16,REDBRIDGE PRODUCE & FLOWERS LTD T/A TOTAL PRODUCE,390977,Commissioning & Investment,Children's & Education Services,103,Supplies and Services,504,Equipment,5023,Revenue,03.GROCERIES & PROVISIONS
21-Dec-2017,7004483,86.43,REDBRIDGE PRODUCE & FLOWERS LTD T/A TOTAL PRODUCE,390977,Commissioning & Investment,Children's & Education Services,103,Supplies and Services,504,Equipment,5023,Revenue,03.GROCERIES & PROVISIONS
21-Dec-2017,7004483,1.25,REDBRIDGE PRODUCE & FLOWERS LTD T/A TOTAL PRODUCE,390977,Commissioning & Investment,Children's & Education Services,103,Supplies and Services,504,Equipment,5023,Revenue,03.GROCERIES & PROVISIONS
21-Dec-2017,7004483,81.38,REDBRIDGE PRODUCE & FLOWERS LTD T/A TOTAL PRODUCE,390977,Commissioning & Investment,Children's & Education Services,103,Supplies and Services,504,Equipment,5023,Revenue,03.GROCERIES & PROVISIONS
21-Dec-2017,7004483,24.48,REDBRIDGE PRODUCE & FLOWERS LTD T/A TOTAL PRODUCE,390977,Commissioning & Investment,Children's & Education Services,103,Supplies and Services,504,Equipment,5023,Revenue,03.GROCERIES & PROVISIONS
21-Dec-2017,7004483,6.42,REDBRIDGE PRODUCE & FLOWERS LTD T/A TOTAL PRODUCE,390977,Commissioning & Investment,Children's & Education Services,103,Supplies and Services,504,Equipment,5023,Revenue,03.GROCERIES & PROVISIONS
21-Dec-2017,7004483,2.44,REDBRIDGE PRODUCE & FLOWERS LTD T/A TOTAL PRODUCE,390977,Commissioning & Investment,Children's & Education Services,103,Supplies and Services,504,Equipment,5023,Revenue,03.GROCERIES & PROVISIONS
21-Dec-2017,7004483,12.24,REDBRIDGE PRODUCE & FLOWERS LTD T/A TOTAL PRODUCE,390977,Commissioning & Investment,Children's & Education Services,103,Supplies and Services,504,Equipment,5023,Revenue,03.GROCERIES & PROVISIONS
21-Dec-2017,7004483,21.20,REDBRIDGE PRODUCE & FLOWERS LTD T/A TOTAL PRODUCE,390977,Commissioning & Investment,Children's & Education Services,103,Supplies and Services,504,Equipment,5023,Revenue,03.GROCERIES & PROVISIONS
21-Dec-2017,7004483,0.76,REDBRIDGE PRODUCE & FLOWERS LTD T/A TOTAL PRODUCE,390977,Commissioning & Investment,Children's & Education Services,103,Supplies and Services,504,Equipment,5023,Revenue,03.GROCERIES & PROVISIONS
21-Dec-2017,7004483,8.80,REDBRIDGE PRODUCE & FLOWERS LTD T/A TOTAL PRODUCE,390977,Commissioning & Investment,Children's & Education Services,103,Supplies and Services,504,Equipment,5023,Revenue,03.GROCERIES & PROVISIONS
21-Dec-2017,7004483,0.52,REDBRIDGE PRODUCE & FLOWERS LTD T/A TOTAL PRODUCE,390977,Commissioning & Investment,Children's & Education Services,103,Supplies and Services,504,Equipment,5023,Revenue,03.GROCERIES & PROVISIONS
21-Dec-2017,7004483,85.47,REDBRIDGE PRODUCE & FLOWERS LTD T/A TOTAL PRODUCE,390977,Commissioning & Investment,Children's & Education Services,103,Supplies and Services,504,Equipment,5023,Revenue,03.GROCERIES & PROVISIONS
21-Dec-2017,7004483,100.42,REDBRIDGE PRODUCE & FLOWERS LTD T/A TOTAL PRODUCE,390977,Commissioning & Investment,Children's & Education Services,103,Supplies and Services,504,Equipment,5023,Revenue,03.GROCERIES & PROVISIONS
21-Dec-2017,7004483,9.71,REDBRIDGE PRODUCE & FLOWERS LTD T/A TOTAL PRODUCE,390977,Commissioning & Investment,Children's & Education Services,103,Supplies and Services,504,Equipment,5023,Revenue,03.GROCERIES & PROVISIONS
21-Dec-2017,7004483,11.00,REDBRIDGE PRODUCE & FLOWERS LTD T/A TOTAL PRODUCE,390977,Commissioning & Investment,Children's & Education Services,103,Supplies and Services,504,Equipment,5023,Revenue,03.GROCERIES & PROVISIONS
21-Dec-2017,7004483,0.78,REDBRIDGE PRODUCE & FLOWERS LTD T/A TOTAL PRODUCE,390977,Commissioning & Investment,Children's & Education Services,103,Supplies and Services,504,Equipment,5023,Revenue,03.GROCERIES & PROVISIONS
21-Dec-2017,7004483,18.36,REDBRIDGE PRODUCE & FLOWERS LTD T/A TOTAL PRODUCE,390977,Commissioning & Investment,Children's & Education Services,103,Supplies and Services,504,Equipment,5023,Revenue,03.GROCERIES & PROVISIONS
21-Dec-2017,7004483,46.12,REDBRIDGE PRODUCE & FLOWERS LTD T/A TOTAL PRODUCE,390977,Commissioning & Investment,Children's & Education Services,103,Supplies and Services,504,Equipment,5023,Revenue,03.GROCERIES & PROVISIONS
21-Dec-2017,7004483,27.15,REDBRIDGE PRODUCE & FLOWERS LTD T/A TOTAL PRODUCE,390977,Commissioning & Investment,Children's & Education Services,103,Supplies and Services,504,Equipment,5023,Revenue,03.GROCERIES & PROVISIONS
21-Dec-2017,7004483,1.59,REDBRIDGE PRODUCE & FLOWERS LTD T/A TOTAL PRODUCE,390977,Commissioning & Investment,Children's & Education Services,103,Supplies and Services,504,Equipment,5023,Revenue,03.GROCERIES & PROVISIONS
21-Dec-2017,7004483,1.17,REDBRIDGE PRODUCE & FLOWERS LTD T/A TOTAL PRODUCE,390977,Commissioning & Investment,Children's & Education Services,103,Supplies and Services,504,Equipment,5023,Revenue,03.GROCERIES & PROVISIONS
21-Dec-2017,7004483,13.08,REDBRIDGE PRODUCE & FLOWERS LTD T/A TOTAL PRODUCE,390977,"Environment, Housing & Leisure",Cultural & Related Services,104,Supplies and Services,504,Equipment,5023,Revenue,03.GROCERIES & PROVISIONS
21-Dec-2017,7004483,45.48,REDBRIDGE PRODUCE & FLOWERS LTD T/A TOTAL PRODUCE,390977,Commissioning & Investment,Children's & Education Services,103,Supplies and Services,504,Equipment,5023,Revenue,03.GROCERIES & PROVISIONS
21-Dec-2017,7004483,1.78,REDBRIDGE PRODUCE & FLOWERS LTD T/A TOTAL PRODUCE,390977,Commissioning & Investment,Children's & Education Services,103,Supplies and Services,504,Equipment,5023,Revenue,03.GROCERIES & PROVISIONS
21-Dec-2017,7004483,8.80,REDBRIDGE PRODUCE & FLOWERS LTD T/A TOTAL PRODUCE,390977,Commissioning & Investment,Children's & Education Services,103,Supplies and Services,504,Equipment,5023,Revenue,03.GROCERIES & PROVISIONS
21-Dec-2017,7004483,0.89,REDBRIDGE PRODUCE & FLOWERS LTD T/A TOTAL PRODUCE,390977,Commissioning & Investment,Children's & Education Services,103,Supplies and Services,504,Equipment,5023,Revenue,03.GROCERIES & PROVISIONS
21-Dec-2017,7004483,81.80,REDBRIDGE PRODUCE & FLOWERS LTD T/A TOTAL PRODUCE,390977,Commissioning & Investment,Children's & Education Services,103,Supplies and Services,504,Equipment,5023,Revenue,03.GROCERIES & PROVISIONS
21-Dec-2017,7004483,1.92,REDBRIDGE PRODUCE & FLOWERS LTD T/A TOTAL PRODUCE,390977,Commissioning & Investment,Children's & Education Services,103,Supplies and Services,504,Equipment,5023,Revenue,03.GROCERIES & PROVISIONS
21-Dec-2017,7004483,1.29,REDBRIDGE PRODUCE & FLOWERS LTD T/A TOTAL PRODUCE,390977,Commissioning & Investment,Children's & Education Services,103,Supplies and Services,504,Equipment,5023,Revenue,03.GROCERIES & PROVISIONS
21-Dec-2017,7004483,45.96,REDBRIDGE PRODUCE & FLOWERS LTD T/A TOTAL PRODUCE,390977,Commissioning & Investment,Children's & Education Services,103,Supplies and Services,504,Equipment,5023,Revenue,03.GROCERIES & PROVISIONS
21-Dec-2017,7004483,24.54,REDBRIDGE PRODUCE & FLOWERS LTD T/A TOTAL PRODUCE,390977,Commissioning & Investment,Children's & Education Services,103,Supplies and Services,504,Equipment,5023,Revenue,03.GROCERIES & PROVISIONS
21-Dec-2017,7004483,1.15,REDBRIDGE PRODUCE & FLOWERS LTD T/A TOTAL PRODUCE,390977,Commissioning & Investment,Children's & Education Services,103,Supplies and Services,504,Equipment,5023,Revenue,03.GROCERIES & PROVISIONS
21-Dec-2017,7004483,1.04,REDBRIDGE PRODUCE & FLOWERS LTD T/A TOTAL PRODUCE,390977,Commissioning & Investment,Children's & Education Services,103,Supplies and Services,504,Equipment,5023,Revenue,03.GROCERIES & PROVISIONS
21-Dec-2017,7004483,1.96,REDBRIDGE PRODUCE & FLOWERS LTD T/A TOTAL PRODUCE,390977,Commissioning & Investment,Children's & Education Services,103,Supplies and Services,504,Equipment,5023,Revenue,03.GROCERIES & PROVISIONS
21-Dec-2017,7004483,2.08,REDBRIDGE PRODUCE & FLOWERS LTD T/A TOTAL PRODUCE,390977,Commissioning & Investment,Children's & Education Services,103,Supplies and Services,504,Equipment,5023,Revenue,03.GROCERIES & PROVISIONS
21-Dec-2017,7004483,70.95,REDBRIDGE PRODUCE & FLOWERS LTD T/A TOTAL PRODUCE,390977,Commissioning & Investment,Children's & Education Services,103,Supplies and Services,504,Equipment,5023,Revenue,03.GROCERIES & PROVISIONS
21-Dec-2017,7004483,33.78,REDBRIDGE PRODUCE & FLOWERS LTD T/A TOTAL PRODUCE,390977,Commissioning & Investment,Children's & Education Services,103,Supplies and Services,504,Equipment,5023,Revenue,03.GROCERIES & PROVISIONS
21-Dec-2017,7004483,32.23,REDBRIDGE PRODUCE & FLOWERS LTD T/A TOTAL PRODUCE,390977,Commissioning & Investment,Children's & Education Services,103,Supplies and Services,504,Equipment,5023,Revenue,03.GROCERIES & PROVISIONS
21-Dec-2017,7004483,8.74,REDBRIDGE PRODUCE & FLOWERS LTD T/A TOTAL PRODUCE,390977,"Environment, Housing & Leisure",Cultural & Related Services,104,Supplies and Services,504,Equipment,5023,Revenue,03.GROCERIES & PROVISIONS
21-Dec-2017,7004483,-4.08,REDBRIDGE PRODUCE & FLOWERS LTD T/A TOTAL PRODUCE,390977,Commissioning & Investment,Children's & Education Services,103,Supplies and Services,504,Equipment,5023,Revenue,03.GROCERIES & PROVISIONS
21-Dec-2017,7004483,8.80,REDBRIDGE PRODUCE & FLOWERS LTD T/A TOTAL PRODUCE,390977,Commissioning & Investment,Children's & Education Services,103,Supplies and Services,504,Equipment,5023,Revenue,03.GROCERIES & PROVISIONS
21-Dec-2017,7004483,6.12,REDBRIDGE PRODUCE & FLOWERS LTD T/A TOTAL PRODUCE,390977,Commissioning & Investment,Children's & Education Services,103,Supplies and Services,504,Equipment,5023,Revenue,03.GROCERIES & PROVISIONS
21-Dec-2017,7004483,9.71,REDBRIDGE PRODUCE & FLOWERS LTD T/A TOTAL PRODUCE,390977,Commissioning & Investment,Children's & Education Services,103,Supplies and Services,504,Equipment,5023,Revenue,03.GROCERIES & PROVISIONS
21-Dec-2017,7004483,3.25,REDBRIDGE PRODUCE & FLOWERS LTD T/A TOTAL PRODUCE,390977,Commissioning & Investment,Children's & Education Services,103,Supplies and Services,504,Equipment,5023,Revenue,03.GROCERIES & PROVISIONS
21-Dec-2017,7004483,22.00,REDBRIDGE PRODUCE & FLOWERS LTD T/A TOTAL PRODUCE,390977,Commissioning & Investment,Children's & Education Services,103,Supplies and Services,504,Equipment,5023,Revenue,03.GROCERIES & PROVISIONS
21-Dec-2017,7004483,82.51,REDBRIDGE PRODUCE & FLOWERS LTD T/A TOTAL PRODUCE,390977,Commissioning & Investment,Children's & Education Services,103,Supplies and Services,504,Equipment,5023,Revenue,03.GROCERIES & PROVISIONS
21-Dec-2017,7004483,9.99,REDBRIDGE PRODUCE & FLOWERS LTD T/A TOTAL PRODUCE,390977,"Environment, Housing & Leisure",Cultural & Related Services,104,Supplies and Services,504,Equipment,5023,Revenue,03.GROCERIES & PROVISIONS
21-Dec-2017,7004483,5.35,REDBRIDGE PRODUCE & FLOWERS LTD T/A TOTAL PRODUCE,390977,Commissioning & Investment,Children's & Education Services,103,Supplies and Services,504,Equipment,5023,Revenue,03.GROCERIES & PROVISIONS
21-Dec-2017,7004483,117.15,REDBRIDGE PRODUCE & FLOWERS LTD T/A TOTAL PRODUCE,390977,Commissioning & Investment,Children's & Education Services,103,Supplies and Services,504,Equipment,5023,Revenue,03.GROCERIES & PROVISIONS
21-Dec-2017,7004483,6.80,REDBRIDGE PRODUCE & FLOWERS LTD T/A TOTAL PRODUCE,390977,Commissioning & Investment,Children's & Education Services,103,Supplies and Services,504,Equipment,5023,Revenue,03.GROCERIES & PROVISIONS
21-Dec-2017,7004483,2.15,REDBRIDGE PRODUCE & FLOWERS LTD T/A TOTAL PRODUCE,390977,Commissioning & Investment,Children's & Education Services,103,Supplies and Services,504,Equipment,5023,Revenue,03.GROCERIES & PROVISIONS
21-Dec-2017,7004483,0.78,REDBRIDGE PRODUCE & FLOWERS LTD T/A TOTAL PRODUCE,390977,Commissioning & Investment,Children's & Education Services,103,Supplies and Services,504,Equipment,5023,Revenue,03.GROCERIES & PROVISIONS
21-Dec-2017,7004483,41.61,REDBRIDGE PRODUCE & FLOWERS LTD T/A TOTAL PRODUCE,390977,Commissioning & Investment,Children's & Education Services,103,Supplies and Services,504,Equipment,5023,Revenue,03.GROCERIES & PROVISIONS
21-Dec-2017,7004483,1.25,REDBRIDGE PRODUCE & FLOWERS LTD T/A TOTAL PRODUCE,390977,Commissioning & Investment,Children's & Education Services,103,Supplies and Services,504,Equipment,5023,Revenue,03.GROCERIES & PROVISIONS
21-Dec-2017,7004483,6.12,REDBRIDGE PRODUCE & FLOWERS LTD T/A TOTAL PRODUCE,390977,Commissioning & Investment,Children's & Education Services,103,Supplies and Services,504,Equipment,5023,Revenue,03.GROCERIES & PROVISIONS
21-Dec-2017,7004483,3.56,REDBRIDGE PRODUCE & FLOWERS LTD T/A TOTAL PRODUCE,390977,Commissioning & Investment,Children's & Education Services,103,Supplies and Services,504,Equipment,5023,Revenue,03.GROCERIES & PROVISIONS
21-Dec-2017,7004483,0.76,REDBRIDGE PRODUCE & FLOWERS LTD T/A TOTAL PRODUCE,390977,Commissioning & Investment,Children's & Education Services,103,Supplies and Services,504,Equipment,5023,Revenue,03.GROCERIES & PROVISIONS
21-Dec-2017,7004483,66.08,REDBRIDGE PRODUCE & FLOWERS LTD T/A TOTAL PRODUCE,390977,Commissioning & Investment,Children's & Education Services,103,Supplies and Services,504,Equipment,5023,Revenue,03.GROCERIES & PROVISIONS
21-Dec-2017,7004483,49.96,REDBRIDGE PRODUCE & FLOWERS LTD T/A TOTAL PRODUCE,390977,Commissioning & Investment,Children's & Education Services,103,Supplies and Services,504,Equipment,5023,Revenue,03.GROCERIES & PROVISIONS
21-Dec-2017,7004483,28.85,REDBRIDGE PRODUCE & FLOWERS LTD T/A TOTAL PRODUCE,390977,Commissioning & Investment,Children's & Education Services,103,Supplies and Services,504,Equipment,5023,Revenue,03.GROCERIES & PROVISIONS
21-Dec-2017,7004483,15.00,REDBRIDGE PRODUCE & FLOWERS LTD T/A TOTAL PRODUCE,390977,Commissioning & Investment,Children's & Education Services,103,Supplies and Services,504,Equipment,5023,Revenue,03.GROCERIES & PROVISIONS
21-Dec-2017,7004483,1.10,REDBRIDGE PRODUCE & FLOWERS LTD T/A TOTAL PRODUCE,390977,Commissioning & Investment,Children's & Education Services,103,Supplies and Services,504,Equipment,5023,Revenue,03.GROCERIES & PROVISIONS
21-Dec-2017,7004483,18.56,REDBRIDGE PRODUCE & FLOWERS LTD T/A TOTAL PRODUCE,390977,Commissioning & Investment,Children's & Education Services,103,Supplies and Services,504,Equipment,5023,Revenue,03.GROCERIES & PROVISIONS
21-Dec-2017,7004483,2.40,REDBRIDGE PRODUCE & FLOWERS LTD T/A TOTAL PRODUCE,390977,Commissioning & Investment,Children's & Education Services,103,Supplies and Services,504,Equipment,5023,Revenue,03.GROCERIES & PROVISIONS
21-Dec-2017,7004483,95.67,REDBRIDGE PRODUCE & FLOWERS LTD T/A TOTAL PRODUCE,390977,Commissioning & Investment,Children's & Education Services,103,Supplies and Services,504,Equipment,5023,Revenue,03.GROCERIES & PROVISIONS
21-Dec-2017,7004483,-1.02,REDBRIDGE PRODUCE & FLOWERS LTD T/A TOTAL PRODUCE,390977,Commissioning & Investment,Children's & Education Services,103,Supplies and Services,504,Equipment,5023,Revenue,03.GROCERIES & PROVISIONS
21-Dec-2017,7004483,52.22,REDBRIDGE PRODUCE & FLOWERS LTD T/A TOTAL PRODUCE,390977,Commissioning & Investment,Children's & Education Services,103,Supplies and Services,504,Equipment,5023,Revenue,03.GROCERIES & PROVISIONS
21-Dec-2017,7004483,73.55,REDBRIDGE PRODUCE & FLOWERS LTD T/A TOTAL PRODUCE,390977,Commissioning & Investment,Children's & Education Services,103,Supplies and Services,504,Equipment,5023,Revenue,03.GROCERIES & PROVISIONS
21-Dec-2017,7004483,40.70,REDBRIDGE PRODUCE & FLOWERS LTD T/A TOTAL PRODUCE,390977,Commissioning & Investment,Children's & Education Services,103,Supplies and Services,504,Equipment,5023,Revenue,03.GROCERIES & PROVISIONS
21-Dec-2017,7004483,121.47,REDBRIDGE PRODUCE & FLOWERS LTD T/A TOTAL PRODUCE,390977,Commissioning & Investment,Children's & Education Services,103,Supplies and Services,504,Equipment,5023,Revenue,03.GROCERIES & PROVISIONS
21-Dec-2017,7004483,3.06,REDBRIDGE PRODUCE & FLOWERS LTD T/A TOTAL PRODUCE,390977,Commissioning & Investment,Children's & Education Services,103,Supplies and Services,504,Equipment,5023,Revenue,03.GROCERIES & PROVISIONS
21-Dec-2017,7004483,23.12,REDBRIDGE PRODUCE & FLOWERS LTD T/A TOTAL PRODUCE,390977,"Environment, Housing & Leisure",Cultural & Related Services,104,Supplies and Services,504,Equipment,5023,Revenue,03.GROCERIES & PROVISIONS
21-Dec-2017,7004483,1.25,REDBRIDGE PRODUCE & FLOWERS LTD T/A TOTAL PRODUCE,390977,Commissioning & Investment,Children's & Education Services,103,Supplies and Services,504,Equipment,5023,Revenue,03.GROCERIES & PROVISIONS
21-Dec-2017,7004483,4.40,REDBRIDGE PRODUCE & FLOWERS LTD T/A TOTAL PRODUCE,390977,Commissioning & Investment,Children's & Education Services,103,Supplies and Services,504,Equipment,5023,Revenue,03.GROCERIES & PROVISIONS
21-Dec-2017,7004483,-1.02,REDBRIDGE PRODUCE & FLOWERS LTD T/A TOTAL PRODUCE,390977,Commissioning & Investment,Children's & Education Services,103,Supplies and Services,504,Equipment,5023,Revenue,03.GROCERIES & PROVISIONS
21-Dec-2017,7004483,103.40,REDBRIDGE PRODUCE & FLOWERS LTD T/A TOTAL PRODUCE,390977,Commissioning & Investment,Children's & Education Services,103,Supplies and Services,504,Equipment,5023,Revenue,03.GROCERIES & PROVISIONS
21-Dec-2017,7004483,0.78,REDBRIDGE PRODUCE & FLOWERS LTD T/A TOTAL PRODUCE,390977,Commissioning & Investment,Children's & Education Services,103,Supplies and Services,504,Equipment,5023,Revenue,03.GROCERIES & PROVISIONS
21-Dec-2017,7004483,6.60,REDBRIDGE PRODUCE & FLOWERS LTD T/A TOTAL PRODUCE,390977,"Environment, Housing & Leisure",Adult Social Care,101,Supplies and Services,504,Equipment,5023,Revenue,03.GROCERIES & PROVISIONS
21-Dec-2017,7004483,4.40,REDBRIDGE PRODUCE & FLOWERS LTD T/A TOTAL PRODUCE,390977,Commissioning & Investment,Children's & Education Services,103,Supplies and Services,504,Equipment,5023,Revenue,03.GROCERIES & PROVISIONS
21-Dec-2017,7004483,1.10,REDBRIDGE PRODUCE & FLOWERS LTD T/A TOTAL PRODUCE,390977,Commissioning & Investment,Children's & Education Services,103,Supplies and Services,504,Equipment,5023,Revenue,03.GROCERIES & PROVISIONS
21-Dec-2017,7004483,119.41,REDBRIDGE PRODUCE & FLOWERS LTD T/A TOTAL PRODUCE,390977,Commissioning & Investment,Children's & Education Services,103,Supplies and Services,504,Equipment,5023,Revenue,03.GROCERIES & PROVISIONS
21-Dec-2017,7004483,151.84,REDBRIDGE PRODUCE & FLOWERS LTD T/A TOTAL PRODUCE,390977,Commissioning & Investment,Children's & Education Services,103,Supplies and Services,504,Equipment,5023,Revenue,03.GROCERIES & PROVISIONS
21-Dec-2017,7004483,-1.15,REDBRIDGE PRODUCE & FLOWERS LTD T/A TOTAL PRODUCE,390977,Commissioning & Investment,Children's & Education Services,103,Supplies and Services,504,Equipment,5023,Revenue,03.GROCERIES & PROVISIONS
21-Dec-2017,7004483,16.26,REDBRIDGE PRODUCE & FLOWERS LTD T/A TOTAL PRODUCE,390977,Commissioning & Investment,Children's & Education Services,103,Supplies and Services,504,Equipment,5023,Revenue,03.GROCERIES & PROVISIONS
21-Dec-2017,7004483,159.74,REDBRIDGE PRODUCE & FLOWERS LTD T/A TOTAL PRODUCE,390977,Commissioning & Investment,Children's & Education Services,103,Supplies and Services,504,Equipment,5023,Revenue,03.GROCERIES & PROVISIONS
21-Dec-2017,7004483,0.73,REDBRIDGE PRODUCE & FLOWERS LTD T/A TOTAL PRODUCE,390977,Commissioning & Investment,Children's & Education Services,103,Supplies and Services,504,Equipment,5023,Revenue,03.GROCERIES & PROVISIONS
21-Dec-2017,7004483,0.79,REDBRIDGE PRODUCE & FLOWERS LTD T/A TOTAL PRODUCE,390977,Commissioning & Investment,Children's & Education Services,103,Supplies and Services,504,Equipment,5023,Revenue,03.GROCERIES & PROVISIONS
21-Dec-2017,7004483,6.96,REDBRIDGE PRODUCE & FLOWERS LTD T/A TOTAL PRODUCE,390977,Commissioning & Investment,Children's & Education Services,103,Supplies and Services,504,Equipment,5023,Revenue,03.GROCERIES & PROVISIONS
21-Dec-2017,7004483,309.55,REDBRIDGE PRODUCE & FLOWERS LTD T/A TOTAL PRODUCE,390977,Commissioning & Investment,Children's & Education Services,103,Supplies and Services,504,Equipment,5023,Revenue,03.GROCERIES & PROVISIONS
21-Dec-2017,7004483,16.12,REDBRIDGE PRODUCE & FLOWERS LTD T/A TOTAL PRODUCE,390977,Commissioning & Investment,Children's & Education Services,103,Supplies and Services,504,Equipment,5023,Revenue,03.GROCERIES & PROVISIONS
21-Dec-2017,7004483,62.36,REDBRIDGE PRODUCE & FLOWERS LTD T/A TOTAL PRODUCE,390977,Commissioning & Investment,Children's & Education Services,103,Supplies and Services,504,Equipment,5023,Revenue,03.GROCERIES & PROVISIONS
21-Dec-2017,7004483,2.04,REDBRIDGE PRODUCE & FLOWERS LTD T/A TOTAL PRODUCE,390977,Commissioning & Investment,Children's & Education Services,103,Supplies and Services,504,Equipment,5023,Revenue,03.GROCERIES & PROVISIONS
21-Dec-2017,7004483,52.72,REDBRIDGE PRODUCE & FLOWERS LTD T/A TOTAL PRODUCE,390977,Commissioning & Investment,Children's & Education Services,103,Supplies and Services,504,Equipment,5023,Revenue,03.GROCERIES & PROVISIONS
21-Dec-2017,7004483,1.78,REDBRIDGE PRODUCE & FLOWERS LTD T/A TOTAL PRODUCE,390977,Commissioning & Investment,Children's & Education Services,103,Supplies and Services,504,Equipment,5023,Revenue,03.GROCERIES & PROVISIONS
21-Dec-2017,7004483,1.09,REDBRIDGE PRODUCE & FLOWERS LTD T/A TOTAL PRODUCE,390977,Commissioning & Investment,Children's & Education Services,103,Supplies and Services,504,Equipment,5023,Revenue,03.GROCERIES & PROVISIONS
21-Dec-2017,7004483,1.53,REDBRIDGE PRODUCE & FLOWERS LTD T/A TOTAL PRODUCE,390977,Commissioning & Investment,Children's & Education Services,103,Supplies and Services,504,Equipment,5023,Revenue,03.GROCERIES & PROVISIONS
21-Dec-2017,7004483,10.70,REDBRIDGE PRODUCE & FLOWERS LTD T/A TOTAL PRODUCE,390977,Commissioning & Investment,Children's & Education Services,103,Supplies and Services,504,Equipment,5023,Revenue,03.GROCERIES & PROVISIONS
21-Dec-2017,7004483,4.40,REDBRIDGE PRODUCE & FLOWERS LTD T/A TOTAL PRODUCE,390977,Commissioning & Investment,Children's & Education Services,103,Supplies and Services,504,Equipment,5023,Revenue,03.GROCERIES & PROVISIONS
21-Dec-2017,7004483,1.30,REDBRIDGE PRODUCE & FLOWERS LTD T/A TOTAL PRODUCE,390977,Commissioning & Investment,Children's & Education Services,103,Supplies and Services,504,Equipment,5023,Revenue,03.GROCERIES & PROVISIONS
21-Dec-2017,7004483,33.52,REDBRIDGE PRODUCE & FLOWERS LTD T/A TOTAL PRODUCE,390977,Commissioning & Investment,Children's & Education Services,103,Supplies and Services,504,Equipment,5023,Revenue,03.GROCERIES & PROVISIONS
21-Dec-2017,7004483,1.92,REDBRIDGE PRODUCE & FLOWERS LTD T/A TOTAL PRODUCE,390977,Commissioning & Investment,Children's & Education Services,103,Supplies and Services,504,Equipment,5023,Revenue,03.GROCERIES & PROVISIONS
21-Dec-2017,7004483,22.64,REDBRIDGE PRODUCE & FLOWERS LTD T/A TOTAL PRODUCE,390977,Commissioning & Investment,Children's & Education Services,103,Supplies and Services,504,Equipment,5023,Revenue,03.GROCERIES & PROVISIONS
21-Dec-2017,7004483,0.89,REDBRIDGE PRODUCE & FLOWERS LTD T/A TOTAL PRODUCE,390977,Commissioning & Investment,Children's & Education Services,103,Supplies and Services,504,Equipment,5023,Revenue,03.GROCERIES & PROVISIONS
21-Dec-2017,7004483,85.72,REDBRIDGE PRODUCE & FLOWERS LTD T/A TOTAL PRODUCE,390977,Commissioning & Investment,Children's & Education Services,103,Supplies and Services,504,Equipment,5023,Revenue,03.GROCERIES & PROVISIONS
21-Dec-2017,7004483,119.96,REDBRIDGE PRODUCE & FLOWERS LTD T/A TOTAL PRODUCE,390977,Commissioning & Investment,Children's & Education Services,103,Supplies and Services,504,Equipment,5023,Revenue,03.GROCERIES & PROVISIONS
21-Dec-2017,7004483,36.75,REDBRIDGE PRODUCE & FLOWERS LTD T/A TOTAL PRODUCE,390977,Commissioning & Investment,Children's & Education Services,103,Supplies and Services,504,Equipment,5023,Revenue,03.GROCERIES & PROVISIONS
21-Dec-2017,7004483,6.60,REDBRIDGE PRODUCE & FLOWERS LTD T/A TOTAL PRODUCE,390977,Commissioning & Investment,Children's & Education Services,103,Supplies and Services,504,Equipment,5023,Revenue,03.GROCERIES & PROVISIONS
21-Dec-2017,7004483,5.50,REDBRIDGE PRODUCE & FLOWERS LTD T/A TOTAL PRODUCE,390977,Commissioning & Investment,Children's & Education Services,103,Supplies and Services,504,Equipment,5023,Revenue,03.GROCERIES & PROVISIONS
21-Dec-2017,7004483,2.20,REDBRIDGE PRODUCE & FLOWERS LTD T/A TOTAL PRODUCE,390977,Commissioning & Investment,Children's & Education Services,103,Supplies and Services,504,Equipment,5023,Revenue,03.GROCERIES & PROVISIONS
21-Dec-2017,7004483,1.29,REDBRIDGE PRODUCE & FLOWERS LTD T/A TOTAL PRODUCE,390977,Commissioning & Investment,Children's & Education Services,103,Supplies and Services,504,Equipment,5023,Revenue,03.GROCERIES & PROVISIONS
21-Dec-2017,7004483,2.50,REDBRIDGE PRODUCE & FLOWERS LTD T/A TOTAL PRODUCE,390977,Commissioning & Investment,Children's & Education Services,103,Supplies and Services,504,Equipment,5023,Revenue,03.GROCERIES & PROVISIONS
21-Dec-2017,7004483,14.61,REDBRIDGE PRODUCE & FLOWERS LTD T/A TOTAL PRODUCE,390977,Commissioning & Investment,Children's & Education Services,103,Supplies and Services,504,Equipment,5023,Revenue,03.GROCERIES & PROVISIONS
21-Dec-2017,7004483,-4.65,REDBRIDGE PRODUCE & FLOWERS LTD T/A TOTAL PRODUCE,390977,Commissioning & Investment,Children's & Education Services,103,Supplies and Services,504,Equipment,5023,Revenue,03.GROCERIES & PROVISIONS
21-Dec-2017,7004483,9.16,REDBRIDGE PRODUCE & FLOWERS LTD T/A TOTAL PRODUCE,390977,Commissioning & Investment,Children's & Education Services,103,Supplies and Services,504,Equipment,5023,Revenue,03.GROCERIES & PROVISIONS
21-Dec-2017,7004483,1.53,REDBRIDGE PRODUCE & FLOWERS LTD T/A TOTAL PRODUCE,390977,Commissioning & Investment,Children's & Education Services,103,Supplies and Services,504,Equipment,5023,Revenue,03.GROCERIES & PROVISIONS
21-Dec-2017,7004483,6.12,REDBRIDGE PRODUCE & FLOWERS LTD T/A TOTAL PRODUCE,390977,Commissioning & Investment,Children's & Education Services,103,Supplies and Services,504,Equipment,5023,Revenue,03.GROCERIES & PROVISIONS
21-Dec-2017,7004483,4.81,REDBRIDGE PRODUCE & FLOWERS LTD T/A TOTAL PRODUCE,390977,Commissioning & Investment,Children's & Education Services,103,Supplies and Services,504,Equipment,5023,Revenue,03.GROCERIES & PROVISIONS
21-Dec-2017,7004483,2.04,REDBRIDGE PRODUCE & FLOWERS LTD T/A TOTAL PRODUCE,390977,Commissioning & Investment,Children's & Education Services,103,Supplies and Services,504,Equipment,5023,Revenue,03.GROCERIES & PROVISIONS
21-Dec-2017,7004483,23.10,REDBRIDGE PRODUCE & FLOWERS LTD T/A TOTAL PRODUCE,390977,Commissioning & Investment,Children's & Education Services,103,Supplies and Services,504,Equipment,5023,Revenue,03.GROCERIES & PROVISIONS
21-Dec-2017,7004483,43.42,REDBRIDGE PRODUCE & FLOWERS LTD T/A TOTAL PRODUCE,390977,Commissioning & Investment,Children's & Education Services,103,Supplies and Services,504,Equipment,5023,Revenue,03.GROCERIES & PROVISIONS
21-Dec-2017,7004483,40.00,REDBRIDGE PRODUCE & FLOWERS LTD T/A TOTAL PRODUCE,390977,Commissioning & Investment,Children's & Education Services,103,Supplies and Services,504,Equipment,5023,Revenue,03.GROCERIES & PROVISIONS
21-Dec-2017,7004483,45.27,REDBRIDGE PRODUCE & FLOWERS LTD T/A TOTAL PRODUCE,390977,Commissioning & Investment,Children's & Education Services,103,Supplies and Services,504,Equipment,5023,Revenue,03.GROCERIES & PROVISIONS
21-Dec-2017,7004483,64.73,REDBRIDGE PRODUCE & FLOWERS LTD T/A TOTAL PRODUCE,390977,Commissioning & Investment,Children's & Education Services,103,Supplies and Services,504,Equipment,5023,Revenue,03.GROCERIES & PROVISIONS
21-Dec-2017,7004483,1.46,REDBRIDGE PRODUCE & FLOWERS LTD T/A TOTAL PRODUCE,390977,Commissioning & Investment,Children's & Education Services,103,Supplies and Services,504,Equipment,5023,Revenue,03.GROCERIES & PROVISIONS
21-Dec-2017,7004483,54.41,REDBRIDGE PRODUCE & FLOWERS LTD T/A TOTAL PRODUCE,390977,Commissioning & Investment,Children's & Education Services,103,Supplies and Services,504,Equipment,5023,Revenue,03.GROCERIES & PROVISIONS
21-Dec-2017,7004483,37.66,REDBRIDGE PRODUCE & FLOWERS LTD T/A TOTAL PRODUCE,390977,Commissioning & Investment,Children's & Education Services,103,Supplies and Services,504,Equipment,5023,Revenue,03.GROCERIES & PROVISIONS
21-Dec-2017,7004483,51.87,REDBRIDGE PRODUCE & FLOWERS LTD T/A TOTAL PRODUCE,390977,Commissioning & Investment,Children's & Education Services,103,Supplies and Services,504,Equipment,5023,Revenue,03.GROCERIES & PROVISIONS
21-Dec-2017,7004483,217.68,REDBRIDGE PRODUCE & FLOWERS LTD T/A TOTAL PRODUCE,390977,Commissioning & Investment,Children's & Education Services,103,Supplies and Services,504,Equipment,5023,Revenue,03.GROCERIES & PROVISIONS
21-Dec-2017,7004483,137.39,REDBRIDGE PRODUCE & FLOWERS LTD T/A TOTAL PRODUCE,390977,Commissioning & Investment,Children's & Education Services,103,Supplies and Services,504,Equipment,5023,Revenue,03.GROCERIES & PROVISIONS
21-Dec-2017,7004483,-1.15,REDBRIDGE PRODUCE & FLOWERS LTD T/A TOTAL PRODUCE,390977,"Environment, Housing & Leisure",Adult Social Care,101,Supplies and Services,504,Equipment,5023,Revenue,03.GROCERIES & PROVISIONS
21-Dec-2017,7004483,83.86,REDBRIDGE PRODUCE & FLOWERS LTD T/A TOTAL PRODUCE,390977,Commissioning & Investment,Children's & Education Services,103,Supplies and Services,504,Equipment,5023,Revenue,03.GROCERIES & PROVISIONS
21-Dec-2017,7004483,1.53,REDBRIDGE PRODUCE & FLOWERS LTD T/A TOTAL PRODUCE,390977,Commissioning & Investment,Children's & Education Services,103,Supplies and Services,504,Equipment,5023,Revenue,03.GROCERIES & PROVISIONS
21-Dec-2017,7004483,1.25,REDBRIDGE PRODUCE & FLOWERS LTD T/A TOTAL PRODUCE,390977,Commissioning & Investment,Children's & Education Services,103,Supplies and Services,504,Equipment,5023,Revenue,03.GROCERIES & PROVISIONS
21-Dec-2017,7004483,18.36,REDBRIDGE PRODUCE & FLOWERS LTD T/A TOTAL PRODUCE,390977,Commissioning & Investment,Children's & Education Services,103,Supplies and Services,504,Equipment,5023,Revenue,03.GROCERIES & PROVISIONS
21-Dec-2017,7004483,-4.09,REDBRIDGE PRODUCE & FLOWERS LTD T/A TOTAL PRODUCE,390977,Commissioning & Investment,Children's & Education Services,103,Supplies and Services,504,Equipment,5023,Revenue,03.GROCERIES & PROVISIONS
21-Dec-2017,7004483,6.60,REDBRIDGE PRODUCE & FLOWERS LTD T/A TOTAL PRODUCE,390977,Commissioning & Investment,Children's & Education Services,103,Supplies and Services,504,Equipment,5023,Revenue,03.GROCERIES & PROVISIONS
21-Dec-2017,7004483,1.78,REDBRIDGE PRODUCE & FLOWERS LTD T/A TOTAL PRODUCE,390977,Commissioning & Investment,Children's & Education Services,103,Supplies and Services,504,Equipment,5023,Revenue,03.GROCERIES & PROVISIONS
21-Dec-2017,7004483,30.98,REDBRIDGE PRODUCE & FLOWERS LTD T/A TOTAL PRODUCE,390977,Commissioning & Investment,Children's & Education Services,103,Supplies and Services,504,Equipment,5023,Revenue,03.GROCERIES & PROVISIONS
21-Dec-2017,7004483,17.60,REDBRIDGE PRODUCE & FLOWERS LTD T/A TOTAL PRODUCE,390977,Commissioning & Investment,Children's & Education Services,103,Supplies and Services,504,Equipment,5023,Revenue,03.GROCERIES & PROVISIONS
21-Dec-2017,7004483,123.33,REDBRIDGE PRODUCE & FLOWERS LTD T/A TOTAL PRODUCE,390977,Commissioning & Investment,Children's & Education Services,103,Supplies and Services,504,Equipment,5023,Revenue,03.GROCERIES & PROVISIONS
21-Dec-2017,7004483,-5.10,REDBRIDGE PRODUCE & FLOWERS LTD T/A TOTAL PRODUCE,390977,Commissioning & Investment,Children's & Education Services,103,Supplies and Services,504,Equipment,5023,Revenue,03.GROCERIES & PROVISIONS
21-Dec-2017,7004483,6.60,REDBRIDGE PRODUCE & FLOWERS LTD T/A TOTAL PRODUCE,390977,Commissioning & Investment,Children's & Education Services,103,Supplies and Services,504,Equipment,5023,Revenue,03.GROCERIES & PROVISIONS
21-Dec-2017,7004483,96.91,REDBRIDGE PRODUCE & FLOWERS LTD T/A TOTAL PRODUCE,390977,Commissioning & Investment,Children's & Education Services,103,Supplies and Services,504,Equipment,5023,Revenue,03.GROCERIES & PROVISIONS
21-Dec-2017,7004483,0.78,REDBRIDGE PRODUCE & FLOWERS LTD T/A TOTAL PRODUCE,390977,Commissioning & Investment,Children's & Education Services,103,Supplies and Services,504,Equipment,5023,Revenue,03.GROCERIES & PROVISIONS
21-Dec-2017,7004483,4.48,REDBRIDGE PRODUCE & FLOWERS LTD T/A TOTAL PRODUCE,390977,Commissioning & Investment,Children's & Education Services,103,Supplies and Services,504,Equipment,5023,Revenue,03.GROCERIES & PROVISIONS
21-Dec-2017,7004483,1.56,REDBRIDGE PRODUCE & FLOWERS LTD T/A TOTAL PRODUCE,390977,Commissioning & Investment,Children's & Education Services,103,Supplies and Services,504,Equipment,5023,Revenue,03.GROCERIES & PROVISIONS
21-Dec-2017,7004483,17.87,REDBRIDGE PRODUCE & FLOWERS LTD T/A TOTAL PRODUCE,390977,Commissioning & Investment,Children's & Education Services,103,Supplies and Services,504,Equipment,5023,Revenue,03.GROCERIES & PROVISIONS
21-Dec-2017,7004483,46.23,REDBRIDGE PRODUCE & FLOWERS LTD T/A TOTAL PRODUCE,390977,Commissioning & Investment,Children's & Education Services,103,Supplies and Services,504,Equipment,5023,Revenue,03.GROCERIES & PROVISIONS
21-Dec-2017,7004483,56.51,REDBRIDGE PRODUCE & FLOWERS LTD T/A TOTAL PRODUCE,390977,Commissioning & Investment,Children's & Education Services,103,Supplies and Services,504,Equipment,5023,Revenue,03.GROCERIES & PROVISIONS
21-Dec-2017,7004483,-1.56,REDBRIDGE PRODUCE & FLOWERS LTD T/A TOTAL PRODUCE,390977,Commissioning & Investment,Children's & Education Services,103,Supplies and Services,504,Equipment,5023,Revenue,03.GROCERIES & PROVISIONS
21-Dec-2017,7004483,34.80,REDBRIDGE PRODUCE & FLOWERS LTD T/A TOTAL PRODUCE,390977,Commissioning & Investment,Children's & Education Services,103,Supplies and Services,504,Equipment,5023,Revenue,03.GROCERIES & PROVISIONS
21-Dec-2017,7004483,24.24,REDBRIDGE PRODUCE & FLOWERS LTD T/A TOTAL PRODUCE,390977,Commissioning & Investment,Children's & Education Services,103,Supplies and Services,504,Equipment,5023,Revenue,03.GROCERIES & PROVISIONS
21-Dec-2017,7004483,71.66,REDBRIDGE PRODUCE & FLOWERS LTD T/A TOTAL PRODUCE,390977,Commissioning & Investment,Children's & Education Services,103,Supplies and Services,504,Equipment,5023,Revenue,03.GROCERIES & PROVISIONS
21-Dec-2017,7004483,1.56,REDBRIDGE PRODUCE & FLOWERS LTD T/A TOTAL PRODUCE,390977,Commissioning & Investment,Children's & Education Services,103,Supplies and Services,504,Equipment,5023,Revenue,03.GROCERIES & PROVISIONS
21-Dec-2017,7004483,88.93,REDBRIDGE PRODUCE & FLOWERS LTD T/A TOTAL PRODUCE,390977,Commissioning & Investment,Children's & Education Services,103,Supplies and Services,504,Equipment,5023,Revenue,03.GROCERIES & PROVISIONS
21-Dec-2017,7004483,2.20,REDBRIDGE PRODUCE & FLOWERS LTD T/A TOTAL PRODUCE,390977,Commissioning & Investment,Children's & Education Services,103,Supplies and Services,504,Equipment,5023,Revenue,03.GROCERIES & PROVISIONS
21-Dec-2017,7004483,36.22,REDBRIDGE PRODUCE & FLOWERS LTD T/A TOTAL PRODUCE,390977,Commissioning & Investment,Children's & Education Services,103,Supplies and Services,504,Equipment,5023,Revenue,03.GROCERIES & PROVISIONS
21-Dec-2017,7004483,8.80,REDBRIDGE PRODUCE & FLOWERS LTD T/A TOTAL PRODUCE,390977,Commissioning & Investment,Children's & Education Services,103,Supplies and Services,504,Equipment,5023,Revenue,03.GROCERIES & PROVISIONS
21-Dec-2017,7004483,13.20,REDBRIDGE PRODUCE & FLOWERS LTD T/A TOTAL PRODUCE,390977,Commissioning & Investment,Children's & Education Services,103,Supplies and Services,504,Equipment,5023,Revenue,03.GROCERIES & PROVISIONS
21-Dec-2017,7004483,0.73,REDBRIDGE PRODUCE & FLOWERS LTD T/A TOTAL PRODUCE,390977,Commissioning & Investment,Children's & Education Services,103,Supplies and Services,504,Equipment,5023,Revenue,03.GROCERIES & PROVISIONS
21-Dec-2017,7004483,19.63,REDBRIDGE PRODUCE & FLOWERS LTD T/A TOTAL PRODUCE,390977,Commissioning & Investment,Children's & Education Services,103,Supplies and Services,504,Equipment,5023,Revenue,03.GROCERIES & PROVISIONS
21-Dec-2017,7004483,49.25,REDBRIDGE PRODUCE & FLOWERS LTD T/A TOTAL PRODUCE,390977,Commissioning & Investment,Children's & Education Services,103,Supplies and Services,504,Equipment,5023,Revenue,03.GROCERIES & PROVISIONS
21-Dec-2017,7004483,18.36,REDBRIDGE PRODUCE & FLOWERS LTD T/A TOTAL PRODUCE,390977,Commissioning & Investment,Children's & Education Services,103,Supplies and Services,504,Equipment,5023,Revenue,03.GROCERIES & PROVISIONS
21-Dec-2017,7004483,2.29,REDBRIDGE PRODUCE & FLOWERS LTD T/A TOTAL PRODUCE,390977,Commissioning & Investment,Children's & Education Services,103,Supplies and Services,504,Equipment,5023,Revenue,03.GROCERIES & PROVISIONS
21-Dec-2017,7004483,11.00,REDBRIDGE PRODUCE & FLOWERS LTD T/A TOTAL PRODUCE,390977,Commissioning & Investment,Children's & Education Services,103,Supplies and Services,504,Equipment,5023,Revenue,03.GROCERIES & PROVISIONS
21-Dec-2017,7004483,4.40,REDBRIDGE PRODUCE & FLOWERS LTD T/A TOTAL PRODUCE,390977,Commissioning & Investment,Children's & Education Services,103,Supplies and Services,504,Equipment,5023,Revenue,03.GROCERIES & PROVISIONS
21-Dec-2017,7004483,20.24,REDBRIDGE PRODUCE & FLOWERS LTD T/A TOTAL PRODUCE,390977,Commissioning & Investment,Children's & Education Services,103,Supplies and Services,504,Equipment,5023,Revenue,03.GROCERIES & PROVISIONS
21-Dec-2017,7004483,33.96,REDBRIDGE PRODUCE & FLOWERS LTD T/A TOTAL PRODUCE,390977,Commissioning & Investment,Children's & Education Services,103,Supplies and Services,504,Equipment,5023,Revenue,03.GROCERIES & PROVISIONS
21-Dec-2017,7004483,3.06,REDBRIDGE PRODUCE & FLOWERS LTD T/A TOTAL PRODUCE,390977,Commissioning & Investment,Children's & Education Services,103,Supplies and Services,504,Equipment,5023,Revenue,03.GROCERIES & PROVISIONS
21-Dec-2017,7004483,4.58,REDBRIDGE PRODUCE & FLOWERS LTD T/A TOTAL PRODUCE,390977,Commissioning & Investment,Children's & Education Services,103,Supplies and Services,504,Equipment,5023,Revenue,03.GROCERIES & PROVISIONS
21-Dec-2017,7004483,67.24,REDBRIDGE PRODUCE & FLOWERS LTD T/A TOTAL PRODUCE,390977,Commissioning & Investment,Children's & Education Services,103,Supplies and Services,504,Equipment,5023,Revenue,03.GROCERIES & PROVISIONS
21-Dec-2017,7004483,37.23,REDBRIDGE PRODUCE & FLOWERS LTD T/A TOTAL PRODUCE,390977,Commissioning & Investment,Children's & Education Services,103,Supplies and Services,504,Equipment,5023,Revenue,03.GROCERIES & PROVISIONS
21-Dec-2017,7004483,5.10,REDBRIDGE PRODUCE & FLOWERS LTD T/A TOTAL PRODUCE,390977,Commissioning & Investment,Children's & Education Services,103,Supplies and Services,504,Equipment,5023,Revenue,03.GROCERIES & PROVISIONS
21-Dec-2017,7004483,14.97,REDBRIDGE PRODUCE & FLOWERS LTD T/A TOTAL PRODUCE,390977,Commissioning & Investment,Children's & Education Services,103,Supplies and Services,504,Equipment,5023,Revenue,03.GROCERIES & PROVISIONS
21-Dec-2017,7004483,1.15,REDBRIDGE PRODUCE & FLOWERS LTD T/A TOTAL PRODUCE,390977,Commissioning & Investment,Children's & Education Services,103,Supplies and Services,504,Equipment,5023,Revenue,03.GROCERIES & PROVISIONS
21-Dec-2017,7004483,0.78,REDBRIDGE PRODUCE & FLOWERS LTD T/A TOTAL PRODUCE,390977,Commissioning & Investment,Children's & Education Services,103,Supplies and Services,504,Equipment,5023,Revenue,03.GROCERIES & PROVISIONS
21-Dec-2017,7004483,50.69,REDBRIDGE PRODUCE & FLOWERS LTD T/A TOTAL PRODUCE,390977,Commissioning & Investment,Children's & Education Services,103,Supplies and Services,504,Equipment,5023,Revenue,03.GROCERIES & PROVISIONS
21-Dec-2017,7004483,-0.49,REDBRIDGE PRODUCE & FLOWERS LTD T/A TOTAL PRODUCE,390977,Commissioning & Investment,Children's & Education Services,103,Supplies and Services,504,Equipment,5023,Revenue,03.GROCERIES & PROVISIONS
21-Dec-2017,7004483,0.57,REDBRIDGE PRODUCE & FLOWERS LTD T/A TOTAL PRODUCE,390977,"Environment, Housing & Leisure",Adult Social Care,101,Supplies and Services,504,Equipment,5023,Revenue,03.GROCERIES & PROVISIONS
21-Dec-2017,7004483,-2.08,REDBRIDGE PRODUCE & FLOWERS LTD T/A TOTAL PRODUCE,390977,Commissioning & Investment,Children's & Education Services,103,Supplies and Services,504,Equipment,5023,Revenue,03.GROCERIES & PROVISIONS
21-Dec-2017,7004483,3.18,REDBRIDGE PRODUCE & FLOWERS LTD T/A TOTAL PRODUCE,390977,Commissioning & Investment,Children's & Education Services,103,Supplies and Services,504,Equipment,5023,Revenue,03.GROCERIES & PROVISIONS
21-Dec-2017,7004483,3.30,REDBRIDGE PRODUCE & FLOWERS LTD T/A TOTAL PRODUCE,390977,Commissioning & Investment,Children's & Education Services,103,Supplies and Services,504,Equipment,5023,Revenue,03.GROCERIES & PROVISIONS
21-Dec-2017,7004483,2.04,REDBRIDGE PRODUCE & FLOWERS LTD T/A TOTAL PRODUCE,390977,Commissioning & Investment,Children's & Education Services,103,Supplies and Services,504,Equipment,5023,Revenue,03.GROCERIES & PROVISIONS
21-Dec-2017,7004483,0.78,REDBRIDGE PRODUCE & FLOWERS LTD T/A TOTAL PRODUCE,390977,Commissioning & Investment,Children's & Education Services,103,Supplies and Services,504,Equipment,5023,Revenue,03.GROCERIES & PROVISIONS
21-Dec-2017,7004483,0.78,REDBRIDGE PRODUCE & FLOWERS LTD T/A TOTAL PRODUCE,390977,Commissioning & Investment,Children's & Education Services,103,Supplies and Services,504,Equipment,5023,Revenue,03.GROCERIES & PROVISIONS
21-Dec-2017,7004483,1.09,REDBRIDGE PRODUCE & FLOWERS LTD T/A TOTAL PRODUCE,390977,Commissioning & Investment,Children's & Education Services,103,Supplies and Services,504,Equipment,5023,Revenue,03.GROCERIES & PROVISIONS
21-Dec-2017,7004483,0.78,REDBRIDGE PRODUCE & FLOWERS LTD T/A TOTAL PRODUCE,390977,Commissioning & Investment,Children's & Education Services,103,Supplies and Services,504,Equipment,5023,Revenue,03.GROCERIES & PROVISIONS
21-Dec-2017,7004483,0.78,REDBRIDGE PRODUCE & FLOWERS LTD T/A TOTAL PRODUCE,390977,Commissioning & Investment,Children's & Education Services,103,Supplies and Services,504,Equipment,5023,Revenue,03.GROCERIES & PROVISIONS
21-Dec-2017,7004483,-57.29,REDBRIDGE PRODUCE & FLOWERS LTD T/A TOTAL PRODUCE,390977,Commissioning & Investment,Children's & Education Services,103,Supplies and Services,504,Equipment,5023,Revenue,03.GROCERIES & PROVISIONS
21-Dec-2017,7004483,66.39,REDBRIDGE PRODUCE & FLOWERS LTD T/A TOTAL PRODUCE,390977,Commissioning & Investment,Children's & Education Services,103,Supplies and Services,504,Equipment,5023,Revenue,03.GROCERIES & PROVISIONS
21-Dec-2017,7004483,24.05,REDBRIDGE PRODUCE & FLOWERS LTD T/A TOTAL PRODUCE,390977,Commissioning & Investment,Children's & Education Services,103,Supplies and Services,504,Equipment,5023,Revenue,03.GROCERIES & PROVISIONS
21-Dec-2017,7004483,30.34,REDBRIDGE PRODUCE & FLOWERS LTD T/A TOTAL PRODUCE,390977,Commissioning & Investment,Children's & Education Services,103,Supplies and Services,504,Equipment,5023,Revenue,03.GROCERIES & PROVISIONS
21-Dec-2017,7004483,7.20,REDBRIDGE PRODUCE & FLOWERS LTD T/A TOTAL PRODUCE,390977,Commissioning & Investment,Children's & Education Services,103,Supplies and Services,504,Equipment,5023,Revenue,03.GROCERIES & PROVISIONS
21-Dec-2017,7004483,48.94,REDBRIDGE PRODUCE & FLOWERS LTD T/A TOTAL PRODUCE,390977,Commissioning & Investment,Children's & Education Services,103,Supplies and Services,504,Equipment,5023,Revenue,03.GROCERIES & PROVISIONS
21-Dec-2017,7004483,42.26,REDBRIDGE PRODUCE & FLOWERS LTD T/A TOTAL PRODUCE,390977,Commissioning & Investment,Children's & Education Services,103,Supplies and Services,504,Equipment,5023,Revenue,03.GROCERIES & PROVISIONS
21-Dec-2017,7004483,2.67,REDBRIDGE PRODUCE & FLOWERS LTD T/A TOTAL PRODUCE,390977,Commissioning & Investment,Children's & Education Services,103,Supplies and Services,504,Equipment,5023,Revenue,03.GROCERIES & PROVISIONS
21-Dec-2017,7004483,6.60,REDBRIDGE PRODUCE & FLOWERS LTD T/A TOTAL PRODUCE,390977,Commissioning & Investment,Children's & Education Services,103,Supplies and Services,504,Equipment,5023,Revenue,03.GROCERIES & PROVISIONS
21-Dec-2017,7004483,39.15,REDBRIDGE PRODUCE & FLOWERS LTD T/A TOTAL PRODUCE,390977,Commissioning & Investment,Children's & Education Services,103,Supplies and Services,504,Equipment,5023,Revenue,03.GROCERIES & PROVISIONS
21-Dec-2017,7004483,11.00,REDBRIDGE PRODUCE & FLOWERS LTD T/A TOTAL PRODUCE,390977,Commissioning & Investment,Children's & Education Services,103,Supplies and Services,504,Equipment,5023,Revenue,03.GROCERIES & PROVISIONS
21-Dec-2017,7004483,0.52,REDBRIDGE PRODUCE & FLOWERS LTD T/A TOTAL PRODUCE,390977,Commissioning & Investment,Children's & Education Services,103,Supplies and Services,504,Equipment,5023,Revenue,03.GROCERIES & PROVISIONS
21-Dec-2017,7004483,13.70,REDBRIDGE PRODUCE & FLOWERS LTD T/A TOTAL PRODUCE,390977,Commissioning & Investment,Children's & Education Services,103,Supplies and Services,504,Equipment,5023,Revenue,03.GROCERIES & PROVISIONS
21-Dec-2017,7004483,48.91,REDBRIDGE PRODUCE & FLOWERS LTD T/A TOTAL PRODUCE,390977,Commissioning & Investment,Children's & Education Services,103,Supplies and Services,504,Equipment,5023,Revenue,03.GROCERIES & PROVISIONS
21-Dec-2017,7004483,47.00,REDBRIDGE PRODUCE & FLOWERS LTD T/A TOTAL PRODUCE,390977,Commissioning & Investment,Children's & Education Services,103,Supplies and Services,504,Equipment,5023,Revenue,03.GROCERIES & PROVISIONS
21-Dec-2017,7004483,30.49,REDBRIDGE PRODUCE & FLOWERS LTD T/A TOTAL PRODUCE,390977,Commissioning & Investment,Children's & Education Services,103,Supplies and Services,504,Equipment,5023,Revenue,03.GROCERIES & PROVISIONS
21-Dec-2017,7004483,45.44,REDBRIDGE PRODUCE & FLOWERS LTD T/A TOTAL PRODUCE,390977,Commissioning & Investment,Children's & Education Services,103,Supplies and Services,504,Equipment,5023,Revenue,03.GROCERIES & PROVISIONS
21-Dec-2017,7004483,3.30,REDBRIDGE PRODUCE & FLOWERS LTD T/A TOTAL PRODUCE,390977,Commissioning & Investment,Children's & Education Services,103,Supplies and Services,504,Equipment,5023,Revenue,03.GROCERIES & PROVISIONS
21-Dec-2017,7004483,12.02,REDBRIDGE PRODUCE & FLOWERS LTD T/A TOTAL PRODUCE,390977,Commissioning & Investment,Children's & Education Services,103,Supplies and Services,504,Equipment,5023,Revenue,03.GROCERIES & PROVISIONS
21-Dec-2017,7004483,32.91,REDBRIDGE PRODUCE & FLOWERS LTD T/A TOTAL PRODUCE,390977,Commissioning & Investment,Children's & Education Services,103,Supplies and Services,504,Equipment,5023,Revenue,03.GROCERIES & PROVISIONS
21-Dec-2017,7004483,2.15,REDBRIDGE PRODUCE & FLOWERS LTD T/A TOTAL PRODUCE,390977,Commissioning & Investment,Children's & Education Services,103,Supplies and Services,504,Equipment,5023,Revenue,03.GROCERIES & PROVISIONS
21-Dec-2017,7004483,18.36,REDBRIDGE PRODUCE & FLOWERS LTD T/A TOTAL PRODUCE,390977,Commissioning & Investment,Children's & Education Services,103,Supplies and Services,504,Equipment,5023,Revenue,03.GROCERIES & PROVISIONS
21-Dec-2017,7004483,3.48,REDBRIDGE PRODUCE & FLOWERS LTD T/A TOTAL PRODUCE,390977,Commissioning & Investment,Children's & Education Services,103,Supplies and Services,504,Equipment,5023,Revenue,03.GROCERIES & PROVISIONS
21-Dec-2017,7004483,48.76,REDBRIDGE PRODUCE & FLOWERS LTD T/A TOTAL PRODUCE,390977,Commissioning & Investment,Children's & Education Services,103,Supplies and Services,504,Equipment,5023,Revenue,03.GROCERIES & PROVISIONS
21-Dec-2017,7004483,1.25,REDBRIDGE PRODUCE & FLOWERS LTD T/A TOTAL PRODUCE,390977,Commissioning & Investment,Children's & Education Services,103,Supplies and Services,504,Equipment,5023,Revenue,03.GROCERIES & PROVISIONS
21-Dec-2017,7004483,41.78,REDBRIDGE PRODUCE & FLOWERS LTD T/A TOTAL PRODUCE,390977,Commissioning & Investment,Children's & Education Services,103,Supplies and Services,504,Equipment,5023,Revenue,03.GROCERIES & PROVISIONS
21-Dec-2017,7004483,13.92,REDBRIDGE PRODUCE & FLOWERS LTD T/A TOTAL PRODUCE,390977,Commissioning & Investment,Children's & Education Services,103,Supplies and Services,504,Equipment,5023,Revenue,03.GROCERIES & PROVISIONS
21-Dec-2017,7004483,36.42,REDBRIDGE PRODUCE & FLOWERS LTD T/A TOTAL PRODUCE,390977,Commissioning & Investment,Children's & Education Services,103,Supplies and Services,504,Equipment,5023,Revenue,03.GROCERIES & PROVISIONS
21-Dec-2017,7004483,4.08,REDBRIDGE PRODUCE & FLOWERS LTD T/A TOTAL PRODUCE,390977,Commissioning & Investment,Children's & Education Services,103,Supplies and Services,504,Equipment,5023,Revenue,03.GROCERIES & PROVISIONS
21-Dec-2017,7004483,9.71,REDBRIDGE PRODUCE & FLOWERS LTD T/A TOTAL PRODUCE,390977,Commissioning & Investment,Children's & Education Services,103,Supplies and Services,504,Equipment,5023,Revenue,03.GROCERIES & PROVISIONS
21-Dec-2017,7004483,0.78,REDBRIDGE PRODUCE & FLOWERS LTD T/A TOTAL PRODUCE,390977,Commissioning & Investment,Children's & Education Services,103,Supplies and Services,504,Equipment,5023,Revenue,03.GROCERIES & PROVISIONS
21-Dec-2017,7004483,67.42,REDBRIDGE PRODUCE & FLOWERS LTD T/A TOTAL PRODUCE,390977,Commissioning & Investment,Children's & Education Services,103,Supplies and Services,504,Equipment,5023,Revenue,03.GROCERIES & PROVISIONS
21-Dec-2017,7004483,0.78,REDBRIDGE PRODUCE & FLOWERS LTD T/A TOTAL PRODUCE,390977,Commissioning & Investment,Children's & Education Services,103,Supplies and Services,504,Equipment,5023,Revenue,03.GROCERIES & PROVISIONS
21-Dec-2017,7004483,4.40,REDBRIDGE PRODUCE & FLOWERS LTD T/A TOTAL PRODUCE,390977,Commissioning & Investment,Children's & Education Services,103,Supplies and Services,504,Equipment,5023,Revenue,03.GROCERIES & PROVISIONS
21-Dec-2017,7004483,49.26,REDBRIDGE PRODUCE & FLOWERS LTD T/A TOTAL PRODUCE,390977,Commissioning & Investment,Children's & Education Services,103,Supplies and Services,504,Equipment,5023,Revenue,03.GROCERIES & PROVISIONS
21-Dec-2017,7004483,34.80,REDBRIDGE PRODUCE & FLOWERS LTD T/A TOTAL PRODUCE,390977,Commissioning & Investment,Children's & Education Services,103,Supplies and Services,504,Equipment,5023,Revenue,03.GROCERIES & PROVISIONS
21-Dec-2017,7004483,0.78,REDBRIDGE PRODUCE & FLOWERS LTD T/A TOTAL PRODUCE,390977,Commissioning & Investment,Children's & Education Services,103,Supplies and Services,504,Equipment,5023,Revenue,03.GROCERIES & PROVISIONS
21-Dec-2017,7004483,1.53,REDBRIDGE PRODUCE & FLOWERS LTD T/A TOTAL PRODUCE,390977,Commissioning & Investment,Children's & Education Services,103,Supplies and Services,504,Equipment,5023,Revenue,03.GROCERIES & PROVISIONS
21-Dec-2017,7004483,0.96,REDBRIDGE PRODUCE & FLOWERS LTD T/A TOTAL PRODUCE,390977,Commissioning & Investment,Children's & Education Services,103,Supplies and Services,504,Equipment,5023,Revenue,03.GROCERIES & PROVISIONS
21-Dec-2017,7004483,1.53,REDBRIDGE PRODUCE & FLOWERS LTD T/A TOTAL PRODUCE,390977,Commissioning & Investment,Children's & Education Services,103,Supplies and Services,504,Equipment,5023,Revenue,03.GROCERIES & PROVISIONS
21-Dec-2017,7004483,6.60,REDBRIDGE PRODUCE & FLOWERS LTD T/A TOTAL PRODUCE,390977,Commissioning & Investment,Children's & Education Services,103,Supplies and Services,504,Equipment,5023,Revenue,03.GROCERIES & PROVISIONS
21-Dec-2017,7004483,4.16,REDBRIDGE PRODUCE & FLOWERS LTD T/A TOTAL PRODUCE,390977,Commissioning & Investment,Children's & Education Services,103,Supplies and Services,504,Equipment,5023,Revenue,03.GROCERIES & PROVISIONS
21-Dec-2017,7004483,6.60,REDBRIDGE PRODUCE & FLOWERS LTD T/A TOTAL PRODUCE,390977,Commissioning & Investment,Children's & Education Services,103,Supplies and Services,504,Equipment,5023,Revenue,03.GROCERIES & PROVISIONS
21-Dec-2017,7004483,13.20,REDBRIDGE PRODUCE & FLOWERS LTD T/A TOTAL PRODUCE,390977,Commissioning & Investment,Children's & Education Services,103,Supplies and Services,504,Equipment,5023,Revenue,03.GROCERIES & PROVISIONS
21-Dec-2017,7004483,0.78,REDBRIDGE PRODUCE & FLOWERS LTD T/A TOTAL PRODUCE,390977,Commissioning & Investment,Children's & Education Services,103,Supplies and Services,504,Equipment,5023,Revenue,03.GROCERIES & PROVISIONS
21-Dec-2017,7004483,0.95,REDBRIDGE PRODUCE & FLOWERS LTD T/A TOTAL PRODUCE,390977,Commissioning & Investment,Children's & Education Services,103,Supplies and Services,504,Equipment,5023,Revenue,03.GROCERIES & PROVISIONS
21-Dec-2017,7004483,10.20,REDBRIDGE PRODUCE & FLOWERS LTD T/A TOTAL PRODUCE,390977,Commissioning & Investment,Children's & Education Services,103,Supplies and Services,504,Equipment,5023,Revenue,03.GROCERIES & PROVISIONS
21-Dec-2017,7004483,3.56,REDBRIDGE PRODUCE & FLOWERS LTD T/A TOTAL PRODUCE,390977,Commissioning & Investment,Children's & Education Services,103,Supplies and Services,504,Equipment,5023,Revenue,03.GROCERIES & PROVISIONS
21-Dec-2017,7004483,1.07,REDBRIDGE PRODUCE & FLOWERS LTD T/A TOTAL PRODUCE,390977,Commissioning & Investment,Children's & Education Services,103,Supplies and Services,504,Equipment,5023,Revenue,03.GROCERIES & PROVISIONS
21-Dec-2017,7004483,125.73,REDBRIDGE PRODUCE & FLOWERS LTD T/A TOTAL PRODUCE,390977,Commissioning & Investment,Children's & Education Services,103,Supplies and Services,504,Equipment,5023,Revenue,03.GROCERIES & PROVISIONS
21-Dec-2017,7004483,2.30,REDBRIDGE PRODUCE & FLOWERS LTD T/A TOTAL PRODUCE,390977,Commissioning & Investment,Children's & Education Services,103,Supplies and Services,504,Equipment,5023,Revenue,03.GROCERIES & PROVISIONS
21-Dec-2017,7004483,3.18,REDBRIDGE PRODUCE & FLOWERS LTD T/A TOTAL PRODUCE,390977,Commissioning & Investment,Children's & Education Services,103,Supplies and Services,504,Equipment,5023,Revenue,03.GROCERIES & PROVISIONS
21-Dec-2017,7004483,97.39,REDBRIDGE PRODUCE & FLOWERS LTD T/A TOTAL PRODUCE,390977,Commissioning & Investment,Children's & Education Services,103,Supplies and Services,504,Equipment,5023,Revenue,03.GROCERIES & PROVISIONS
21-Dec-2017,7004483,24.48,REDBRIDGE PRODUCE & FLOWERS LTD T/A TOTAL PRODUCE,390977,Commissioning & Investment,Children's & Education Services,103,Supplies and Services,504,Equipment,5023,Revenue,03.GROCERIES & PROVISIONS
21-Dec-2017,7004483,5.52,REDBRIDGE PRODUCE & FLOWERS LTD T/A TOTAL PRODUCE,390977,Commissioning & Investment,Children's & Education Services,103,Supplies and Services,504,Equipment,5023,Revenue,03.GROCERIES & PROVISIONS
21-Dec-2017,7004483,22.00,REDBRIDGE PRODUCE & FLOWERS LTD T/A TOTAL PRODUCE,390977,Commissioning & Investment,Children's & Education Services,103,Supplies and Services,504,Equipment,5023,Revenue,03.GROCERIES & PROVISIONS
21-Dec-2017,7004483,12.24,REDBRIDGE PRODUCE & FLOWERS LTD T/A TOTAL PRODUCE,390977,Commissioning & Investment,Children's & Education Services,103,Supplies and Services,504,Equipment,5023,Revenue,03.GROCERIES & PROVISIONS
21-Dec-2017,7004483,1.25,REDBRIDGE PRODUCE & FLOWERS LTD T/A TOTAL PRODUCE,390977,Commissioning & Investment,Children's & Education Services,103,Supplies and Services,504,Equipment,5023,Revenue,03.GROCERIES & PROVISIONS
21-Dec-2017,7004483,8.80,REDBRIDGE PRODUCE & FLOWERS LTD T/A TOTAL PRODUCE,390977,Commissioning & Investment,Children's & Education Services,103,Supplies and Services,504,Equipment,5023,Revenue,03.GROCERIES & PROVISIONS
21-Dec-2017,7004483,0.76,REDBRIDGE PRODUCE & FLOWERS LTD T/A TOTAL PRODUCE,390977,Commissioning & Investment,Children's & Education Services,103,Supplies and Services,504,Equipment,5023,Revenue,03.GROCERIES & PROVISIONS
21-Dec-2017,7004483,-13.74,REDBRIDGE PRODUCE & FLOWERS LTD T/A TOTAL PRODUCE,390977,Commissioning & Investment,Children's & Education Services,103,Supplies and Services,504,Equipment,5023,Revenue,03.GROCERIES & PROVISIONS
21-Dec-2017,7004483,2.10,REDBRIDGE PRODUCE & FLOWERS LTD T/A TOTAL PRODUCE,390977,Commissioning & Investment,Children's & Education Services,103,Supplies and Services,504,Equipment,5023,Revenue,03.GROCERIES & PROVISIONS
21-Dec-2017,7004483,2.20,REDBRIDGE PRODUCE & FLOWERS LTD T/A TOTAL PRODUCE,390977,Commissioning & Investment,Children's & Education Services,103,Supplies and Services,504,Equipment,5023,Revenue,03.GROCERIES & PROVISIONS
21-Dec-2017,7004483,4.08,REDBRIDGE PRODUCE & FLOWERS LTD T/A TOTAL PRODUCE,390977,Commissioning & Investment,Children's & Education Services,103,Supplies and Services,504,Equipment,5023,Revenue,03.GROCERIES & PROVISIONS
21-Dec-2017,7004483,2.30,REDBRIDGE PRODUCE & FLOWERS LTD T/A TOTAL PRODUCE,390977,Commissioning & Investment,Children's & Education Services,103,Supplies and Services,504,Equipment,5023,Revenue,03.GROCERIES & PROVISIONS
21-Dec-2017,7004483,36.58,REDBRIDGE PRODUCE & FLOWERS LTD T/A TOTAL PRODUCE,390977,Commissioning & Investment,Children's & Education Services,103,Supplies and Services,504,Equipment,5023,Revenue,03.GROCERIES & PROVISIONS
21-Dec-2017,7004483,6.60,REDBRIDGE PRODUCE & FLOWERS LTD T/A TOTAL PRODUCE,390977,Commissioning & Investment,Children's & Education Services,103,Supplies and Services,504,Equipment,5023,Revenue,03.GROCERIES & PROVISIONS
21-Dec-2017,7004483,57.43,REDBRIDGE PRODUCE & FLOWERS LTD T/A TOTAL PRODUCE,390977,Commissioning & Investment,Children's & Education Services,103,Supplies and Services,504,Equipment,5023,Revenue,03.GROCERIES & PROVISIONS
21-Dec-2017,7004483,133.53,REDBRIDGE PRODUCE & FLOWERS LTD T/A TOTAL PRODUCE,390977,Commissioning & Investment,Children's & Education Services,103,Supplies and Services,504,Equipment,5023,Revenue,03.GROCERIES & PROVISIONS
21-Dec-2017,7004483,209.03,REDBRIDGE PRODUCE & FLOWERS LTD T/A TOTAL PRODUCE,390977,Commissioning & Investment,Children's & Education Services,103,Supplies and Services,504,Equipment,5023,Revenue,03.GROCERIES & PROVISIONS
21-Dec-2017,7004483,2.04,REDBRIDGE PRODUCE & FLOWERS LTD T/A TOTAL PRODUCE,390977,Commissioning & Investment,Children's & Education Services,103,Supplies and Services,504,Equipment,5023,Revenue,03.GROCERIES & PROVISIONS
21-Dec-2017,7004483,3.56,REDBRIDGE PRODUCE & FLOWERS LTD T/A TOTAL PRODUCE,390977,Commissioning & Investment,Children's & Education Services,103,Supplies and Services,504,Equipment,5023,Revenue,03.GROCERIES & PROVISIONS
21-Dec-2017,7004483,0.78,REDBRIDGE PRODUCE & FLOWERS LTD T/A TOTAL PRODUCE,390977,Commissioning & Investment,Children's & Education Services,103,Supplies and Services,504,Equipment,5023,Revenue,03.GROCERIES & PROVISIONS
21-Dec-2017,7004483,0.78,REDBRIDGE PRODUCE & FLOWERS LTD T/A TOTAL PRODUCE,390977,Commissioning & Investment,Children's & Education Services,103,Supplies and Services,504,Equipment,5023,Revenue,03.GROCERIES & PROVISIONS
21-Dec-2017,7004483,138.43,REDBRIDGE PRODUCE & FLOWERS LTD T/A TOTAL PRODUCE,390977,Commissioning & Investment,Children's & Education Services,103,Supplies and Services,504,Equipment,5023,Revenue,03.GROCERIES & PROVISIONS
21-Dec-2017,7004483,21.31,REDBRIDGE PRODUCE & FLOWERS LTD T/A TOTAL PRODUCE,390977,Commissioning & Investment,Children's & Education Services,103,Supplies and Services,504,Equipment,5023,Revenue,03.GROCERIES & PROVISIONS
21-Dec-2017,7004483,8.80,REDBRIDGE PRODUCE & FLOWERS LTD T/A TOTAL PRODUCE,390977,Commissioning & Investment,Children's & Education Services,103,Supplies and Services,504,Equipment,5023,Revenue,03.GROCERIES & PROVISIONS
21-Dec-2017,7004483,4.58,REDBRIDGE PRODUCE & FLOWERS LTD T/A TOTAL PRODUCE,390977,Commissioning & Investment,Children's & Education Services,103,Supplies and Services,504,Equipment,5023,Revenue,03.GROCERIES & PROVISIONS
21-Dec-2017,7004483,102.15,REDBRIDGE PRODUCE & FLOWERS LTD T/A TOTAL PRODUCE,390977,Commissioning & Investment,Children's & Education Services,103,Supplies and Services,504,Equipment,5023,Revenue,03.GROCERIES & PROVISIONS
21-Dec-2017,7004483,19.80,REDBRIDGE PRODUCE & FLOWERS LTD T/A TOTAL PRODUCE,390977,Commissioning & Investment,Children's & Education Services,103,Supplies and Services,504,Equipment,5023,Revenue,03.GROCERIES & PROVISIONS
21-Dec-2017,7004483,43.96,REDBRIDGE PRODUCE & FLOWERS LTD T/A TOTAL PRODUCE,390977,Commissioning & Investment,Children's & Education Services,103,Supplies and Services,504,Equipment,5023,Revenue,03.GROCERIES & PROVISIONS
21-Dec-2017,7004483,0.78,REDBRIDGE PRODUCE & FLOWERS LTD T/A TOTAL PRODUCE,390977,Commissioning & Investment,Children's & Education Services,103,Supplies and Services,504,Equipment,5023,Revenue,03.GROCERIES & PROVISIONS
21-Dec-2017,7004483,43.31,REDBRIDGE PRODUCE & FLOWERS LTD T/A TOTAL PRODUCE,390977,Commissioning & Investment,Children's & Education Services,103,Supplies and Services,504,Equipment,5023,Revenue,03.GROCERIES & PROVISIONS
21-Dec-2017,7004483,-0.54,REDBRIDGE PRODUCE & FLOWERS LTD T/A TOTAL PRODUCE,390977,Commissioning & Investment,Children's & Education Services,103,Supplies and Services,504,Equipment,5023,Revenue,03.GROCERIES & PROVISIONS
21-Dec-2017,7004483,4.40,REDBRIDGE PRODUCE & FLOWERS LTD T/A TOTAL PRODUCE,390977,Commissioning & Investment,Children's & Education Services,103,Supplies and Services,504,Equipment,5023,Revenue,03.GROCERIES & PROVISIONS
21-Dec-2017,7004483,21.95,REDBRIDGE PRODUCE & FLOWERS LTD T/A TOTAL PRODUCE,390977,Commissioning & Investment,Children's & Education Services,103,Supplies and Services,504,Equipment,5023,Revenue,03.GROCERIES & PROVISIONS
21-Dec-2017,7004483,1.78,REDBRIDGE PRODUCE & FLOWERS LTD T/A TOTAL PRODUCE,390977,Commissioning & Investment,Children's & Education Services,103,Supplies and Services,504,Equipment,5023,Revenue,03.GROCERIES & PROVISIONS
21-Dec-2017,7004483,104.01,REDBRIDGE PRODUCE & FLOWERS LTD T/A TOTAL PRODUCE,390977,Commissioning & Investment,Children's & Education Services,103,Supplies and Services,504,Equipment,5023,Revenue,03.GROCERIES & PROVISIONS
21-Dec-2017,7004483,1.92,REDBRIDGE PRODUCE & FLOWERS LTD T/A TOTAL PRODUCE,390977,Commissioning & Investment,Children's & Education Services,103,Supplies and Services,504,Equipment,5023,Revenue,03.GROCERIES & PROVISIONS
21-Dec-2017,7004483,-3.06,REDBRIDGE PRODUCE & FLOWERS LTD T/A TOTAL PRODUCE,390977,Commissioning & Investment,Children's & Education Services,103,Supplies and Services,504,Equipment,5023,Revenue,03.GROCERIES & PROVISIONS
21-Dec-2017,7004483,3.30,REDBRIDGE PRODUCE & FLOWERS LTD T/A TOTAL PRODUCE,390977,Commissioning & Investment,Children's & Education Services,103,Supplies and Services,504,Equipment,5023,Revenue,03.GROCERIES & PROVISIONS
21-Dec-2017,7004483,4.40,REDBRIDGE PRODUCE & FLOWERS LTD T/A TOTAL PRODUCE,390977,Commissioning & Investment,Children's & Education Services,103,Supplies and Services,504,Equipment,5023,Revenue,03.GROCERIES & PROVISIONS
21-Dec-2017,7004483,1.56,REDBRIDGE PRODUCE & FLOWERS LTD T/A TOTAL PRODUCE,390977,Commissioning & Investment,Children's & Education Services,103,Supplies and Services,504,Equipment,5023,Revenue,03.GROCERIES & PROVISIONS
21-Dec-2017,7004483,4.08,REDBRIDGE PRODUCE & FLOWERS LTD T/A TOTAL PRODUCE,390977,Commissioning & Investment,Children's & Education Services,103,Supplies and Services,504,Equipment,5023,Revenue,03.GROCERIES & PROVISIONS
21-Dec-2017,7004483,24.09,REDBRIDGE PRODUCE & FLOWERS LTD T/A TOTAL PRODUCE,390977,Commissioning & Investment,Children's & Education Services,103,Supplies and Services,504,Equipment,5023,Revenue,03.GROCERIES & PROVISIONS
21-Dec-2017,7004483,5.10,REDBRIDGE PRODUCE & FLOWERS LTD T/A TOTAL PRODUCE,390977,Commissioning & Investment,Children's & Education Services,103,Supplies and Services,504,Equipment,5023,Revenue,03.GROCERIES & PROVISIONS
21-Dec-2017,7004483,156.10,REDBRIDGE PRODUCE & FLOWERS LTD T/A TOTAL PRODUCE,390977,Commissioning & Investment,Children's & Education Services,103,Supplies and Services,504,Equipment,5023,Revenue,03.GROCERIES & PROVISIONS
21-Dec-2017,7004483,44.18,REDBRIDGE PRODUCE & FLOWERS LTD T/A TOTAL PRODUCE,390977,Commissioning & Investment,Children's & Education Services,103,Supplies and Services,504,Equipment,5023,Revenue,03.GROCERIES & PROVISIONS
21-Dec-2017,7004483,34.93,REDBRIDGE PRODUCE & FLOWERS LTD T/A TOTAL PRODUCE,390977,Commissioning & Investment,Children's & Education Services,103,Supplies and Services,504,Equipment,5023,Revenue,03.GROCERIES & PROVISIONS
21-Dec-2017,7004483,1.56,REDBRIDGE PRODUCE & FLOWERS LTD T/A TOTAL PRODUCE,390977,Commissioning & Investment,Children's & Education Services,103,Supplies and Services,504,Equipment,5023,Revenue,03.GROCERIES & PROVISIONS
21-Dec-2017,7004483,9.76,REDBRIDGE PRODUCE & FLOWERS LTD T/A TOTAL PRODUCE,390977,Commissioning & Investment,Children's & Education Services,103,Supplies and Services,504,Equipment,5023,Revenue,03.GROCERIES & PROVISIONS
21-Dec-2017,7004483,15.88,REDBRIDGE PRODUCE & FLOWERS LTD T/A TOTAL PRODUCE,390977,Commissioning & Investment,Children's & Education Services,103,Supplies and Services,504,Equipment,5023,Revenue,03.GROCERIES & PROVISIONS
21-Dec-2017,7004483,3.05,REDBRIDGE PRODUCE & FLOWERS LTD T/A TOTAL PRODUCE,390977,Commissioning & Investment,Children's & Education Services,103,Supplies and Services,504,Equipment,5023,Revenue,03.GROCERIES & PROVISIONS
21-Dec-2017,7004483,-4.58,REDBRIDGE PRODUCE & FLOWERS LTD T/A TOTAL PRODUCE,390977,Commissioning & Investment,Children's & Education Services,103,Supplies and Services,504,Equipment,5023,Revenue,03.GROCERIES & PROVISIONS
21-Dec-2017,7004483,6.24,REDBRIDGE PRODUCE & FLOWERS LTD T/A TOTAL PRODUCE,390977,Commissioning & Investment,Children's & Education Services,103,Supplies and Services,504,Equipment,5023,Revenue,03.GROCERIES & PROVISIONS
21-Dec-2017,7004483,1.46,REDBRIDGE PRODUCE & FLOWERS LTD T/A TOTAL PRODUCE,390977,Commissioning & Investment,Children's & Education Services,103,Supplies and Services,504,Equipment,5023,Revenue,03.GROCERIES & PROVISIONS
21-Dec-2017,7004483,1.17,REDBRIDGE PRODUCE & FLOWERS LTD T/A TOTAL PRODUCE,390977,Commissioning & Investment,Children's & Education Services,103,Supplies and Services,504,Equipment,5023,Revenue,03.GROCERIES & PROVISIONS
21-Dec-2017,7004483,1.46,REDBRIDGE PRODUCE & FLOWERS LTD T/A TOTAL PRODUCE,390977,Commissioning & Investment,Children's & Education Services,103,Supplies and Services,504,Equipment,5023,Revenue,03.GROCERIES & PROVISIONS
21-Dec-2017,7004483,2.18,REDBRIDGE PRODUCE & FLOWERS LTD T/A TOTAL PRODUCE,390977,Commissioning & Investment,Children's & Education Services,103,Supplies and Services,504,Equipment,5023,Revenue,03.GROCERIES & PROVISIONS
21-Dec-2017,7004483,31.84,REDBRIDGE PRODUCE & FLOWERS LTD T/A TOTAL PRODUCE,390977,Commissioning & Investment,Children's & Education Services,103,Supplies and Services,504,Equipment,5023,Revenue,03.GROCERIES & PROVISIONS
21-Dec-2017,7004483,1.56,REDBRIDGE PRODUCE & FLOWERS LTD T/A TOTAL PRODUCE,390977,Commissioning & Investment,Children's & Education Services,103,Supplies and Services,504,Equipment,5023,Revenue,03.GROCERIES & PROVISIONS
21-Dec-2017,7004483,5.50,REDBRIDGE PRODUCE & FLOWERS LTD T/A TOTAL PRODUCE,390977,Commissioning & Investment,Children's & Education Services,103,Supplies and Services,504,Equipment,5023,Revenue,03.GROCERIES & PROVISIONS
21-Dec-2017,7004483,1.02,REDBRIDGE PRODUCE & FLOWERS LTD T/A TOTAL PRODUCE,390977,Commissioning & Investment,Children's & Education Services,103,Supplies and Services,504,Equipment,5023,Revenue,03.GROCERIES & PROVISIONS
21-Dec-2017,7004483,0.40,REDBRIDGE PRODUCE & FLOWERS LTD T/A TOTAL PRODUCE,390977,Commissioning & Investment,Children's & Education Services,103,Supplies and Services,504,Equipment,5023,Revenue,03.GROCERIES & PROVISIONS
21-Dec-2017,7004483,49.11,REDBRIDGE PRODUCE & FLOWERS LTD T/A TOTAL PRODUCE,390977,Commissioning & Investment,Children's & Education Services,103,Supplies and Services,504,Equipment,5023,Revenue,03.GROCERIES & PROVISIONS
21-Dec-2017,7004483,2.67,REDBRIDGE PRODUCE & FLOWERS LTD T/A TOTAL PRODUCE,390977,Commissioning & Investment,Children's & Education Services,103,Supplies and Services,504,Equipment,5023,Revenue,03.GROCERIES & PROVISIONS
21-Dec-2017,7004483,4.40,REDBRIDGE PRODUCE & FLOWERS LTD T/A TOTAL PRODUCE,390977,Commissioning & Investment,Children's & Education Services,103,Supplies and Services,504,Equipment,5023,Revenue,03.GROCERIES & PROVISIONS
21-Dec-2017,7004483,1.00,REDBRIDGE PRODUCE & FLOWERS LTD T/A TOTAL PRODUCE,390977,"Environment, Housing & Leisure",Adult Social Care,101,Supplies and Services,504,Equipment,5023,Revenue,03.GROCERIES & PROVISIONS
21-Dec-2017,7004483,58.64,REDBRIDGE PRODUCE & FLOWERS LTD T/A TOTAL PRODUCE,390977,Commissioning & Investment,Children's & Education Services,103,Supplies and Services,504,Equipment,5023,Revenue,03.GROCERIES & PROVISIONS
21-Dec-2017,7004483,89.38,REDBRIDGE PRODUCE & FLOWERS LTD T/A TOTAL PRODUCE,390977,Commissioning & Investment,Children's & Education Services,103,Supplies and Services,504,Equipment,5023,Revenue,03.GROCERIES & PROVISIONS
21-Dec-2017,7004483,48.03,REDBRIDGE PRODUCE & FLOWERS LTD T/A TOTAL PRODUCE,390977,Commissioning & Investment,Children's & Education Services,103,Supplies and Services,504,Equipment,5023,Revenue,03.GROCERIES & PROVISIONS
21-Dec-2017,7004483,2.50,REDBRIDGE PRODUCE & FLOWERS LTD T/A TOTAL PRODUCE,390977,Commissioning & Investment,Children's & Education Services,103,Supplies and Services,504,Equipment,5023,Revenue,03.GROCERIES & PROVISIONS
21-Dec-2017,7004483,2.40,REDBRIDGE PRODUCE & FLOWERS LTD T/A TOTAL PRODUCE,390977,Commissioning & Investment,Children's & Education Services,103,Supplies and Services,504,Equipment,5023,Revenue,03.GROCERIES & PROVISIONS
21-Dec-2017,7004483,6.80,REDBRIDGE PRODUCE & FLOWERS LTD T/A TOTAL PRODUCE,390977,Commissioning & Investment,Children's & Education Services,103,Supplies and Services,504,Equipment,5023,Revenue,03.GROCERIES & PROVISIONS
21-Dec-2017,7004483,34.75,REDBRIDGE PRODUCE & FLOWERS LTD T/A TOTAL PRODUCE,390977,Commissioning & Investment,Children's & Education Services,103,Supplies and Services,504,Equipment,5023,Revenue,03.GROCERIES & PROVISIONS
21-Dec-2017,7004483,0.78,REDBRIDGE PRODUCE & FLOWERS LTD T/A TOTAL PRODUCE,390977,Commissioning & Investment,Children's & Education Services,103,Supplies and Services,504,Equipment,5023,Revenue,03.GROCERIES & PROVISIONS
21-Dec-2017,7004483,1.02,REDBRIDGE PRODUCE & FLOWERS LTD T/A TOTAL PRODUCE,390977,Commissioning & Investment,Children's & Education Services,103,Supplies and Services,504,Equipment,5023,Revenue,03.GROCERIES & PROVISIONS
21-Dec-2017,7004483,47.27,REDBRIDGE PRODUCE & FLOWERS LTD T/A TOTAL PRODUCE,390977,Commissioning & Investment,Children's & Education Services,103,Supplies and Services,504,Equipment,5023,Revenue,03.GROCERIES & PROVISIONS
21-Dec-2017,7004483,4.40,REDBRIDGE PRODUCE & FLOWERS LTD T/A TOTAL PRODUCE,390977,Commissioning & Investment,Children's & Education Services,103,Supplies and Services,504,Equipment,5023,Revenue,03.GROCERIES & PROVISIONS
21-Dec-2017,7004483,40.86,REDBRIDGE PRODUCE & FLOWERS LTD T/A TOTAL PRODUCE,390977,Commissioning & Investment,Children's & Education Services,103,Supplies and Services,504,Equipment,5023,Revenue,03.GROCERIES & PROVISIONS
21-Dec-2017,7004483,66.33,REDBRIDGE PRODUCE & FLOWERS LTD T/A TOTAL PRODUCE,390977,Commissioning & Investment,Children's & Education Services,103,Supplies and Services,504,Equipment,5023,Revenue,03.GROCERIES & PROVISIONS
21-Dec-2017,7004483,40.65,REDBRIDGE PRODUCE & FLOWERS LTD T/A TOTAL PRODUCE,390977,Commissioning & Investment,Children's & Education Services,103,Supplies and Services,504,Equipment,5023,Revenue,03.GROCERIES & PROVISIONS
21-Dec-2017,7004483,29.69,REDBRIDGE PRODUCE & FLOWERS LTD T/A TOTAL PRODUCE,390977,Commissioning & Investment,Children's & Education Services,103,Supplies and Services,504,Equipment,5023,Revenue,03.GROCERIES & PROVISIONS
21-Dec-2017,7004483,0.78,REDBRIDGE PRODUCE & FLOWERS LTD T/A TOTAL PRODUCE,390977,Commissioning & Investment,Children's & Education Services,103,Supplies and Services,504,Equipment,5023,Revenue,03.GROCERIES & PROVISIONS
21-Dec-2017,7004483,0.78,REDBRIDGE PRODUCE & FLOWERS LTD T/A TOTAL PRODUCE,390977,Commissioning & Investment,Children's & Education Services,103,Supplies and Services,504,Equipment,5023,Revenue,03.GROCERIES & PROVISIONS
21-Dec-2017,7004483,6.50,REDBRIDGE PRODUCE & FLOWERS LTD T/A TOTAL PRODUCE,390977,Commissioning & Investment,Children's & Education Services,103,Supplies and Services,504,Equipment,5023,Revenue,03.GROCERIES & PROVISIONS
21-Dec-2017,7004483,-1.58,REDBRIDGE PRODUCE & FLOWERS LTD T/A TOTAL PRODUCE,390977,Commissioning & Investment,Children's & Education Services,103,Supplies and Services,504,Equipment,5023,Revenue,03.GROCERIES & PROVISIONS
21-Dec-2017,7004483,35.43,REDBRIDGE PRODUCE & FLOWERS LTD T/A TOTAL PRODUCE,390977,Commissioning & Investment,Children's & Education Services,103,Supplies and Services,504,Equipment,5023,Revenue,03.GROCERIES & PROVISIONS
21-Dec-2017,7004483,24.95,REDBRIDGE PRODUCE & FLOWERS LTD T/A TOTAL PRODUCE,390977,Commissioning & Investment,Children's & Education Services,103,Supplies and Services,504,Equipment,5023,Revenue,03.GROCERIES & PROVISIONS
21-Dec-2017,7004483,0.53,REDBRIDGE PRODUCE & FLOWERS LTD T/A TOTAL PRODUCE,390977,Commissioning & Investment,Children's & Education Services,103,Supplies and Services,504,Equipment,5023,Revenue,03.GROCERIES & PROVISIONS
21-Dec-2017,7004483,50.69,REDBRIDGE PRODUCE & FLOWERS LTD T/A TOTAL PRODUCE,390977,Commissioning & Investment,Children's & Education Services,103,Supplies and Services,504,Equipment,5023,Revenue,03.GROCERIES & PROVISIONS
21-Dec-2017,7004483,4.40,REDBRIDGE PRODUCE & FLOWERS LTD T/A TOTAL PRODUCE,390977,Commissioning & Investment,Children's & Education Services,103,Supplies and Services,504,Equipment,5023,Revenue,03.GROCERIES & PROVISIONS
21-Dec-2017,7004483,45.99,REDBRIDGE PRODUCE & FLOWERS LTD T/A TOTAL PRODUCE,390977,Commissioning & Investment,Children's & Education Services,103,Supplies and Services,504,Equipment,5023,Revenue,03.GROCERIES & PROVISIONS
21-Dec-2017,7004483,1.78,REDBRIDGE PRODUCE & FLOWERS LTD T/A TOTAL PRODUCE,390977,Commissioning & Investment,Children's & Education Services,103,Supplies and Services,504,Equipment,5023,Revenue,03.GROCERIES & PROVISIONS
21-Dec-2017,7004483,-1.53,REDBRIDGE PRODUCE & FLOWERS LTD T/A TOTAL PRODUCE,390977,Commissioning & Investment,Children's & Education Services,103,Supplies and Services,504,Equipment,5023,Revenue,03.GROCERIES & PROVISIONS
21-Dec-2017,7004483,29.95,REDBRIDGE PRODUCE & FLOWERS LTD T/A TOTAL PRODUCE,390977,Commissioning & Investment,Children's & Education Services,103,Supplies and Services,504,Equipment,5023,Revenue,03.GROCERIES & PROVISIONS
21-Dec-2017,7004483,1.25,REDBRIDGE PRODUCE & FLOWERS LTD T/A TOTAL PRODUCE,390977,Commissioning & Investment,Children's & Education Services,103,Supplies and Services,504,Equipment,5023,Revenue,03.GROCERIES & PROVISIONS
21-Dec-2017,7004483,7.70,REDBRIDGE PRODUCE & FLOWERS LTD T/A TOTAL PRODUCE,390977,Commissioning & Investment,Children's & Education Services,103,Supplies and Services,504,Equipment,5023,Revenue,03.GROCERIES & PROVISIONS
21-Dec-2017,7004483,4.40,REDBRIDGE PRODUCE & FLOWERS LTD T/A TOTAL PRODUCE,390977,Commissioning & Investment,Children's & Education Services,103,Supplies and Services,504,Equipment,5023,Revenue,03.GROCERIES & PROVISIONS
21-Dec-2017,7004483,2.67,REDBRIDGE PRODUCE & FLOWERS LTD T/A TOTAL PRODUCE,390977,Commissioning & Investment,Children's & Education Services,103,Supplies and Services,504,Equipment,5023,Revenue,03.GROCERIES & PROVISIONS
21-Dec-2017,7004483,0.78,REDBRIDGE PRODUCE & FLOWERS LTD T/A TOTAL PRODUCE,390977,Commissioning & Investment,Children's & Education Services,103,Supplies and Services,504,Equipment,5023,Revenue,03.GROCERIES & PROVISIONS
21-Dec-2017,7004483,1.56,REDBRIDGE PRODUCE & FLOWERS LTD T/A TOTAL PRODUCE,390977,Commissioning & Investment,Children's & Education Services,103,Supplies and Services,504,Equipment,5023,Revenue,03.GROCERIES & PROVISIONS
21-Dec-2017,7004483,0.78,REDBRIDGE PRODUCE & FLOWERS LTD T/A TOTAL PRODUCE,390977,Commissioning & Investment,Children's & Education Services,103,Supplies and Services,504,Equipment,5023,Revenue,03.GROCERIES & PROVISIONS
21-Dec-2017,7004483,21.93,REDBRIDGE PRODUCE & FLOWERS LTD T/A TOTAL PRODUCE,390977,Commissioning & Investment,Children's & Education Services,103,Supplies and Services,504,Equipment,5023,Revenue,03.GROCERIES & PROVISIONS
21-Dec-2017,7004483,11.00,REDBRIDGE PRODUCE & FLOWERS LTD T/A TOTAL PRODUCE,390977,Commissioning & Investment,Children's & Education Services,103,Supplies and Services,504,Equipment,5023,Revenue,03.GROCERIES & PROVISIONS
21-Dec-2017,7004483,2.04,REDBRIDGE PRODUCE & FLOWERS LTD T/A TOTAL PRODUCE,390977,Commissioning & Investment,Children's & Education Services,103,Supplies and Services,504,Equipment,5023,Revenue,03.GROCERIES & PROVISIONS
21-Dec-2017,7004483,0.40,REDBRIDGE PRODUCE & FLOWERS LTD T/A TOTAL PRODUCE,390977,Commissioning & Investment,Children's & Education Services,103,Supplies and Services,504,Equipment,5023,Revenue,03.GROCERIES & PROVISIONS
21-Dec-2017,7004483,0.73,REDBRIDGE PRODUCE & FLOWERS LTD T/A TOTAL PRODUCE,390977,Commissioning & Investment,Children's & Education Services,103,Supplies and Services,504,Equipment,5023,Revenue,03.GROCERIES & PROVISIONS
21-Dec-2017,7004483,1.15,REDBRIDGE PRODUCE & FLOWERS LTD T/A TOTAL PRODUCE,390977,Commissioning & Investment,Children's & Education Services,103,Supplies and Services,504,Equipment,5023,Revenue,03.GROCERIES & PROVISIONS
21-Dec-2017,7004483,0.78,REDBRIDGE PRODUCE & FLOWERS LTD T/A TOTAL PRODUCE,390977,Commissioning & Investment,Children's & Education Services,103,Supplies and Services,504,Equipment,5023,Revenue,03.GROCERIES & PROVISIONS
21-Dec-2017,7004483,6.60,REDBRIDGE PRODUCE & FLOWERS LTD T/A TOTAL PRODUCE,390977,Commissioning & Investment,Children's & Education Services,103,Supplies and Services,504,Equipment,5023,Revenue,03.GROCERIES & PROVISIONS
21-Dec-2017,7004483,38.81,REDBRIDGE PRODUCE & FLOWERS LTD T/A TOTAL PRODUCE,390977,Commissioning & Investment,Children's & Education Services,103,Supplies and Services,504,Equipment,5023,Revenue,03.GROCERIES & PROVISIONS
21-Dec-2017,7004483,53.75,REDBRIDGE PRODUCE & FLOWERS LTD T/A TOTAL PRODUCE,390977,Commissioning & Investment,Children's & Education Services,103,Supplies and Services,504,Equipment,5023,Revenue,03.GROCERIES & PROVISIONS
21-Dec-2017,7004483,32.31,REDBRIDGE PRODUCE & FLOWERS LTD T/A TOTAL PRODUCE,390977,Commissioning & Investment,Children's & Education Services,103,Supplies and Services,504,Equipment,5023,Revenue,03.GROCERIES & PROVISIONS
21-Dec-2017,7004483,124.56,REDBRIDGE PRODUCE & FLOWERS LTD T/A TOTAL PRODUCE,390977,Commissioning & Investment,Children's & Education Services,103,Supplies and Services,504,Equipment,5023,Revenue,03.GROCERIES & PROVISIONS
21-Dec-2017,7004483,21.51,REDBRIDGE PRODUCE & FLOWERS LTD T/A TOTAL PRODUCE,390977,Commissioning & Investment,Children's & Education Services,103,Supplies and Services,504,Equipment,5023,Revenue,03.GROCERIES & PROVISIONS
21-Dec-2017,7004483,4.40,REDBRIDGE PRODUCE & FLOWERS LTD T/A TOTAL PRODUCE,390977,Commissioning & Investment,Children's & Education Services,103,Supplies and Services,504,Equipment,5023,Revenue,03.GROCERIES & PROVISIONS
21-Dec-2017,7004483,-1.15,REDBRIDGE PRODUCE & FLOWERS LTD T/A TOTAL PRODUCE,390977,Commissioning & Investment,Children's & Education Services,103,Supplies and Services,504,Equipment,5023,Revenue,03.GROCERIES & PROVISIONS
21-Dec-2017,7004483,3.82,REDBRIDGE PRODUCE & FLOWERS LTD T/A TOTAL PRODUCE,390977,Commissioning & Investment,Children's & Education Services,103,Supplies and Services,504,Equipment,5023,Revenue,03.GROCERIES & PROVISIONS
21-Dec-2017,7004483,1.25,REDBRIDGE PRODUCE & FLOWERS LTD T/A TOTAL PRODUCE,390977,Commissioning & Investment,Children's & Education Services,103,Supplies and Services,504,Equipment,5023,Revenue,03.GROCERIES & PROVISIONS
21-Dec-2017,7004483,1.25,REDBRIDGE PRODUCE & FLOWERS LTD T/A TOTAL PRODUCE,390977,Commissioning & Investment,Children's & Education Services,103,Supplies and Services,504,Equipment,5023,Revenue,03.GROCERIES & PROVISIONS
21-Dec-2017,7004483,17.89,REDBRIDGE PRODUCE & FLOWERS LTD T/A TOTAL PRODUCE,390977,Commissioning & Investment,Children's & Education Services,103,Supplies and Services,504,Equipment,5023,Revenue,03.GROCERIES & PROVISIONS
21-Dec-2017,7004483,12.10,REDBRIDGE PRODUCE & FLOWERS LTD T/A TOTAL PRODUCE,390977,Commissioning & Investment,Children's & Education Services,103,Supplies and Services,504,Equipment,5023,Revenue,03.GROCERIES & PROVISIONS
21-Dec-2017,7004483,176.14,REDBRIDGE PRODUCE & FLOWERS LTD T/A TOTAL PRODUCE,390977,Commissioning & Investment,Children's & Education Services,103,Supplies and Services,504,Equipment,5023,Revenue,03.GROCERIES & PROVISIONS
21-Dec-2017,7004483,18.96,REDBRIDGE PRODUCE & FLOWERS LTD T/A TOTAL PRODUCE,390977,Commissioning & Investment,Children's & Education Services,103,Supplies and Services,504,Equipment,5023,Revenue,03.GROCERIES & PROVISIONS
21-Dec-2017,7004483,46.01,REDBRIDGE PRODUCE & FLOWERS LTD T/A TOTAL PRODUCE,390977,"Environment, Housing & Leisure",Cultural & Related Services,104,Supplies and Services,504,Equipment,5023,Revenue,03.GROCERIES & PROVISIONS
21-Dec-2017,7004483,0.78,REDBRIDGE PRODUCE & FLOWERS LTD T/A TOTAL PRODUCE,390977,Commissioning & Investment,Children's & Education Services,103,Supplies and Services,504,Equipment,5023,Revenue,03.GROCERIES & PROVISIONS
21-Dec-2017,7004483,25.74,REDBRIDGE PRODUCE & FLOWERS LTD T/A TOTAL PRODUCE,390977,Commissioning & Investment,Children's & Education Services,103,Supplies and Services,504,Equipment,5023,Revenue,03.GROCERIES & PROVISIONS
21-Dec-2017,7004483,2.20,REDBRIDGE PRODUCE & FLOWERS LTD T/A TOTAL PRODUCE,390977,Commissioning & Investment,Children's & Education Services,103,Supplies and Services,504,Equipment,5023,Revenue,03.GROCERIES & PROVISIONS
21-Dec-2017,7004483,11.00,REDBRIDGE PRODUCE & FLOWERS LTD T/A TOTAL PRODUCE,390977,Commissioning & Investment,Children's & Education Services,103,Supplies and Services,504,Equipment,5023,Revenue,03.GROCERIES & PROVISIONS
21-Dec-2017,7004483,0.39,REDBRIDGE PRODUCE & FLOWERS LTD T/A TOTAL PRODUCE,390977,Commissioning & Investment,Children's & Education Services,103,Supplies and Services,504,Equipment,5023,Revenue,03.GROCERIES & PROVISIONS
21-Dec-2017,7004483,0.78,REDBRIDGE PRODUCE & FLOWERS LTD T/A TOTAL PRODUCE,390977,Commissioning & Investment,Children's & Education Services,103,Supplies and Services,504,Equipment,5023,Revenue,03.GROCERIES & PROVISIONS
21-Dec-2017,7004483,8.80,REDBRIDGE PRODUCE & FLOWERS LTD T/A TOTAL PRODUCE,390977,Commissioning & Investment,Children's & Education Services,103,Supplies and Services,504,Equipment,5023,Revenue,03.GROCERIES & PROVISIONS
21-Dec-2017,7004483,11.00,REDBRIDGE PRODUCE & FLOWERS LTD T/A TOTAL PRODUCE,390977,Commissioning & Investment,Children's & Education Services,103,Supplies and Services,504,Equipment,5023,Revenue,03.GROCERIES & PROVISIONS
21-Dec-2017,7004483,148.11,REDBRIDGE PRODUCE & FLOWERS LTD T/A TOTAL PRODUCE,390977,Commissioning & Investment,Children's & Education Services,103,Supplies and Services,504,Equipment,5023,Revenue,03.GROCERIES & PROVISIONS
21-Dec-2017,7004483,77.32,REDBRIDGE PRODUCE & FLOWERS LTD T/A TOTAL PRODUCE,390977,Commissioning & Investment,Children's & Education Services,103,Supplies and Services,504,Equipment,5023,Revenue,03.GROCERIES & PROVISIONS
21-Dec-2017,7004483,17.60,REDBRIDGE PRODUCE & FLOWERS LTD T/A TOTAL PRODUCE,390977,Commissioning & Investment,Children's & Education Services,103,Supplies and Services,504,Equipment,5023,Revenue,03.GROCERIES & PROVISIONS
21-Dec-2017,7004483,-4.77,REDBRIDGE PRODUCE & FLOWERS LTD T/A TOTAL PRODUCE,390977,Commissioning & Investment,Children's & Education Services,103,Supplies and Services,504,Equipment,5023,Revenue,03.GROCERIES & PROVISIONS
21-Dec-2017,7004483,1.78,REDBRIDGE PRODUCE & FLOWERS LTD T/A TOTAL PRODUCE,390977,Commissioning & Investment,Children's & Education Services,103,Supplies and Services,504,Equipment,5023,Revenue,03.GROCERIES & PROVISIONS
21-Dec-2017,7004483,48.98,REDBRIDGE PRODUCE & FLOWERS LTD T/A TOTAL PRODUCE,390977,Commissioning & Investment,Children's & Education Services,103,Supplies and Services,504,Equipment,5023,Revenue,03.GROCERIES & PROVISIONS
21-Dec-2017,7004483,12.76,REDBRIDGE PRODUCE & FLOWERS LTD T/A TOTAL PRODUCE,390977,Commissioning & Investment,Children's & Education Services,103,Supplies and Services,504,Equipment,5023,Revenue,03.GROCERIES & PROVISIONS
21-Dec-2017,7004483,9.28,REDBRIDGE PRODUCE & FLOWERS LTD T/A TOTAL PRODUCE,390977,Commissioning & Investment,Children's & Education Services,103,Supplies and Services,504,Equipment,5023,Revenue,03.GROCERIES & PROVISIONS
21-Dec-2017,7004483,0.73,REDBRIDGE PRODUCE & FLOWERS LTD T/A TOTAL PRODUCE,390977,Commissioning & Investment,Children's & Education Services,103,Supplies and Services,504,Equipment,5023,Revenue,03.GROCERIES & PROVISIONS
21-Dec-2017,7004483,1.15,REDBRIDGE PRODUCE & FLOWERS LTD T/A TOTAL PRODUCE,390977,Commissioning & Investment,Children's & Education Services,103,Supplies and Services,504,Equipment,5023,Revenue,03.GROCERIES & PROVISIONS
21-Dec-2017,7004483,1.56,REDBRIDGE PRODUCE & FLOWERS LTD T/A TOTAL PRODUCE,390977,Commissioning & Investment,Children's & Education Services,103,Supplies and Services,504,Equipment,5023,Revenue,03.GROCERIES & PROVISIONS
21-Dec-2017,7004483,2.10,REDBRIDGE PRODUCE & FLOWERS LTD T/A TOTAL PRODUCE,390977,Commissioning & Investment,Children's & Education Services,103,Supplies and Services,504,Equipment,5023,Revenue,03.GROCERIES & PROVISIONS
21-Dec-2017,7004483,2.15,REDBRIDGE PRODUCE & FLOWERS LTD T/A TOTAL PRODUCE,390977,Commissioning & Investment,Children's & Education Services,103,Supplies and Services,504,Equipment,5023,Revenue,03.GROCERIES & PROVISIONS
21-Dec-2017,7004483,3.48,REDBRIDGE PRODUCE & FLOWERS LTD T/A TOTAL PRODUCE,390977,Commissioning & Investment,Children's & Education Services,103,Supplies and Services,504,Equipment,5023,Revenue,03.GROCERIES & PROVISIONS
21-Dec-2017,7004483,58.16,REDBRIDGE PRODUCE & FLOWERS LTD T/A TOTAL PRODUCE,390977,Commissioning & Investment,Children's & Education Services,103,Supplies and Services,504,Equipment,5023,Revenue,03.GROCERIES & PROVISIONS
21-Dec-2017,7004483,30.55,REDBRIDGE PRODUCE & FLOWERS LTD T/A TOTAL PRODUCE,390977,Commissioning & Investment,Children's & Education Services,103,Supplies and Services,504,Equipment,5023,Revenue,03.GROCERIES & PROVISIONS
21-Dec-2017,7004483,29.99,REDBRIDGE PRODUCE & FLOWERS LTD T/A TOTAL PRODUCE,390977,Commissioning & Investment,Children's & Education Services,103,Supplies and Services,504,Equipment,5023,Revenue,03.GROCERIES & PROVISIONS
21-Dec-2017,7004483,41.54,REDBRIDGE PRODUCE & FLOWERS LTD T/A TOTAL PRODUCE,390977,Commissioning & Investment,Children's & Education Services,103,Supplies and Services,504,Equipment,5023,Revenue,03.GROCERIES & PROVISIONS
21-Dec-2017,7004483,4.40,REDBRIDGE PRODUCE & FLOWERS LTD T/A TOTAL PRODUCE,390977,Commissioning & Investment,Children's & Education Services,103,Supplies and Services,504,Equipment,5023,Revenue,03.GROCERIES & PROVISIONS
21-Dec-2017,7004483,25.80,REDBRIDGE PRODUCE & FLOWERS LTD T/A TOTAL PRODUCE,390977,Commissioning & Investment,Children's & Education Services,103,Supplies and Services,504,Equipment,5023,Revenue,03.GROCERIES & PROVISIONS
21-Dec-2017,7004483,4.40,REDBRIDGE PRODUCE & FLOWERS LTD T/A TOTAL PRODUCE,390977,Commissioning & Investment,Children's & Education Services,103,Supplies and Services,504,Equipment,5023,Revenue,03.GROCERIES & PROVISIONS
21-Dec-2017,7004483,3.30,REDBRIDGE PRODUCE & FLOWERS LTD T/A TOTAL PRODUCE,390977,Commissioning & Investment,Children's & Education Services,103,Supplies and Services,504,Equipment,5023,Revenue,03.GROCERIES & PROVISIONS
21-Dec-2017,7004483,-1.61,REDBRIDGE PRODUCE & FLOWERS LTD T/A TOTAL PRODUCE,390977,Commissioning & Investment,Children's & Education Services,103,Supplies and Services,504,Equipment,5023,Revenue,03.GROCERIES & PROVISIONS
21-Dec-2017,7004483,39.82,REDBRIDGE PRODUCE & FLOWERS LTD T/A TOTAL PRODUCE,390977,Commissioning & Investment,Children's & Education Services,103,Supplies and Services,504,Equipment,5023,Revenue,03.GROCERIES & PROVISIONS
21-Dec-2017,7004483,0.49,REDBRIDGE PRODUCE & FLOWERS LTD T/A TOTAL PRODUCE,390977,Commissioning & Investment,Children's & Education Services,103,Supplies and Services,504,Equipment,5023,Revenue,03.GROCERIES & PROVISIONS
21-Dec-2017,7004483,-19.76,REDBRIDGE PRODUCE & FLOWERS LTD T/A TOTAL PRODUCE,390977,Commissioning & Investment,Children's & Education Services,103,Supplies and Services,504,Equipment,5023,Revenue,03.GROCERIES & PROVISIONS
21-Dec-2017,7004483,11.46,REDBRIDGE PRODUCE & FLOWERS LTD T/A TOTAL PRODUCE,390977,Commissioning & Investment,Children's & Education Services,103,Supplies and Services,504,Equipment,5023,Revenue,03.GROCERIES & PROVISIONS
21-Dec-2017,7004483,8.16,REDBRIDGE PRODUCE & FLOWERS LTD T/A TOTAL PRODUCE,390977,Commissioning & Investment,Children's & Education Services,103,Supplies and Services,504,Equipment,5023,Revenue,03.GROCERIES & PROVISIONS
21-Dec-2017,7004483,36.72,REDBRIDGE PRODUCE & FLOWERS LTD T/A TOTAL PRODUCE,390977,Commissioning & Investment,Children's & Education Services,103,Supplies and Services,504,Equipment,5023,Revenue,03.GROCERIES & PROVISIONS
21-Dec-2017,7004483,48.13,REDBRIDGE PRODUCE & FLOWERS LTD T/A TOTAL PRODUCE,390977,Commissioning & Investment,Children's & Education Services,103,Supplies and Services,504,Equipment,5023,Revenue,03.GROCERIES & PROVISIONS
21-Dec-2017,7004483,33.80,REDBRIDGE PRODUCE & FLOWERS LTD T/A TOTAL PRODUCE,390977,Commissioning & Investment,Children's & Education Services,103,Supplies and Services,504,Equipment,5023,Revenue,03.GROCERIES & PROVISIONS
21-Dec-2017,7004483,4.40,REDBRIDGE PRODUCE & FLOWERS LTD T/A TOTAL PRODUCE,390977,"Environment, Housing & Leisure",Cultural & Related Services,104,Supplies and Services,504,Equipment,5023,Revenue,03.GROCERIES & PROVISIONS
21-Dec-2017,7004483,35.58,REDBRIDGE PRODUCE & FLOWERS LTD T/A TOTAL PRODUCE,390977,Commissioning & Investment,Children's & Education Services,103,Supplies and Services,504,Equipment,5023,Revenue,03.GROCERIES & PROVISIONS
21-Dec-2017,7004483,2.10,REDBRIDGE PRODUCE & FLOWERS LTD T/A TOTAL PRODUCE,390977,Commissioning & Investment,Children's & Education Services,103,Supplies and Services,504,Equipment,5023,Revenue,03.GROCERIES & PROVISIONS
21-Dec-2017,7004483,7.70,REDBRIDGE PRODUCE & FLOWERS LTD T/A TOTAL PRODUCE,390977,Commissioning & Investment,Children's & Education Services,103,Supplies and Services,504,Equipment,5023,Revenue,03.GROCERIES & PROVISIONS
21-Dec-2017,7004483,3.48,REDBRIDGE PRODUCE & FLOWERS LTD T/A TOTAL PRODUCE,390977,Commissioning & Investment,Children's & Education Services,103,Supplies and Services,504,Equipment,5023,Revenue,03.GROCERIES & PROVISIONS
21-Dec-2017,7004483,290.93,REDBRIDGE PRODUCE & FLOWERS LTD T/A TOTAL PRODUCE,390977,Commissioning & Investment,Children's & Education Services,103,Supplies and Services,504,Equipment,5023,Revenue,03.GROCERIES & PROVISIONS
21-Dec-2017,7004483,1.22,REDBRIDGE PRODUCE & FLOWERS LTD T/A TOTAL PRODUCE,390977,Commissioning & Investment,Children's & Education Services,103,Supplies and Services,504,Equipment,5023,Revenue,03.GROCERIES & PROVISIONS
21-Dec-2017,7004483,4.08,REDBRIDGE PRODUCE & FLOWERS LTD T/A TOTAL PRODUCE,390977,Commissioning & Investment,Children's & Education Services,103,Supplies and Services,504,Equipment,5023,Revenue,03.GROCERIES & PROVISIONS
21-Dec-2017,7004483,4.60,REDBRIDGE PRODUCE & FLOWERS LTD T/A TOTAL PRODUCE,390977,Commissioning & Investment,Children's & Education Services,103,Supplies and Services,504,Equipment,5023,Revenue,03.GROCERIES & PROVISIONS
21-Dec-2017,7004483,24.83,REDBRIDGE PRODUCE & FLOWERS LTD T/A TOTAL PRODUCE,390977,Commissioning & Investment,Children's & Education Services,103,Supplies and Services,504,Equipment,5023,Revenue,03.GROCERIES & PROVISIONS
21-Dec-2017,7004483,5.50,REDBRIDGE PRODUCE & FLOWERS LTD T/A TOTAL PRODUCE,390977,Commissioning & Investment,Children's & Education Services,103,Supplies and Services,504,Equipment,5023,Revenue,03.GROCERIES & PROVISIONS
21-Dec-2017,7004483,6.60,REDBRIDGE PRODUCE & FLOWERS LTD T/A TOTAL PRODUCE,390977,Commissioning & Investment,Children's & Education Services,103,Supplies and Services,504,Equipment,5023,Revenue,03.GROCERIES & PROVISIONS
21-Dec-2017,7004483,44.36,REDBRIDGE PRODUCE & FLOWERS LTD T/A TOTAL PRODUCE,390977,Commissioning & Investment,Children's & Education Services,103,Supplies and Services,504,Equipment,5023,Revenue,03.GROCERIES & PROVISIONS
21-Dec-2017,7004483,24.84,REDBRIDGE PRODUCE & FLOWERS LTD T/A TOTAL PRODUCE,390977,Commissioning & Investment,Children's & Education Services,103,Supplies and Services,504,Equipment,5023,Revenue,03.GROCERIES & PROVISIONS
21-Dec-2017,7004483,52.19,REDBRIDGE PRODUCE & FLOWERS LTD T/A TOTAL PRODUCE,390977,Commissioning & Investment,Children's & Education Services,103,Supplies and Services,504,Equipment,5023,Revenue,03.GROCERIES & PROVISIONS
21-Dec-2017,7004483,1.56,REDBRIDGE PRODUCE & FLOWERS LTD T/A TOTAL PRODUCE,390977,Commissioning & Investment,Children's & Education Services,103,Supplies and Services,504,Equipment,5023,Revenue,03.GROCERIES & PROVISIONS
21-Dec-2017,7004483,34.22,REDBRIDGE PRODUCE & FLOWERS LTD T/A TOTAL PRODUCE,390977,Commissioning & Investment,Children's & Education Services,103,Supplies and Services,504,Equipment,5023,Revenue,03.GROCERIES & PROVISIONS
21-Dec-2017,7004483,74.76,REDBRIDGE PRODUCE & FLOWERS LTD T/A TOTAL PRODUCE,390977,Commissioning & Investment,Children's & Education Services,103,Supplies and Services,504,Equipment,5023,Revenue,03.GROCERIES & PROVISIONS
21-Dec-2017,7004483,-1.88,REDBRIDGE PRODUCE & FLOWERS LTD T/A TOTAL PRODUCE,390977,Commissioning & Investment,Children's & Education Services,103,Supplies and Services,504,Equipment,5023,Revenue,03.GROCERIES & PROVISIONS
21-Dec-2017,7004483,1.20,REDBRIDGE PRODUCE & FLOWERS LTD T/A TOTAL PRODUCE,390977,Commissioning & Investment,Children's & Education Services,103,Supplies and Services,504,Equipment,5023,Revenue,03.GROCERIES & PROVISIONS
21-Dec-2017,7004483,1.46,REDBRIDGE PRODUCE & FLOWERS LTD T/A TOTAL PRODUCE,390977,Commissioning & Investment,Children's & Education Services,103,Supplies and Services,504,Equipment,5023,Revenue,03.GROCERIES & PROVISIONS
21-Dec-2017,7004483,1.16,REDBRIDGE PRODUCE & FLOWERS LTD T/A TOTAL PRODUCE,390977,Commissioning & Investment,Children's & Education Services,103,Supplies and Services,504,Equipment,5023,Revenue,03.GROCERIES & PROVISIONS
21-Dec-2017,7004483,-0.49,REDBRIDGE PRODUCE & FLOWERS LTD T/A TOTAL PRODUCE,390977,Commissioning & Investment,Children's & Education Services,103,Supplies and Services,504,Equipment,5023,Revenue,03.GROCERIES & PROVISIONS
21-Dec-2017,7004483,37.94,REDBRIDGE PRODUCE & FLOWERS LTD T/A TOTAL PRODUCE,390977,Commissioning & Investment,Children's & Education Services,103,Supplies and Services,504,Equipment,5023,Revenue,03.GROCERIES & PROVISIONS
21-Dec-2017,7004483,1.02,REDBRIDGE PRODUCE & FLOWERS LTD T/A TOTAL PRODUCE,390977,Commissioning & Investment,Children's & Education Services,103,Supplies and Services,504,Equipment,5023,Revenue,03.GROCERIES & PROVISIONS
21-Dec-2017,7004483,27.92,REDBRIDGE PRODUCE & FLOWERS LTD T/A TOTAL PRODUCE,390977,Commissioning & Investment,Children's & Education Services,103,Supplies and Services,504,Equipment,5023,Revenue,03.GROCERIES & PROVISIONS
21-Dec-2017,7004483,1.08,REDBRIDGE PRODUCE & FLOWERS LTD T/A TOTAL PRODUCE,390977,Commissioning & Investment,Children's & Education Services,103,Supplies and Services,504,Equipment,5023,Revenue,03.GROCERIES & PROVISIONS
21-Dec-2017,7004483,7.32,REDBRIDGE PRODUCE & FLOWERS LTD T/A TOTAL PRODUCE,390977,Commissioning & Investment,Children's & Education Services,103,Supplies and Services,504,Equipment,5023,Revenue,03.GROCERIES & PROVISIONS
21-Dec-2017,7004483,21.78,REDBRIDGE PRODUCE & FLOWERS LTD T/A TOTAL PRODUCE,390977,Commissioning & Investment,Children's & Education Services,103,Supplies and Services,504,Equipment,5023,Revenue,03.GROCERIES & PROVISIONS
21-Dec-2017,7004483,4.40,REDBRIDGE PRODUCE & FLOWERS LTD T/A TOTAL PRODUCE,390977,Commissioning & Investment,Children's & Education Services,103,Supplies and Services,504,Equipment,5023,Revenue,03.GROCERIES & PROVISIONS
21-Dec-2017,7004483,57.97,REDBRIDGE PRODUCE & FLOWERS LTD T/A TOTAL PRODUCE,390977,Commissioning & Investment,Children's & Education Services,103,Supplies and Services,504,Equipment,5023,Revenue,03.GROCERIES & PROVISIONS
21-Dec-2017,7004483,14.30,REDBRIDGE PRODUCE & FLOWERS LTD T/A TOTAL PRODUCE,390977,Commissioning & Investment,Children's & Education Services,103,Supplies and Services,504,Equipment,5023,Revenue,03.GROCERIES & PROVISIONS
21-Dec-2017,7004483,65.98,REDBRIDGE PRODUCE & FLOWERS LTD T/A TOTAL PRODUCE,390977,Commissioning & Investment,Children's & Education Services,103,Supplies and Services,504,Equipment,5023,Revenue,03.GROCERIES & PROVISIONS
21-Dec-2017,7004483,66.93,REDBRIDGE PRODUCE & FLOWERS LTD T/A TOTAL PRODUCE,390977,Commissioning & Investment,Children's & Education Services,103,Supplies and Services,504,Equipment,5023,Revenue,03.GROCERIES & PROVISIONS
21-Dec-2017,7004483,4.40,REDBRIDGE PRODUCE & FLOWERS LTD T/A TOTAL PRODUCE,390977,Commissioning & Investment,Children's & Education Services,103,Supplies and Services,504,Equipment,5023,Revenue,03.GROCERIES & PROVISIONS
21-Dec-2017,7004483,1.56,REDBRIDGE PRODUCE & FLOWERS LTD T/A TOTAL PRODUCE,390977,Commissioning & Investment,Children's & Education Services,103,Supplies and Services,504,Equipment,5023,Revenue,03.GROCERIES & PROVISIONS
21-Dec-2017,7004483,57.81,REDBRIDGE PRODUCE & FLOWERS LTD T/A TOTAL PRODUCE,390977,Commissioning & Investment,Children's & Education Services,103,Supplies and Services,504,Equipment,5023,Revenue,03.GROCERIES & PROVISIONS
21-Dec-2017,7004483,4.40,REDBRIDGE PRODUCE & FLOWERS LTD T/A TOTAL PRODUCE,390977,Commissioning & Investment,Children's & Education Services,103,Supplies and Services,504,Equipment,5023,Revenue,03.GROCERIES & PROVISIONS
21-Dec-2017,7004483,2.10,REDBRIDGE PRODUCE & FLOWERS LTD T/A TOTAL PRODUCE,390977,Commissioning & Investment,Children's & Education Services,103,Supplies and Services,504,Equipment,5023,Revenue,03.GROCERIES & PROVISIONS
21-Dec-2017,7004483,3.06,REDBRIDGE PRODUCE & FLOWERS LTD T/A TOTAL PRODUCE,390977,Commissioning & Investment,Children's & Education Services,103,Supplies and Services,504,Equipment,5023,Revenue,03.GROCERIES & PROVISIONS
21-Dec-2017,7004483,2.67,REDBRIDGE PRODUCE & FLOWERS LTD T/A TOTAL PRODUCE,390977,Commissioning & Investment,Children's & Education Services,103,Supplies and Services,504,Equipment,5023,Revenue,03.GROCERIES & PROVISIONS
21-Dec-2017,7004483,54.18,REDBRIDGE PRODUCE & FLOWERS LTD T/A TOTAL PRODUCE,390977,Commissioning & Investment,Children's & Education Services,103,Supplies and Services,504,Equipment,5023,Revenue,03.GROCERIES & PROVISIONS
21-Dec-2017,7004483,11.00,REDBRIDGE PRODUCE & FLOWERS LTD T/A TOTAL PRODUCE,390977,Commissioning & Investment,Children's & Education Services,103,Supplies and Services,504,Equipment,5023,Revenue,03.GROCERIES & PROVISIONS
21-Dec-2017,7004483,49.86,REDBRIDGE PRODUCE & FLOWERS LTD T/A TOTAL PRODUCE,390977,Commissioning & Investment,Children's & Education Services,103,Supplies and Services,504,Equipment,5023,Revenue,03.GROCERIES & PROVISIONS
21-Dec-2017,7004483,0.76,REDBRIDGE PRODUCE & FLOWERS LTD T/A TOTAL PRODUCE,390977,Commissioning & Investment,Children's & Education Services,103,Supplies and Services,504,Equipment,5023,Revenue,03.GROCERIES & PROVISIONS
21-Dec-2017,7004483,0.64,REDBRIDGE PRODUCE & FLOWERS LTD T/A TOTAL PRODUCE,390977,Commissioning & Investment,Children's & Education Services,103,Supplies and Services,504,Equipment,5023,Revenue,03.GROCERIES & PROVISIONS
21-Dec-2017,7004483,25.93,REDBRIDGE PRODUCE & FLOWERS LTD T/A TOTAL PRODUCE,390977,Commissioning & Investment,Children's & Education Services,103,Supplies and Services,504,Equipment,5023,Revenue,03.GROCERIES & PROVISIONS
21-Dec-2017,7004483,4.40,REDBRIDGE PRODUCE & FLOWERS LTD T/A TOTAL PRODUCE,390977,Commissioning & Investment,Children's & Education Services,103,Supplies and Services,504,Equipment,5023,Revenue,03.GROCERIES & PROVISIONS
21-Dec-2017,7004483,3.30,REDBRIDGE PRODUCE & FLOWERS LTD T/A TOTAL PRODUCE,390977,Commissioning & Investment,Children's & Education Services,103,Supplies and Services,504,Equipment,5023,Revenue,03.GROCERIES & PROVISIONS
21-Dec-2017,7004483,5.50,REDBRIDGE PRODUCE & FLOWERS LTD T/A TOTAL PRODUCE,390977,Commissioning & Investment,Children's & Education Services,103,Supplies and Services,504,Equipment,5023,Revenue,03.GROCERIES & PROVISIONS
21-Dec-2017,7004483,1.07,REDBRIDGE PRODUCE & FLOWERS LTD T/A TOTAL PRODUCE,390977,Commissioning & Investment,Children's & Education Services,103,Supplies and Services,504,Equipment,5023,Revenue,03.GROCERIES & PROVISIONS
